Workbook

Sheet Title
B2: SALT SPRING ISLAND AQUIFER GROUNDWATER BUDGETS
B3: Title Page
E17: VERSION CONTROL | K17: DATE
E18: 1666614 SSI GW Budgets FINAL | K18: 2019-07-23
I24: FINAL VERSION

Sheet Analysis Dashboard
B2: SALT SPRING ISLAND AQUIFER GROUNDWATER BUDGETS
B3: Analysis Dashboard
Q18: Direct Runoff | R18: =INDEX('Standard and U-D Numbers'!B63:I63,1,'Form Control Selectors'!$J$17) -> 47.94504425 | S18: %
Q19: Evapotranspiration | R19: =INDEX('Standard and U-D Numbers'!B64:I64,1,'Form Control Selectors'!$J$17) -> 36.71469687 | S19: %
Q20: Recharge | R20: =INDEX('Standard and U-D Numbers'!B65:I65,1,'Form Control Selectors'!$J$17) -> 15.34025888 | S20: %
Q23: Groundwater to Baseflow | R23: =INDEX('Standard and U-D Numbers'!B66:I66,1,'Form Control Selectors'!$J$17) -> 14.60782077 | S23: %
Q24: Groundwater to Sea | R24: =INDEX('Standard and U-D Numbers'!B67:I67,1,'Form Control Selectors'!$J$17) -> 0.4662334404 | S24: %
Q25: Groundwater Use | R25: =INDEX('Standard and U-D Numbers'!B68:I68,1,'Form Control Selectors'!$J$17) -> 0.266204668 | S25: %
B26: Total Agricultural Groundwater Demand (annual, by aquifer) | H26: =INDEX('Standard and U-D Numbers'!$B$13:$R$20,'Form Control Selectors'!$B$23,1) -> 76839 | I26: m3 | L26: 50000 | M26: m3
B27: ICI Groundwater Use (per external parcel) | H27: =INDEX('Standard and U-D Numbers'!$B$13:$R$20,'Form Control Selectors'!$B$23,2) -> 75 | I27: L/day | L27: 100 | M27: L/day
B28: Residential Groundwater Use (per external parcel) | H28: =INDEX('Standard and U-D Numbers'!$B$13:$R$20,'Form Control Selectors'!$B$23,3) -> 472.5 | I28: L/day | L28: 500 | M28: L/day
Q29: Recharge During Wet Year (2009) | R29: =INDEX('Standard and U-D Numbers'!B69:I69,1,'Form Control Selectors'!$J$17) -> 17.16772283 | S29: %
B30: Hydraulic Conductivity of Aquifer (m/s) | H30: =INDEX('Standard and U-D Numbers'!$B$13:$R$20,'Form Control Selectors'!$B$23,4) -> 1e-07 | I30: m/s | L30: 1e-07 | M30: m/s | Q30: Recharge During Dry Year (2010) | R30: =INDEX('Standard and U-D Numbers'!B70:I70,1,'Form Control Selectors'!$J$17) -> 9.840380222 | S30: %
B31: Hydraulic Gradient (m/m) | H31: =INDEX('Standard and U-D Numbers'!$B$13:$R$20,'Form Control Selectors'!$B$23,5) -> 0.15 | I31: (m/m) | L31: 0.05 | M31: (m/m) | Q31: Recharge - Climate Change Assumptions | R31: =INDEX('Standard and U-D Numbers'!B71:I71,1,'Form Control Selectors'!$J$17) -> 13.2810368 | S31: %
B33: % Precipitation to Runoff - January | H33: =INDEX('Standard and U-D Numbers'!$B$13:$R$20,'Form Control Selectors'!$B$23,6) -> 90 | I33: % | L33: 80 | M33: % | P33: 1 - Expressed as percentage of average annual precipitation (St Mary's Lake 1981-2010 EC Climate Normals)
B34: % Precipitation to Runoff - February | H34: =INDEX('Standard and U-D Numbers'!$B$13:$R$20,'Form Control Selectors'!$B$23,7) -> 90 | I34: % | L34: 80 | M34: %
B35: % Precipitation to Runoff - March | H35: =INDEX('Standard and U-D Numbers'!$B$13:$R$20,'Form Control Selectors'!$B$23,8) -> 90 | I35: % | L35: 80 | M35: %
B36: % Precipitation to Runoff - April | H36: =INDEX('Standard and U-D Numbers'!$B$13:$R$20,'Form Control Selectors'!$B$23,9) -> 60 | I36: % | L36: 60 | M36: %
B37: % Precipitation to Runoff - May | H37: =INDEX('Standard and U-D Numbers'!$B$13:$R$20,'Form Control Selectors'!$B$23,10) -> 25 | I37: % | L37: 25 | M37: %
B38: % Precipitation to Runoff - June | H38: =INDEX('Standard and U-D Numbers'!$B$13:$R$20,'Form Control Selectors'!$B$23,11) -> 10 | I38: % | L38: 10 | M38: %
B39: % Precipitation to Runoff - July | H39: =INDEX('Standard and U-D Numbers'!$B$13:$R$20,'Form Control Selectors'!$B$23,12) -> 10 | I39: % | L39: 10 | M39: %
B40: % Precipitation to Runoff - August | H40: =INDEX('Standard and U-D Numbers'!$B$13:$R$20,'Form Control Selectors'!$B$23,13) -> 10 | I40: % | L40: 10 | M40: %
B41: % Precipitation to Runoff - September | H41: =INDEX('Standard and U-D Numbers'!$B$13:$R$20,'Form Control Selectors'!$B$23,14) -> 10 | I41: % | L41: 10 | M41: %
B42: % Precipitation to Runoff - October | H42: =INDEX('Standard and U-D Numbers'!$B$13:$R$20,'Form Control Selectors'!$B$23,15) -> 50 | I42: % | L42: 50 | M42: %
B43: % Precipitation to Runoff - November | H43: =INDEX('Standard and U-D Numbers'!$B$13:$R$20,'Form Control Selectors'!$B$23,16) -> 90 | I43: % | L43: 80 | M43: %
B44: % Precipitation to Runoff - December | H44: =INDEX('Standard and U-D Numbers'!$B$13:$R$20,'Form Control Selectors'!$B$23,17) -> 90 | I44: % | L44: 80 | M44: %
A49: Groundwater Budget Component | C49: January | D49: February | E49: March | F49: April | G49: May | H49: June | I49: July | J49: August | K49: September | L49: October | M49: November | N49: December | O49: ANNUAL
A50: Direct Runoff (m3) | C50: =INDEX('Standard and U-D Numbers'!B23:B30,'Form Control Selectors'!$J$17) -> 6380367.604 | D50: =INDEX('Standard and U-D Numbers'!C23:C30,'Form Control Selectors'!$J$17) -> 5919665.105 | E50: =INDEX('Standard and U-D Numbers'!D23:D30,'Form Control Selectors'!$J$17) -> 4092950.225 | F50: =INDEX('Standard and U-D Numbers'!E23:E30,'Form Control Selectors'!$J$17) -> 879310.08 | G50: =INDEX('Standard and U-D Numbers'!F23:F30,'Form Control Selectors'!$J$17) -> 155566.8288 | H50: =INDEX('Standard and U-D Numbers'!G23:G30,'Form Control Selectors'!$J$17) -> 24514.0992 | I50: =INDEX('Standard and U-D Numbers'!H23:H30,'Form Control Selectors'!$J$17) -> 12114.93888 | J50: =INDEX('Standard and U-D Numbers'!I23:I30,'Form Control Selectors'!$J$17) -> 8260.1856 | K50: =INDEX('Standard and U-D Numbers'!J23:J30,'Form Control Selectors'!$J$17) -> 10125.3888 | L50: =INDEX('Standard and U-D Numbers'!K23:K30,'Form Control Selectors'!$J$17) -> 94908.69818 | M50: =INDEX('Standard and U-D Numbers'!L23:L30,'Form Control Selectors'!$J$17) -> 1484895.535 | N50: =INDEX('Standard and U-D Numbers'!M23:M30,'Form Control Selectors'!$J$17) -> 5259819.194 | O50: =INDEX('Standard and U-D Numbers'!N23:N30,'Form Control Selectors'!$J$17) -> 24322497.88
A51: Groundwater Flow to Baseflow (m3) | C51: =INDEX('Standard and U-D Numbers'!B33:B40,'Form Control Selectors'!$J$17) -> 1595091.901 | D51: =INDEX('Standard and U-D Numbers'!C33:C40,'Form Control Selectors'!$J$17) -> 1479916.276 | E51: =INDEX('Standard and U-D Numbers'!D33:D40,'Form Control Selectors'!$J$17) -> 1023237.556 | F51: =INDEX('Standard and U-D Numbers'!E33:E40,'Form Control Selectors'!$J$17) -> 586206.72 | G51: =INDEX('Standard and U-D Numbers'!F33:F40,'Form Control Selectors'!$J$17) -> 466700.4864 | H51: =INDEX('Standard and U-D Numbers'!G33:G40,'Form Control Selectors'!$J$17) -> 220626.8928 | I51: =INDEX('Standard and U-D Numbers'!H33:H40,'Form Control Selectors'!$J$17) -> 109034.4499 | J51: =INDEX('Standard and U-D Numbers'!I33:I40,'Form Control Selectors'!$J$17) -> 74341.6704 | K51: =INDEX('Standard and U-D Numbers'!J33:J40,'Form Control Selectors'!$J$17) -> 91128.4992 | L51: =INDEX('Standard and U-D Numbers'!K33:K40,'Form Control Selectors'!$J$17) -> 94908.69818 | M51: =INDEX('Standard and U-D Numbers'!L33:L40,'Form Control Selectors'!$J$17) -> 371223.8836 | N51: =INDEX('Standard and U-D Numbers'!M33:M40,'Form Control Selectors'!$J$17) -> 1314954.799 | O51: =INDEX('Standard and U-D Numbers'!N33:N40,'Form Control Selectors'!$J$17) -> 7427371.833
A52: Groundwater Flux to Sea (m3) | C52: =INDEX('Standard and U-D Numbers'!B43:B50,'Form Control Selectors'!$J$17) -> 20088 | D52: =INDEX('Standard and U-D Numbers'!C43:C50,'Form Control Selectors'!$J$17) -> 18144 | E52: =INDEX('Standard and U-D Numbers'!D43:D50,'Form Control Selectors'!$J$17) -> 20088 | F52: =INDEX('Standard and U-D Numbers'!E43:E50,'Form Control Selectors'!$J$17) -> 19440 | G52: =INDEX('Standard and U-D Numbers'!F43:F50,'Form Control Selectors'!$J$17) -> 20088 | H52: =INDEX('Standard and U-D Numbers'!G43:G50,'Form Control Selectors'!$J$17) -> 19440 | I52: =INDEX('Standard and U-D Numbers'!H43:H50,'Form Control Selectors'!$J$17) -> 20088 | J52: =INDEX('Standard and U-D Numbers'!I43:I50,'Form Control Selectors'!$J$17) -> 20088 | K52: =INDEX('Standard and U-D Numbers'!J43:J50,'Form Control Selectors'!$J$17) -> 19440 | L52: =INDEX('Standard and U-D Numbers'!K43:K50,'Form Control Selectors'!$J$17) -> 20088 | M52: =INDEX('Standard and U-D Numbers'!L43:L50,'Form Control Selectors'!$J$17) -> 19440 | N52: =INDEX('Standard and U-D Numbers'!M43:M50,'Form Control Selectors'!$J$17) -> 20088 | O52: =INDEX('Standard and U-D Numbers'!N43:N50,'Form Control Selectors'!$J$17) -> 236520
A53: Groundwater Use (m3) | C53: =INDEX('Standard and U-D Numbers'!B53:B60,'Form Control Selectors'!$J$17) -> 3481.850102 | D53: =INDEX('Standard and U-D Numbers'!C53:C60,'Form Control Selectors'!$J$17) -> 3495.250102 | E53: =INDEX('Standard and U-D Numbers'!D53:D60,'Form Control Selectors'!$J$17) -> 3859.058262 | F53: =INDEX('Standard and U-D Numbers'!E53:E60,'Form Control Selectors'!$J$17) -> 12812.79492 | G53: =INDEX('Standard and U-D Numbers'!F53:F60,'Form Control Selectors'!$J$17) -> 18873.75386 | H53: =INDEX('Standard and U-D Numbers'!G53:G60,'Form Control Selectors'!$J$17) -> 20706.64436 | I53: =INDEX('Standard and U-D Numbers'!H53:H60,'Form Control Selectors'!$J$17) -> 23460.02533 | J53: =INDEX('Standard and U-D Numbers'!I53:I60,'Form Control Selectors'!$J$17) -> 21263.26645 | K53: =INDEX('Standard and U-D Numbers'!J53:J60,'Form Control Selectors'!$J$17) -> 13468.49567 | L53: =INDEX('Standard and U-D Numbers'!K53:K60,'Form Control Selectors'!$J$17) -> 4312.231446 | M53: =INDEX('Standard and U-D Numbers'!L53:L60,'Form Control Selectors'!$J$17) -> 4616.414749 | N53: =INDEX('Standard and U-D Numbers'!M53:M60,'Form Control Selectors'!$J$17) -> 4695.714749 | O53: =INDEX('Standard and U-D Numbers'!N53:N60,'Form Control Selectors'!$J$17) -> 135045.5

Sheet Groundwater Budget Report
B2: SALT SPRING ISLAND AQUIFER GROUNDWATER BUDGETS
B3: Groundwater Budget Report
C16: GROUNDWATER BUDGET REPORT - SALT SPRING ISLAND
C17: ='Form Control Selectors'!B40 -> SOUTH SALT SPRING ISLAND AQUIFER
C38: SUMMARY INFORMATION | J38: RECHARGE DURING WET YEAR / DRY YEAR / CLIMATE CHANGE
C40: DIRECT RUNOFF | F40: ='Analysis Dashboard'!R18 -> 47.94504425 | G40: % | J40: RECHARGE DURING WET YEAR (2009) | N40: ='Analysis Dashboard'!R29 -> 17.16772283 | O40: %
C41: EVAPOTRANSPIRATION | F41: ='Analysis Dashboard'!R19 -> 36.71469687 | G41: % | J41: RECHARGE DURING DRY YEAR (2010) | N41: ='Analysis Dashboard'!R30 -> 9.840380222 | O41: %
C42: RECHARGE | F42: ='Analysis Dashboard'!R20 -> 15.34025888 | G42: % | J42: RECHARGE WITH CLIMATE CHANGE ASSUMPTIONS | N42: ='Analysis Dashboard'!R31 -> 13.2810368 | O42: %
D43: GROUNDWATER TO BASEFLOW | G43: ='Analysis Dashboard'!R23 -> 14.60782077 | H43: %
D44: GROUNDWATER TO SEA | G44: ='Analysis Dashboard'!R24 -> 0.4662334404 | H44: %
D45: GROUNDWATER USE | G45: ='Analysis Dashboard'!R25 -> 0.266204668 | H45: %
D46: GW USE AS % OF TOTAL RECHARGE | G46: =(G45/F42)*100 -> 1.735333609 | H46: %
C47: * EXPRESSED AS % OF AVERAGE ANNUAL PRECIPITATION (1981-2010 CLIMATE NORMALS)
C48: AQUIFER NAME | E48: ='Form Control Selectors'!B40 -> SOUTH SALT SPRING ISLAND AQUIFER | J48: AQUIFER AREA | M48: =INDEX('Form Control Selectors'!D26:D33,'Form Control Selectors'!J17) -> 51.4 | N48: km2
C49: PARAMETERS | E49: ='Form Control Selectors'!B41 -> USER-DEFINED NUMBERS | J49: HYDRAULIC CONDUCTIVITY | M49: =INDEX('Standard and U-D Numbers'!E13:E20,'Form Control Selectors'!J17) -> 1e-07 | N49: m/s
J50: HYDRAULIC GRADIENT | M50: =INDEX('Standard and U-D Numbers'!F13:F20,'Form Control Selectors'!J17) -> 0.05 | N50: m/m
C53: *** USING ASSUMPTIONS/LIMITATIONS AS DEFINED IN ASSOCIATED GOLDER REPORT (GOLDER, 2018).

Sheet GW Budgets - NSSI Aquifer
A1: NORTH SALT SPRING ISLAND AQUIFER
A3: WET PERIOD | K3: DRY PERIOD
A5: Input Data | K5: Distributions
A6: Storage / Specific Yield | B6: 0.001 | C6: Unitless | K6: Total Agricultural Demand | L6: 142844 | M6: m3
A7: Area - OW #373 | B7: 2722559.379 | C7: m2 | L7: APRIL | M7: MAY | N7: JUNE | O7: JULY | P7: AUGUST | Q7: SEPTEMBER
A8: Area - OW #281 | B8: 5111144.397 | C8: m2 | K8: Monthly Distribution of Ag Demand | L8: =L9/$R$9 -> 0.1160066718 | M8: =M9/$R$9 -> 0.1676942971 | N8: 0.1924511329 | O8: 0.2164958114 | P8: 0.1876347008 | Q8: 0.119717386 | R8: =SUM(L8:Q8) -> 1 | W8: 61.9
A9: Area - OW #438 | B9: 38953256.91 | C9: m2 | K9: RefET | L9: 61.9 | M9: 89.48 | N9: 102.69 | O9: 115.52 | P9: 100.12 | Q9: 63.88 | R9: =SUM(L9:Q9) -> 533.59 | W9: 89.48
A10: Area - Harbourview Garden | B10: 1437033.408 | C10: m2 | K10: Monthly Res Demand - WET | L10: OCTOBER | M10: NOVEMBER | N10: DECEMBER | O10: JANUARY | P10: FEBRUARY | Q10: MARCH | W10: 102.69
A11: ICI Water Use - Per Parcel | B11: 2.25 | C11: m3 | L11: 0.073293213 | M11: 0.0771845879 | N11: 0.0771845879 | O11: 0.05987522225 | P11: 0.05987522225 | Q11: 0.06650858107 | W11: 115.52
A12: Res Water Use / Year - Per Ext Parcel | B12: =(225*2.1)/1000*365 -> 172.4625 | C12: m3 | K12: Monthly Res Demand - DRY | L12: APRIL | M12: MAY | N12: JUNE | O12: JULY | P12: AUGUST | Q12: SEPTEMBER | W12: 100.12
A13: QIRReturnIN | B13: 0 | C13: Unitless | L13: 0.06650858107 | M13: 0.1035614948 | N13: 0.1035614948 | O13: 0.1195769009 | P13: 0.1195769009 | Q13: 0.073293213 | W13: 63.88
A14: Number of Residential Connections | B14: 769
A15: Number of Commercial Connections | B15: 19
A16: Aquifer Hydraulic Conductivity | B16: 2e-07 | C16: m/s | E16: Assumed Sat Flow Depth | G16: 30 | H16: m
A17: Hydraulic Gradient | B17: 0.05 | C17: Unitless | E17: Length of Shoreline | G17: 40 | H17: km
A18: WET PERIOD | K18: DRY PERIOD
B19: OCTOBER | C19: NOVEMBER | D19: DECEMBER | E19: JANUARY | F19: FEBRUARY | G19: MARCH | L19: APRIL | M19: MAY | N19: JUNE | O19: JULY | P19: AUGUST | Q19: SEPTEMBER
A20: Wet Season SW Flow (m3) | B20: 177999.9709 | C20: 1740563.345 | D20: 6165449.542 | E20: 7478932.844 | F20: 6938907.055 | G20: 4797670.255 | K20: Dry Season SW Flow (m3) | L20: 1374278.4 | M20: 583526.9376 | N20: 229879.296 | O20: 113607.0144 | P20: 77459.328 | Q20: 94950.144
A21: Direct flow composition | B21: 0.5 | C21: 0.9 | D21: 0.9 | E21: 0.9 | F21: 0.9 | G21: 0.9 | K21: Direct flow composition | L21: 0.6 | M21: 0.25 | N21: 0.1 | O21: 0.1 | P21: 0.1 | Q21: 0.1
A22: Groundwater composition | B22: =1-B21 -> 0.5 | C22: =1-C21 -> 0.1 | D22: 0.1 | E22: 0.1 | F22: 0.1 | G22: 0.1 | K22: Groundwater composition | L22: =1-L21 -> 0.4 | M22: 0.75 | N22: 0.9 | O22: 0.9 | P22: 0.9 | Q22: 0.9
B23: OCTOBER | C23: NOVEMBER | D23: DECEMBER | E23: JANUARY | F23: FEBRUARY | G23: MARCH | H23: TOTAL | L23: APRIL | M23: MAY | N23: JUNE | O23: JULY | P23: AUGUST | Q23: SEPTEMBER | R23: TOTAL
A24: Storage Change | K24: Storage Change
A25: Change In GW Level - OW 373 | B25: 0.06146153846 | C25: 3.52414359 | D25: 2.383461538 | E25: 0.6106820513 | F25: 0.403 | G25: 0.073 | K25: Change In GW Level - OW 373 | L25: -1.244 | M25: -3.592 | N25: -0.165 | O25: -0.5379312026 | P25: -1.614015168 | Q25: -0.2150536295
A26: Associated Volume | B26: =($B$7*B25)*$B$6 -> 167.332688 | C26: =($B$7*C25)*$B$6 -> 9594.690183 | D26: 6489.115566 | E26: 1662.618146 | F26: 1097.19143 | G26: 198.7468347 | H26: =SUM(B26:G26) -> 19209.69485 | K26: Associated Volume | L26: =($B$7*L25)*$B$6 -> -3386.863867 | M26: =($B$7*M25)*$B$6 -> -9779.433289 | N26: -449.2222975 | O26: -1464.549641 | P26: -4394.252133 | Q26: -585.4962759 | R26: =SUM(L26:Q26) -> -20059.8175
A27: Change in GW Level - Harbourview | B27: -0.56 | C27: 4.02 | D27: 1.76 | E27: 0.35 | F27: 0.52 | G27: 0.26 | K27: Change in GW Level - Harbourview | L27: -1.48 | M27: -1.25 | N27: -1.08 | O27: -0.87 | P27: -1.68 | Q27: -1.51
A28: Associated Volume | B28: =($B$10*B27)*$B$6 -> -804.7387087 | C28: =($B$10*C27)*$B$6 -> 5776.874302 | D28: 2529.178799 | E28: 502.9616929 | F28: 747.2573724 | G28: 373.6286862 | H28: =SUM(B28:G28) -> 9125.162143 | K28: Associated Volume | L28: =($B$10*L27)*$B$6 -> -2126.809444 | M28: =($B$10*M27)*$B$6 -> -1796.291761 | N28: -1551.996081 | O28: -1250.219065 | P28: -2414.216126 | Q28: -2169.920447 | R28: =SUM(L28:Q28) -> -11309.45292
A29: Change in GW Level - OW #281 | B29: 0.243 | C29: 0.524 | D29: 0.146 | E29: -0.1651562286 | F29: -0.09413618766 | G29: 0.04874356639 | K29: Change in GW Level - OW #281 | L29: -0.3471361877 | M29: -0.2391963106 | N29: -0.09413618766 | O29: -0.004378355303 | P29: -0.2264131038 | Q29: -0.023191005
A30: Associated Volume | B30: =($B$8*B29)*$B$6 -> 1242.008088 | C30: =($B$8*C29)*$B$6 -> 2678.239664 | D30: 746.227082 | E30: -844.1373327 | F30: -481.1436481 | G30: 249.1354062 | H30: =SUM(B30:G30) -> 3590.32926 | K30: Associated Volume | L30: =($B$8*L29)*$B$6 -> -1774.263181 | M30: =($B$8*M29)*$B$6 -> -1222.566883 | N30: =($B$8*N29)*$B$6 -> -481.1436481 | O30: =($B$8*O29)*$B$6 -> -22.37840617 | P30: =($B$8*P29)*$B$6 -> -1157.230067 | Q30: =($B$8*Q29)*$B$6 -> -118.5325753 | R30: =SUM(L30:Q30) -> -4776.11476
A31: Change in GW Level - OW #438 | B31: 0.1723 | C31: 1.391 | D31: 2.1048 | E31: 0.4466 | F31: 0.5124 | G31: 0.0301 | K31: Change in GW Level - OW #438 | L31: -1.7498 | M31: -1.173 | N31: -0.9679 | O31: -0.5378 | P31: -0.9785 | Q31: 0.1547
A32: Associated Volume | B32: =($B$9*B31)*$B$6 -> 6711.646165 | C32: =($B$9*C31)*$B$6 -> 54183.98036 | D32: 81988.81514 | E32: 17396.52453 | F32: 19959.64884 | G32: 1172.493033 | H32: =SUM(B32:G32) -> 181413.1081 | K32: Associated Volume | L32: =($B$9*L31)*$B$6 -> -68160.40893 | M32: =($B$9*M31)*$B$6 -> -45692.17035 | N32: =($B$9*N31)*$B$6 -> -37702.85736 | O32: =($B$9*O31)*$B$6 -> -20949.06156 | P32: =($B$9*P31)*$B$6 -> -38115.76188 | Q32: =($B$9*Q31)*$B$6 -> 6026.068843 | R32: =SUM(L32:Q32) -> -204594.1912
A33: TOTAL ΔSGW (m3) | B33: =SUM(B32+B30+B28+B26) -> 7316.248233 | C33: =SUM(C32+C30+C28+C26) -> 72233.7845 | D33: 91753.33658 | E33: 18717.96704 | F33: 21322.95399 | G33: 1994.00396 | H33: 213338.2943 | K33: TOTAL ΔSGW | L33: =SUM(L32+L30+L28+L26) -> -75448.34543 | M33: =SUM(M32+M30+M28+M26) -> -58490.46228 | N33: -40185.21939 | O33: -23686.20868 | P33: -46081.46021 | Q33: 3152.119546 | R33: -240739.5764
A35: Groundwater Flux Out (QGWout) | K35: Groundwater Flux Out (QGWout)
B36: =$B16*$B17*($G16*($G17*1000))*60*60*24*31 -> 32140.8 | C36: =$B16*$B17*($G16*($G17*1000))*60*60*24*30 -> 31104 | D36: =$B16*$B17*($G16*($G17*1000))*60*60*24*31 -> 32140.8 | E36: =$B16*$B17*($G16*($G17*1000))*60*60*24*31 -> 32140.8 | F36: =$B16*$B17*($G16*($G17*1000))*60*60*24*28 -> 29030.4 | G36: =$B16*$B17*($G16*($G17*1000))*60*60*24*31 -> 32140.8 | H36: =SUM(B36:G36) -> 188697.6 | L36: =$B16*$B17*($G16*($G17*1000))*60*60*24*30 -> 31104 | M36: =$B16*$B17*($G16*($G17*1000))*60*60*24*31 -> 32140.8 | N36: =$B16*$B17*($G16*($G17*1000))*60*60*24*30 -> 31104 | O36: 32140.8 | P36: 32140.8 | Q36: =$B16*$B17*($G16*($G17*1000))*60*60*24*30 -> 31104 | R36: =SUM(L36:Q36) -> 189734.4
A38: Groundwater Flux to SW (QSWout) | K38: Groundwater Flux to SW (QSWout)
B39: =(1-B$21)*B20 -> 88999.98545 | C39: =(1-C$21)*C20 -> 174056.3345 | D39: 616544.9542 | E39: 747893.2844 | F39: 693890.7055 | G39: 479767.0255 | H39: =SUM(B39:G39) -> 2801152.289 | L39: =(1-L$21)*L20 -> 549711.36 | M39: =(1-M$21)*M20 -> 437645.2032 | N39: 206891.3664 | O39: 102246.313 | P39: 69713.3952 | Q39: 85455.1296 | R39: =SUM(L39:Q39) -> 1451662.767
A41: Runoff to SW | K41: Runoff to SW
B42: =B$21*B$20 -> 88999.98545 | C42: =C$21*C$20 -> 1566507.011 | D42: 5548904.588 | E42: 6731039.559 | F42: 6245016.349 | G42: 4317903.229 | H42: =SUM(B42:G42) -> 24498370.72 | L42: =L$21*L$20 -> 824567.04 | M42: =M$21*M$20 -> 145881.7344 | N42: 22987.9296 | O42: 11360.70144 | P42: 7745.9328 | Q42: 9495.0144 | R42: =SUM(L42:Q42) -> 1022038.353
A44: Groundwater Use | K44: Groundwater Use
A45: Residential / Domestic | K45: Residential / Domestic
A46: External Parcels | B46: =$B$14*($B$12*L11) -> 9720.414344 | C46: =$B$14*($B$12*M11) -> 10236.50274 | D46: 10236.50274 | E46: 7940.871268 | F46: 7940.871268 | G46: 8820.61161 | H46: =SUM(B46:G46) -> 54895.77396 | K46: External Parcels | L46: =$B$14*($B$12*L13) -> 8820.61161 | M46: =$B$14*($B$12*M13) -> 13734.70474 | N46: 13734.70474 | O46: 15858.72655 | P46: 15858.72655 | Q46: 9720.414344 | R46: =SUM(L46:Q46) -> 77727.88854
A47: Maracaibo Estates WSS | B47: 545.8492664 | C47: 336.0471206 | D47: 336.0016597 | E47: 580.4450266 | F47: 335.274285 | G47: 515.5268328 | H47: 2649.144191 | K47: Maracaibo Estates WSS | L47: 593.6741543 | M47: 819.2967002 | N47: 920.8563955 | O47: 1243.674388 | P47: 1261.085921 | Q47: 995.1849997 | R47: 5833.772559
A48: Harbourview WSS | B48: 209.1293242 | C48: 112.3839403 | D48: 132.3812898 | E48: 170.2193228 | F48: 119.9031765 | G48: 104.6464917 | H48: 848.6635453 | K48: Harbourview WSS | L48: 242.0612146 | M48: 220.3627175 | N48: 174.6699468 | O48: 267.5420603 | P48: 224.4723847 | Q48: 186.5807079 | R48: 1315.689032
A49: Scott Point WSS | B49: 422.4000451 | C49: 310.4980152 | D49: 310.4980152 | E49: 312.4982952 | F49: 312.4982952 | G49: 395.5553778 | H49: 2063.948044 | K49: Scott Point WSS | L49: 395.5553778 | M49: 496.7740938 | N49: 496.7740938 | O49: 731.4205807 | P49: 731.4205807 | Q49: 422.4000451 | R49: 3274.344772
A50: High Hill WSS | B50: 101.3778516 | C50: 70.64626968 | D50: 69.7825122 | E50: 77.23810308 | F50: 73.10115936 | G50: 78.28370424 | H50: 470.4296002 | K50: High Hill WSS | L50: 107.378693 | M50: 154.6125889 | N50: 124.1992334 | O50: 180.3434696 | P50: 170.7512155 | Q50: 106.8786229 | R50: 844.1638235
A51: Cedar Lane WSS | B51: 246.11 | C51: 296.37 | D51: 280.361 | E51: 257.583 | F51: 299.688 | G51: 268.323 | H51: 1648.435 | K51: Cedar Lane WSS | L51: 281.646 | M51: 365.402 | N51: 336.708 | O51: 301.174 | P51: 371.931 | Q51: 304.059 | R51: 1960.92
A52: The Cottages WSS | B52: 294.5 | C52: 210 | D52: 217 | E52: 186 | F52: 196 | G52: 217 | H52: 1320.5 | K52: The Cottages WSS | L52: 240 | M52: 325.5 | N52: 348 | O52: 616.9 | P52: 616.9 | Q52: 348 | R52: 2495.3
A53: Merchants Mews WSS | B53: 39.8958 | C53: 29.9662 | D53: 23.5633 | E53: 48.0913 | F53: 54.4115 | G53: 69.6342 | H53: 265.5623 | K53: Merchants Mews WSS | L53: 67.5869 | M53: 77.8627 | N53: 72.2647 | O53: 68.7099 | P53: 33.8166 | Q53: 35.8332 | R53: 356.074
A54: ICI | B54: =$B$15*$B$11 -> 42.75 | C54: =$B$15*$B$11 -> 42.75 | D54: =$B$15*$B$11 -> 42.75 | E54: 42.75 | F54: 42.75 | G54: 42.75 | H54: 256.5 | K54: ICI | L54: =$B$15*$B$11 -> 42.75 | M54: =$B$15*$B$11 -> 42.75 | N54: =$B$15*$B$11 -> 42.75 | O54: 42.75 | P54: 42.75 | Q54: 42.75 | R54: 256.5
A55: Agricultural | B55: 0 | C55: 0 | D55: 0 | E55: 0 | F55: 0 | G55: 0 | H55: 0 | K55: Agricultural | L55: =$L$6*L8 -> 16570.85703 | M55: =$L$6*M8 -> 23954.12418 | N55: 27490.48963 | O55: 30925.12768 | P55: 26802.4912 | Q55: 17100.91029 | R55: 142844
A57: SubTotal GWpumpOUT | B57: =SUM(B45:B55) -> 11622.42663 | C57: =SUM(C45:C55) -> 11645.16428 | D57: 11648.84051 | E57: 9615.696315 | F57: 9374.497684 | G57: 10512.33122 | H57: 64418.95664 | K57: SubTotal GWpumpOUT | L57: =SUM(L45:L55) -> 27362.12097 | M57: =SUM(M45:M55) -> 40191.38972 | N57: 43741.41674 | O57: 50236.36863 | P57: 46114.34546 | Q57: 29263.01121 | R57: 236908.6527
A58: QIRReturnIN | B58: =B57*$B$13 -> 0 | C58: =C57*$B$13 -> 0 | D58: 0 | E58: 0 | F58: 0 | G58: 0 | H58: 0 | K58: QIRReturnIN | L58: =L57*$B$13 -> 0 | M58: =M57*$B$13 -> 0 | N58: =N57*$B$13 -> 0 | O58: =O57*$B$13 -> 0 | P58: =P57*$B$13 -> 0 | Q58: =Q57*$B$13 -> 0 | R58: =R57*$B$13 -> 0
A59: Total GWpumpOUT | B59: =B57-B58 -> 11622.42663 | C59: =C57-C58 -> 11645.16428 | D59: 11648.84051 | E59: 9615.696315 | F59: 9374.497684 | G59: 10512.33122 | H59: 64418.95664 | K59: Total GWpumpOUT | L59: =L57-L58 -> 27362.12097 | M59: =M57-M58 -> 40191.38972 | N59: 43741.41674 | O59: 50236.36863 | P59: 46114.34546 | Q59: 29263.01121 | R59: 236908.6527
A61: Minimum Recharge (R - QSWout) | B61: =B59+B33+B36 -> 51079.47486 | C61: 114982.9488 | D61: 135542.9771 | E61: 60474.46336 | F61: 59727.85168 | G61: 44647.13518 | H61: =SUM(B61:G61) -> 466454.851
A62: Recharge (QGWout + QSWout + deltaS + QGWpump) | B62: =B61+B39 -> 140079.4603 | C62: =C61+C39 -> 289039.2833 | D62: 752087.9313 | E62: 808367.7477 | F62: 753618.5571 | G62: 524414.1606 | H62: =SUM(B62:G62) -> 3267607.14 | K62: Recharge (QGWout + QSWout - deltaS + QGWpump) | L62: =L59+L39+L36+L33 -> 532729.1355 | M62: =M59+M39+M36+M33 -> 451486.9306 | N62: 241551.5638 | O62: 160937.2729 | P62: 101887.0804 | Q62: 148974.2604 | R62: =R59+R39+R36+R33 -> 1637566.244
A64: Precpitation (mm) | B64: 94 | C64: 167.9 | D64: 154.3 | E64: 162.1 | F64: 98.5 | G64: 88.6 | L64: 56.8 | M64: 43 | N64: 37.4 | O64: 23.2 | P64: 28 | Q64: 33.1
A65: Precipitation (m3) | B65: =(B64/1000)*SUM($B7:$B10) -> 4533055.444 | C65: =(C64/1000)*SUM($B7:$B10) -> 8096808.608 | D65: 7440962.288 | E65: 7817109.442 | F65: 4750063.418 | G65: 4272645.876 | H65: =SUM(B65:G65) -> 36910645.08 | L65: =(L64/1000)*SUM($B7:$B10) -> 2739122.864 | M65: =(M64/1000)*SUM($B7:$B10) -> 2073631.746 | N65: 1803577.379 | O65: 1118796.663 | P65: 1350271.835 | Q65: 1596214.204 | R65: =R62+R42+R39+R36 -> 4301001.764
A67: Precipitation Dry Year 2009 (mm) | B67: 76.85862069 | C67: 130.4 | D67: 143.1 | E67: 44.6 | F67: 50.2 | G67: 63.9 | K67: Precipitation Dry Year 2009 (mm) | L67: 35.14285714 | M67: 54.9 | N67: 9.2 | O67: 10.6 | P67: 8.124137931 | Q67: 64.2
A68: Precipitation Dry Year 2009 (m3) | B68: =(B67/1000)*SUM($B$7:$B$10) -> 3706429.67 | C68: =(C67/1000)*SUM($B$7:$B$10) -> 6288408.829 | D68: 6900853.554 | E68: 2150790.136 | F68: 2420844.503 | G68: 3081513.222 | K68: Precipitation Dry Year 2009 (m3) | L68: =(L67/1000)*SUM($B$7:$B$10) -> 1694728.935 | M68: =(M67/1000)*SUM($B$7:$B$10) -> 2647497.276 | N68: =(N67/1000)*SUM($B$7:$B$10) -> 443660.7456 | O68: =(O67/1000)*SUM($B$7:$B$10) -> 511174.3374 | P68: =(P67/1000)*SUM($B$7:$B$10) -> 391778.3796 | Q68: =(Q67/1000)*SUM($B$7:$B$10) -> 3095980.421
A69: Recharge Change (%) | B69: =B68/B65 -> 0.817644901 | C69: =C68/C65 -> 0.7766527695 | D69: 0.9274141283 | E69: 0.2751388032 | F69: 0.5096446701 | G69: 0.7212189616 | K69: Recharge Change (%) | L69: =L68/L65 -> 0.6187122736 | M69: =M68/M65 -> 1.276744186 | N69: =N68/N65 -> 0.2459893048 | O69: =O68/O65 -> 0.4568965517 | P69: =P68/P65 -> 0.2901477833 | Q69: =Q68/Q65 -> 1.939577039
A70: Precipitation Wet Year 2010 (mm) | B70: 127.5133333 | C70: 304.5 | D70: 101.8 | E70: 209.8035714 | F70: 94.6 | G70: 105.4 | K70: Precipitation Wet Year 2010 (mm) | L70: 47.88888889 | M70: 82.73793103 | N70: 31 | O70: 0.2000000003 | P70: 34.74137931 | Q70: 102.4285714
A71: Precipitation Wet Year 2010 (m3) | B71: =(B70/1000)*SUM($B$7:$B$10) -> 6149202.233 | C71: =(C70/1000)*SUM($B$7:$B$10) -> 14684206.2 | D71: 4909202.598 | E71: 10117566.19 | F71: 4561989.841 | G71: 5082808.977 | K71: Precipitation Wet Year 2010 (m3) | L71: =(L70/1000)*SUM($B$7:$B$10) -> 2309393.495 | M71: =(M70/1000)*SUM($B$7:$B$10) -> 3989953.497 | N71: 1494943.817 | O71: 9644.798833 | P71: 1675368.071 | Q71: 4939514.823
A72: Recharge Change (%) | B72: =B71/B65 -> 1.356524823 | C72: =C71/C65 -> 1.813579512 | D72: 0.6597537265 | E72: 1.294284833 | F72: 0.9604060914 | G72: 1.189616253 | K72: Recharge Change (%) | L72: =L71/L65 -> 0.843114241 | M72: =M71/M65 -> 1.924137931 | N72: =N71/N65 -> 0.8288770054 | O72: =O71/O65 -> 0.008620689668 | P72: =P71/P65 -> 1.240763547 | Q72: =Q71/Q65 -> 3.094518774
A73: Climate Change (mm) | K73: Climate Change (mm)
A74: Climate Change (m3) | K74: Climate Change (m3)
A75: Recharge Change (%) | K75: Recharge Change (%)
A77: Recharge Dry Year 2009 (m3) | B77: =B$62*B69 -> 114535.2565 | C77: =C$62*C69 -> 224483.1599 | D77: 697496.9732 | E77: 222413.3347 | F77: 384077.6809 | G77: 378217.4364 | H77: =SUM(B77:G77) -> 2021223.842 | K77: Recharge Dry Year 2009 (m3) | L77: =L$62*L69 -> 329606.0547 | M77: =M$62*M69 -> 576433.3138 | N77: 59419.10125 | O77: 73531.68504 | P77: 29562.31053 | Q77: 288947.0548 | R77: =SUM(L77:Q77) -> 1357499.52
A78: Recharge Wet Year 2010 (m3) | B78: =B$62*B72 -> 190021.2651 | C78: =C$62*C72 -> 524195.7223 | D78: 496192.8153 | E78: 1046258.115 | F78: 723779.8528 | G78: 623851.6087 | H78: =SUM(B78:G78) -> 3604299.38 | K78: Recharge Wet Year 2010 (m3) | L78: =L$62*L72 -> 449151.5208 | M78: =M$62*M72 -> 868723.1286 | N78: 200216.5368 | O78: 1387.390286 | P78: 126417.7753 | Q78: 461003.6455 | R78: =SUM(L78:Q78) -> 2106899.997
A79: Recharge Climate Change (m3) | B79: =B$62*B75 -> 0 | C79: =C$62*C75 -> 0 | D79: 0 | E79: 0 | F79: 0 | G79: 0 | H79: =H62*A99/100 -> 2828975.119 | K79: Recharge Climate Change (m3) | L79: =L$62*L75 -> 0 | M79: =M$62*M75 -> 0 | N79: 0 | O79: 0 | P79: 0 | Q79: 0 | R79: =R62*A99/100 -> 1417745.145
A81: Total Precipitation | B81: =0.987*SUM(B7:B10) -> 47597082.17 | C81: m3
A82: Minimum Recharge % | B82: =(H61/B$81)*100 -> 0.9800072393 | C82: %
A83: Recharge (%) | B83: =((H62+R62)/B$81)*100 -> 10.30561783 | C83: %
A84: Runoff (%) | B84: =((H42+R42)/B81)*100 -> 53.61759148 | C84: %
A85: Evapotranspiration (%) | B85: =100-B84-B83 -> 36.07679069 | C85: %
A86: Recharge Components
A87: Groundwater Use | B87: =((H59+R59)/B81)*100 -> 0.6330800033 | C87: %
A88: Flux to Sea | B88: =((H36+R36)/B81)*100 -> 0.7950739473 | C88: %
A89: Baseflow to Creeks | B89: =B83-B87-B88 -> 8.877463874 | C89: %
A90: Wet/Dry/Climate Effects
A91: Recharge (%) - Dry Year 2009 | B91: =((H77+R77)/$B$81)*100 -> 7.098593459 | C91: %
A92: Recharge (%) - Wet Year 2010 | B92: =((H78+R78)/$B$81)*100 -> 11.99905355 | C92: %
A93: Recharge (%) - Climate Change | B93: 8.922228149 | C93: %
E94: Total Recharge
E95: =(B83*B81)/100 -> 4905173.384
A97: =(843.4/987)*1000 -> 854.508612
A98: =(A97/1000)*SUM(B7:B10) -> 41207818.25
A99: =A98/B81*100 -> 86.57635379
E102: Percent Change in Recharge | G102: Volume
E103: =((B91/B83)*100)-100 -> -31.11918587 | G103: =(B91*B$81)/100 -> 3378723.362
E104: =((B92/B83)*100)-100 -> 16.4321611 | G104: =(B92*B$81)/100 -> 5711199.377
E105: =((B93/B83)*100)-100 -> -13.42364621 | G105: =(B93*B$81)/100 -> 4246720.263

Sheet GW Budgets - NSSI Aquifer U-D (hidden)
A1: NORTH SALT SPRING ISLAND AQUIFER (USER-DEFINED VALUES)
A3: WET PERIOD | K3: DRY PERIOD
A5: Input Data | K5: Distributions
A6: Storage / Specific Yield | B6: 0.001 | C6: Unitless | K6: Total Agricultural Demand | L6: ='Standard and U-D Numbers'!B17 -> 50000 | M6: m3
A7: Area - OW #373 | B7: 2722559.379 | C7: m2 | L7: APRIL | M7: MAY | N7: JUNE | O7: JULY | P7: AUGUST | Q7: SEPTEMBER
A8: Area - OW #281 | B8: 5111144.397 | C8: m2 | K8: Monthly Distribution of Ag Demand | L8: =L9/$R$9 -> 0.1160066718 | M8: =M9/$R$9 -> 0.1676942971 | N8: 0.1924511329 | O8: 0.2164958114 | P8: 0.1876347008 | Q8: 0.119717386 | R8: =SUM(L8:Q8) -> 1 | W8: 61.9
A9: Area - OW #438 | B9: 38953256.91 | C9: m2 | K9: RefET | L9: 61.9 | M9: 89.48 | N9: 102.69 | O9: 115.52 | P9: 100.12 | Q9: 63.88 | R9: =SUM(L9:Q9) -> 533.59 | W9: 89.48
A10: Area - Harbourview Garden | B10: 1437033.408 | C10: m2 | K10: Monthly Res Demand - WET | L10: OCTOBER | M10: NOVEMBER | N10: DECEMBER | O10: JANUARY | P10: FEBRUARY | Q10: MARCH | W10: 102.69
A11: ICI Water Use - Per Parcel | B11: ='Standard and U-D Numbers'!C17*30/1000 -> 3 | C11: m3 | L11: 0.073293213 | M11: 0.0771845879 | N11: 0.0771845879 | O11: 0.05987522225 | P11: 0.05987522225 | Q11: 0.06650858107 | W11: 115.52
A12: Res Water Use / Year - Per Ext Parcel | B12: ='Standard and U-D Numbers'!D17*365/1000 -> 182.5 | C12: m3 | K12: Monthly Res Demand - DRY | L12: APRIL | M12: MAY | N12: JUNE | O12: JULY | P12: AUGUST | Q12: SEPTEMBER | W12: 100.12
A13: QIRReturnIN | B13: 0 | C13: Unitless | L13: 0.06650858107 | M13: 0.1035614948 | N13: 0.1035614948 | O13: 0.1195769009 | P13: 0.1195769009 | Q13: 0.073293213 | W13: 63.88
A14: Number of Residential Connections | B14: 769
A15: Number of Commercial Connections | B15: 19
A16: Aquifer Hydraulic Conductivity | B16: ='Standard and U-D Numbers'!E17 -> 1e-07 | C16: m/s | E16: Assumed Sat Flow Depth | G16: 30 | H16: m
A17: Hydraulic Gradient | B17: ='Standard and U-D Numbers'!F17 -> 0.05 | C17: Unitless | E17: Length of Shoreline | G17: 40 | H17: km
A18: WET PERIOD | K18: DRY PERIOD
B19: OCTOBER | C19: NOVEMBER | D19: DECEMBER | E19: JANUARY | F19: FEBRUARY | G19: MARCH | L19: APRIL | M19: MAY | N19: JUNE | O19: JULY | P19: AUGUST | Q19: SEPTEMBER
A20: Wet Season SW Flow (m3) | B20: 177999.9709 | C20: 1740563.345 | D20: 6165449.542 | E20: 7478932.844 | F20: 6938907.055 | G20: 4797670.255 | K20: Dry Season SW Flow (m3) | L20: 1374278.4 | M20: 583526.9376 | N20: 229879.296 | O20: 113607.0144 | P20: 77459.328 | Q20: 94950.144
A21: Direct flow composition | B21: ='Standard and U-D Numbers'!P17/100 -> 0.5 | C21: ='Standard and U-D Numbers'!Q17/100 -> 0.8 | D21: ='Standard and U-D Numbers'!R17/100 -> 0.8 | E21: ='Standard and U-D Numbers'!G17/100 -> 0.8 | F21: ='Standard and U-D Numbers'!H17/100 -> 0.8 | G21: ='Standard and U-D Numbers'!I17/100 -> 0.8 | K21: Direct flow composition | L21: ='Standard and U-D Numbers'!J17/100 -> 0.6 | M21: ='Standard and U-D Numbers'!K17/100 -> 0.25 | N21: ='Standard and U-D Numbers'!L17/100 -> 0.1 | O21: ='Standard and U-D Numbers'!M17/100 -> 0.1 | P21: ='Standard and U-D Numbers'!N17/100 -> 0.1 | Q21: ='Standard and U-D Numbers'!O17/100 -> 0.1
A22: Groundwater composition | B22: =1-B21 -> 0.5 | C22: =1-C21 -> 0.2 | D22: 0.2 | E22: 0.2 | F22: 0.2 | G22: 0.2 | K22: Groundwater composition | L22: =1-L21 -> 0.4 | M22: 0.75 | N22: 0.9 | O22: 0.9 | P22: 0.9 | Q22: 0.9
B23: OCTOBER | C23: NOVEMBER | D23: DECEMBER | E23: JANUARY | F23: FEBRUARY | G23: MARCH | H23: TOTAL | L23: APRIL | M23: MAY | N23: JUNE | O23: JULY | P23: AUGUST | Q23: SEPTEMBER | R23: TOTAL
A24: Storage Change | K24: Storage Change
A25: Change In GW Level - OW 373 | B25: 0.06146153846 | C25: 3.52414359 | D25: 2.383461538 | E25: 0.6106820513 | F25: 0.403 | G25: 0.073 | K25: Change In GW Level - OW 373 | L25: -1.244 | M25: -3.592 | N25: -0.165 | O25: -0.5379312026 | P25: -1.614015168 | Q25: -0.2150536295
A26: Associated Volume | B26: =($B$7*B25)*$B$6 -> 167.332688 | C26: =($B$7*C25)*$B$6 -> 9594.690183 | D26: 6489.115566 | E26: 1662.618146 | F26: 1097.19143 | G26: 198.7468347 | H26: =SUM(B26:G26) -> 19209.69485 | K26: Associated Volume | L26: =($B$7*L25)*$B$6 -> -3386.863867 | M26: =($B$7*M25)*$B$6 -> -9779.433289 | N26: -449.2222975 | O26: -1464.549641 | P26: -4394.252133 | Q26: -585.4962759 | R26: =SUM(L26:Q26) -> -20059.8175
A27: Change in GW Level - Harbourview | B27: -0.56 | C27: 4.02 | D27: 1.76 | E27: 0.35 | F27: 0.52 | G27: 0.26 | K27: Change in GW Level - Harbourview | L27: -1.48 | M27: -1.25 | N27: -1.08 | O27: -0.87 | P27: -1.68 | Q27: -1.51
A28: Associated Volume | B28: =($B$10*B27)*$B$6 -> -804.7387087 | C28: =($B$10*C27)*$B$6 -> 5776.874302 | D28: 2529.178799 | E28: 502.9616929 | F28: 747.2573724 | G28: 373.6286862 | H28: =SUM(B28:G28) -> 9125.162143 | K28: Associated Volume | L28: =($B$10*L27)*$B$6 -> -2126.809444 | M28: =($B$10*M27)*$B$6 -> -1796.291761 | N28: -1551.996081 | O28: -1250.219065 | P28: -2414.216126 | Q28: -2169.920447 | R28: =SUM(L28:Q28) -> -11309.45292
A29: Change in GW Level - OW #281 | B29: 0.243 | C29: 0.524 | D29: 0.146 | E29: -0.1651562286 | F29: -0.09413618766 | G29: 0.04874356639 | K29: Change in GW Level - OW #281 | L29: -0.3471361877 | M29: -0.2391963106 | N29: -0.09413618766 | O29: -0.004378355303 | P29: -0.2264131038 | Q29: -0.023191005
A30: Associated Volume | B30: =($B$8*B29)*$B$6 -> 1242.008088 | C30: =($B$8*C29)*$B$6 -> 2678.239664 | D30: 746.227082 | E30: -844.1373327 | F30: -481.1436481 | G30: 249.1354062 | H30: =SUM(B30:G30) -> 3590.32926 | K30: Associated Volume | L30: =($B$8*L29)*$B$6 -> -1774.263181 | M30: =($B$8*M29)*$B$6 -> -1222.566883 | N30: -481.1436481 | O30: -22.37840617 | P30: -1157.230067 | Q30: -118.5325753 | R30: =SUM(L30:Q30) -> -4776.11476
A31: Change in GW Level - OW #438 | B31: 0.1723 | C31: 1.391 | D31: 2.1048 | E31: 0.4466 | F31: 0.5124 | G31: 0.0301 | K31: Change in GW Level - OW #438 | L31: -1.7498 | M31: -1.173 | N31: -0.9679 | O31: -0.5378 | P31: -0.9785 | Q31: 0.1547
A32: Associated Volume | B32: =($B$9*B31)*$B$6 -> 6711.646165 | C32: =($B$9*C31)*$B$6 -> 54183.98036 | D32: 81988.81514 | E32: 17396.52453 | F32: 19959.64884 | G32: 1172.493033 | H32: =SUM(B32:G32) -> 181413.1081 | K32: Associated Volume | L32: =($B$9*L31)*$B$6 -> -68160.40893 | M32: =($B$9*M31)*$B$6 -> -45692.17035 | N32: -37702.85736 | O32: -20949.06156 | P32: -38115.76188 | Q32: 6026.068843 | R32: =SUM(L32:Q32) -> -204594.1912
A33: TOTAL ΔSGW (m3) | B33: =SUM(B32+B30+B28+B26) -> 7316.248233 | C33: =SUM(C32+C30+C28+C26) -> 72233.7845 | D33: 91753.33658 | E33: 18717.96704 | F33: 21322.95399 | G33: 1994.00396 | H33: 213338.2943 | K33: TOTAL ΔSGW | L33: =SUM(L32+L30+L28+L26) -> -75448.34543 | M33: =SUM(M32+M30+M28+M26) -> -58490.46228 | N33: -40185.21939 | O33: -23686.20868 | P33: -46081.46021 | Q33: 3152.119546 | R33: -240739.5764
A35: Groundwater Flux Out (QGWout) | K35: Groundwater Flux Out (QGWout)
B36: =$B16*$B17*($G16*($G17*1000))*60*60*24*31 -> 16070.4 | C36: =$B16*$B17*($G16*($G17*1000))*60*60*24*30 -> 15552 | D36: =$B16*$B17*($G16*($G17*1000))*60*60*24*31 -> 16070.4 | E36: =$B16*$B17*($G16*($G17*1000))*60*60*24*31 -> 16070.4 | F36: =$B16*$B17*($G16*($G17*1000))*60*60*24*28 -> 14515.2 | G36: =$B16*$B17*($G16*($G17*1000))*60*60*24*31 -> 16070.4 | H36: =SUM(B36:G36) -> 94348.8 | L36: =$B16*$B17*($G16*($G17*1000))*60*60*24*30 -> 15552 | M36: =$B16*$B17*($G16*($G17*1000))*60*60*24*31 -> 16070.4 | N36: =$B16*$B17*($G16*($G17*1000))*60*60*24*30 -> 15552 | O36: 16070.4 | P36: 16070.4 | Q36: =$B16*$B17*($G16*($G17*1000))*60*60*24*30 -> 15552 | R36: =SUM(L36:Q36) -> 94867.2
A38: Groundwater Flux to SW (QSWout) | K38: Groundwater Flux to SW (QSWout)
B39: =(1-B$21)*B20 -> 88999.98545 | C39: =(1-C$21)*C20 -> 348112.6691 | D39: 1233089.908 | E39: 1495786.569 | F39: 1387781.411 | G39: 959534.0509 | H39: =SUM(B39:G39) -> 5513304.593 | L39: =(1-L$21)*L20 -> 549711.36 | M39: =(1-M$21)*M20 -> 437645.2032 | N39: 206891.3664 | O39: 102246.313 | P39: 69713.3952 | Q39: 85455.1296 | R39: =SUM(L39:Q39) -> 1451662.767
A41: Runoff to SW | K41: Runoff to SW
B42: =B$21*B$20 -> 88999.98545 | C42: =C$21*C$20 -> 1392450.676 | D42: 4932359.633 | E42: 5983146.275 | F42: 5551125.644 | G42: 3838136.204 | H42: =SUM(B42:G42) -> 21786218.42 | L42: =L$21*L$20 -> 824567.04 | M42: =M$21*M$20 -> 145881.7344 | N42: 22987.9296 | O42: 11360.70144 | P42: 7745.9328 | Q42: 9495.0144 | R42: =SUM(L42:Q42) -> 1022038.353
A44: Groundwater Use | K44: Groundwater Use
A45: Residential / Domestic | K45: Residential / Domestic
A46: External Parcels | B46: =$B$14*($B$12*L11) -> 10286.15274 | C46: =$B$14*($B$12*M11) -> 10832.27803 | D46: 10832.27803 | E46: 8403.038378 | F46: 8403.038378 | G46: 9333.980539 | H46: =SUM(B46:G46) -> 58090.7661 | K46: External Parcels | L46: =$B$14*($B$12*L13) -> 9333.980539 | M46: =$B$14*($B$12*M13) -> 14534.07909 | N46: 14534.07909 | O46: 16781.72122 | P46: 16781.72122 | Q46: 10286.15274 | R46: =SUM(L46:Q46) -> 82251.7339
A47: Maracaibo Estates WSS | B47: 545.8492664 | C47: 336.0471206 | D47: 336.0016597 | E47: 580.4450266 | F47: 335.274285 | G47: 515.5268328 | H47: 2649.144191 | K47: Maracaibo Estates WSS | L47: 593.6741543 | M47: 819.2967002 | N47: 920.8563955 | O47: 1243.674388 | P47: 1261.085921 | Q47: 995.1849997 | R47: 5833.772559
A48: Harbourview WSS | B48: 209.1293242 | C48: 112.3839403 | D48: 132.3812898 | E48: 170.2193228 | F48: 119.9031765 | G48: 104.6464917 | H48: 848.6635453 | K48: Harbourview WSS | L48: 242.0612146 | M48: 220.3627175 | N48: 174.6699468 | O48: 267.5420603 | P48: 224.4723847 | Q48: 186.5807079 | R48: 1315.689032
A49: Scott Point WSS | B49: 422.4000451 | C49: 310.4980152 | D49: 310.4980152 | E49: 312.4982952 | F49: 312.4982952 | G49: 395.5553778 | H49: 2063.948044 | K49: Scott Point WSS | L49: 395.5553778 | M49: 496.7740938 | N49: 496.7740938 | O49: 731.4205807 | P49: 731.4205807 | Q49: 422.4000451 | R49: 3274.344772
A50: High Hill WSS | B50: 101.3778516 | C50: 70.64626968 | D50: 69.7825122 | E50: 77.23810308 | F50: 73.10115936 | G50: 78.28370424 | H50: 470.4296002 | K50: High Hill WSS | L50: 107.378693 | M50: 154.6125889 | N50: 124.1992334 | O50: 180.3434696 | P50: 170.7512155 | Q50: 106.8786229 | R50: 844.1638235
A51: Cedar Lane WSS | B51: 246.11 | C51: 296.37 | D51: 280.361 | E51: 257.583 | F51: 299.688 | G51: 268.323 | H51: 1648.435 | K51: Cedar Lane WSS | L51: 281.646 | M51: 365.402 | N51: 336.708 | O51: 301.174 | P51: 371.931 | Q51: 304.059 | R51: 1960.92
A52: The Cottages WSS | B52: 294.5 | C52: 210 | D52: 217 | E52: 186 | F52: 196 | G52: 217 | H52: 1320.5 | K52: The Cottages WSS | L52: 240 | M52: 325.5 | N52: 348 | O52: 616.9 | P52: 616.9 | Q52: 348 | R52: 2495.3
A53: Merchants Mews WSS | B53: 39.8958 | C53: 29.9662 | D53: 23.5633 | E53: 48.0913 | F53: 54.4115 | G53: 69.6342 | H53: 265.5623 | K53: Merchants Mews WSS | L53: 67.5869 | M53: 77.8627 | N53: 72.2647 | O53: 68.7099 | P53: 33.8166 | Q53: 35.8332 | R53: 356.074
A54: ICI | B54: =$B$15*$B$11 -> 57 | C54: =$B$15*$B$11 -> 57 | D54: =$B$15*$B$11 -> 57 | E54: 57 | F54: 57 | G54: 57 | H54: 342 | K54: ICI | L54: =$B$15*$B$11 -> 57 | M54: =$B$15*$B$11 -> 57 | N54: =$B$15*$B$11 -> 57 | O54: 57 | P54: 57 | Q54: 57 | R54: 342
A55: Agricultural | B55: 0 | C55: 0 | D55: 0 | E55: 0 | F55: 0 | G55: 0 | H55: 0 | K55: Agricultural | L55: =$L$6*L8 -> 5800.333589 | M55: =$L$6*M8 -> 8384.714856 | N55: 9622.556645 | O55: 10824.79057 | P55: 9381.73504 | Q55: 5985.8693 | R55: 50000
A57: SubTotal GWpumpOUT | B57: =SUM(B45:B55) -> 12202.41503 | C57: =SUM(C45:C55) -> 12255.18957 | D57: 12258.8658 | E57: 10092.11343 | F57: 9850.914794 | G57: 11039.95015 | H57: 67699.44878 | K57: SubTotal GWpumpOUT | L57: =SUM(L45:L55) -> 17119.21647 | M57: =SUM(M45:M55) -> 25435.60475 | N57: 26687.1081 | O57: 31073.27619 | P57: 29630.83396 | Q57: 18727.95862 | R57: 148673.9981
A58: QIRReturnIN | B58: =B57*$B$13 -> 0 | C58: =C57*$B$13 -> 0 | D58: 0 | E58: 0 | F58: 0 | G58: 0 | H58: 0 | K58: QIRReturnIN | L58: =L57*$B$13 -> 0 | M58: =M57*$B$13 -> 0 | N58: 0 | O58: 0 | P58: 0 | Q58: 0 | R58: 0
A59: Total GWpumpOUT | B59: =B57-B58 -> 12202.41503 | C59: =C57-C58 -> 12255.18957 | D59: 12258.8658 | E59: 10092.11343 | F59: 9850.914794 | G59: 11039.95015 | H59: 67699.44878 | K59: Total GWpumpOUT | L59: =L57-L58 -> 17119.21647 | M59: =M57-M58 -> 25435.60475 | N59: 26687.1081 | O59: 31073.27619 | P59: 29630.83396 | Q59: 18727.95862 | R59: 148673.9981
A61: Minimum Recharge (R - QSWout) | B61: =B59+B33+B36 -> 35589.06326 | C61: 100040.9741 | D61: 120082.6024 | E61: 44880.48047 | F61: 45689.06879 | G61: 29104.35411 | H61: =SUM(B61:G61) -> 375386.5431
A62: Recharge (QGWout + QSWout + deltaS + QGWpump) | B62: =B61+B39 -> 124589.0487 | C62: =C61+C39 -> 448153.6432 | D62: 1353172.511 | E62: 1540667.049 | F62: 1433470.48 | G62: 988638.405 | H62: =SUM(B62:G62) -> 5888691.137 | K62: Recharge (QGWout + QSWout - deltaS + QGWpump) | L62: =L59+L39+L36+L33 -> 506934.231 | M62: =M59+M39+M36+M33 -> 420660.7457 | N62: 208945.2551 | O62: 125703.7805 | P62: 69333.16895 | Q62: 122887.2078 | R62: =R59+R39+R36+R33 -> 1454464.389
A64: Precpitation (mm) | B64: 94 | C64: 167.9 | D64: 154.3 | E64: 162.1 | F64: 98.5 | G64: 88.6 | L64: 56.8 | M64: 43 | N64: 37.4 | O64: 23.2 | P64: 28 | Q64: 33.1
A65: Precipitation (m3) | B65: =(B64/1000)*SUM($B7:$B10) -> 4533055.444 | C65: =(C64/1000)*SUM($B7:$B10) -> 8096808.608 | D65: 7440962.288 | E65: 7817109.442 | F65: 4750063.418 | G65: 4272645.876 | H65: =SUM(B65:G65) -> 36910645.08 | L65: =(L64/1000)*SUM($B7:$B10) -> 2739122.864 | M65: =(M64/1000)*SUM($B7:$B10) -> 2073631.746 | N65: 1803577.379 | O65: 1118796.663 | P65: 1350271.835 | Q65: 1596214.204 | R65: =R62+R42+R39+R36 -> 4023032.709
A67: Precipitation Dry Year 2009 (mm) | B67: 76.85862069 | C67: 130.4 | D67: 143.1 | E67: 44.6 | F67: 50.2 | G67: 63.9 | K67: Precipitation Dry Year 2009 (mm) | L67: 35.14285714 | M67: 54.9 | N67: 9.2 | O67: 10.6 | P67: 8.124137931 | Q67: 64.2
A68: Precipitation Dry Year 2009 (m3) | B68: =(B67/1000)*SUM($B$7:$B$10) -> 3706429.67 | C68: =(C67/1000)*SUM($B$7:$B$10) -> 6288408.829 | D68: 6900853.554 | E68: 2150790.136 | F68: 2420844.503 | G68: 3081513.222 | K68: Precipitation Dry Year 2009 (m3) | L68: =(L67/1000)*SUM($B$7:$B$10) -> 1694728.935 | M68: 2647497.276 | N68: 443660.7456 | O68: 511174.3374 | P68: 391778.3796 | Q68: 3095980.421
A69: Recharge Change (%) | B69: =B68/B65 -> 0.817644901 | C69: =C68/C65 -> 0.7766527695 | D69: 0.9274141283 | E69: 0.2751388032 | F69: 0.5096446701 | G69: 0.7212189616 | K69: Recharge Change (%) | L69: =L68/L65 -> 0.6187122736 | M69: 1.276744186 | N69: 0.2459893048 | O69: 0.4568965517 | P69: 0.2901477833 | Q69: 1.939577039
A70: Precipitation Wet Year 2010 (mm) | B70: 127.5133333 | C70: 304.5 | D70: 101.8 | E70: 209.8035714 | F70: 94.6 | G70: 105.4 | K70: Precipitation Wet Year 2010 (mm) | L70: 47.88888889 | M70: 82.73793103 | N70: 31 | O70: 0.2000000003 | P70: 34.74137931 | Q70: 102.4285714
A71: Precipitation Wet Year 2010 (m3) | B71: =(B70/1000)*SUM($B$7:$B$10) -> 6149202.233 | C71: =(C70/1000)*SUM($B$7:$B$10) -> 14684206.2 | D71: 4909202.598 | E71: 10117566.19 | F71: 4561989.841 | G71: 5082808.977 | K71: Precipitation Wet Year 2010 (m3) | L71: =(L70/1000)*SUM($B$7:$B$10) -> 2309393.495 | M71: =(M70/1000)*SUM($B$7:$B$10) -> 3989953.497 | N71: 1494943.817 | O71: 9644.798833 | P71: 1675368.071 | Q71: 4939514.823
A72: Recharge Change (%) | B72: =B71/B65 -> 1.356524823 | C72: =C71/C65 -> 1.813579512 | D72: 0.6597537265 | E72: 1.294284833 | F72: 0.9604060914 | G72: 1.189616253 | K72: Recharge Change (%) | L72: =L71/L65 -> 0.843114241 | M72: 1.924137931 | N72: 0.8288770054 | O72: 0.008620689668 | P72: 1.240763547 | Q72: 3.094518774
A73: Climate Change (mm) | K73: Climate Change (mm)
A74: Climate Change (m3) | K74: Climate Change (m3)
A75: Recharge Change (%) | K75: Recharge Change (%)
A77: Recharge Dry Year 2009 (m3) | B77: =B$62*B69 -> 101869.6004 | C77: =C$62*C69 -> 348059.7681 | D77: 1254951.305 | E77: 423897.2881 | F77: 730560.5897 | G77: 713024.7639 | H77: =SUM(B77:G77) -> 3572363.315 | K77: Recharge Dry Year 2009 (m3) | L77: =L$62*L69 -> 313646.4307 | M77: =M$62*M69 -> 537076.1613 | N77: 51398.29805 | O77: 57433.62384 | P77: 20116.86528 | Q77: 238349.2066 | R77: =SUM(L77:Q77) -> 1218020.586
A78: Recharge Wet Year 2010 (m3) | B78: =B$62*B72 -> 169008.1372 | C78: =C$62*C72 -> 812762.2653 | D78: 892760.6066 | E78: 1994061.994 | F78: 1376713.781 | G78: 1176100.315 | H78: =SUM(B78:G78) -> 6421407.099 | K78: Recharge Wet Year 2010 (m3) | L78: =L$62*L72 -> 427403.4694 | M78: =M$62*M72 -> 809409.2968 | N78: 173189.9173 | O78: 1083.653282 | P78: 86026.06862 | Q78: 380276.7716 | R78: =SUM(L78:Q78) -> 1877389.177
A79: Recharge Climate Change (m3) | B79: =B$62*B75 -> 0 | C79: =C$62*C75 -> 0 | D79: 0 | E79: 0 | F79: 0 | G79: 0 | H79: =H62*A99/100 -> 5098214.072 | K79: Recharge Climate Change (m3) | L79: =L$62*L75 -> 0 | M79: =M$62*M75 -> 0 | N79: 0 | O79: 0 | P79: 0 | Q79: 0 | R79: =R62*A99/100 -> 1259222.235
A81: Total precip | B81: =0.987*SUM(B7:B10) -> 47597082.17
A82: Minimum Recharge % | B82: =(H61/B$81)*100 -> 0.7886755364 | C82: % | E82: Total Recharge
A83: Recharge (%) | B83: =((H62+R62)/B$81)*100 -> 15.42774303 | C83: % | E83: =(B83*B81)/100 -> 7343155.526
A84: Runoff (%) | B84: =((H42+R42)/B81)*100 -> 47.91944323 | C84: %
A85: Evapotranspiration (%) | B85: =100-B84-B83 -> 36.65281374 | C85: %
A86: Recharge Components
A87: Groundwater Use | B87: =((H59+R59)/B81)*100 -> 0.454593931 | C87: %
A88: Flux to Sea | B88: =((H36+R36)/B81)*100 -> 0.3975369737 | C88: %
A89: Baseflow to Creeks | B89: =B83-B87-B88 -> 14.57561212 | C89: %
E90: Percent Change in Recharge | G90: Volume
A91: Recharge (%) - Dry Year 2009 | B91: =((H77+R77)/$B$81)*100 -> 10.06444866 | C91: % | E91: =((B91/B83)*100)-100 -> -34.76395967 | G91: =(B91*B$81)/100 -> 4790383.9
A92: Recharge (%) - Wet Year 2010 | B92: =((H78+R78)/$B$81)*100 -> 17.43551474 | C92: % | E92: =((B92/B83)*100)-100 -> 13.01403391 | G92: =(B92*B$81)/100 -> 8298796.276
A93: Recharge (%) - Climate Change | B93: 13.35677739 | C93: % | E93: =((B93/B83)*100)-100 -> -13.42364621 | G93: =(B93*B$81)/100 -> 6357436.308
A97: =(843.4/987)*1000 -> 854.508612
A98: =(A97/1000)*SUM(B7:B10) -> 41207818.25
A99: =A98/B81*100 -> 86.57635379

Sheet GW Budgets - NCSSI Aquifer
A1: NORTH CENTRAL SALT SPRING ISLAND AQUIFER
A3: WET PERIOD | K3: DRY PERIOD
A5: Input Data | K5: Distributions
A6: Storage / Specific Yield | B6: 0.001 | C6: Unitless | K6: Total Agricultural Demand | L6: 60937 | M6: m3
A7: Area - OW #373 | B7: 28105841.4 | C7: m2 | L7: APRIL | M7: MAY | N7: JUNE | O7: JULY | P7: AUGUST | Q7: SEPTEMBER
A8: Area - Harbourview Garden | B8: 8190938.417 | C8: m2 | K8: Monthly Distribution of Ag Demand | L8: =L9/$R$9 -> 0.1160066718 | M8: =M9/$R$9 -> 0.1676942971 | N8: 0.1924511329 | O8: 0.2164958114 | P8: 0.1876347008 | Q8: 0.119717386 | R8: =SUM(L8:Q8) -> 1
A9: ICI Water Use - Per Parcel | B9: 2.25 | C9: m3 | K9: RefET | L9: 61.9 | M9: 89.48 | N9: 102.69 | O9: 115.52 | P9: 100.12 | Q9: 63.88 | R9: =SUM(L9:Q9) -> 533.59
A10: Res Water Use / Year - Per Parcel | B10: =(225*2.1)/1000*365 -> 172.4625 | C10: m3 | K10: Monthly Res Demand Dist - WET | L10: OCTOBER | M10: NOVEMBER | N10: DECEMBER | O10: JANUARY | P10: FEBRUARY | Q10: MARCH
A11: QIRReturnIN | B11: 0 | C11: Unitless | L11: 0.073293213 | M11: 0.0771845879 | N11: 0.0771845879 | O11: 0.05987522225 | P11: 0.05987522225 | Q11: 0.06650858107
A12: Number of Residential Connections | B12: 427 | K12: Monthly Res Demand - DRY | L12: APRIL | M12: MAY | N12: JUNE | O12: JULY | P12: AUGUST | Q12: SEPTEMBER
A13: Number of Commercial Connections | B13: 14 | L13: 0.06650858107 | M13: 0.1035614948 | N13: 0.1035614948 | O13: 0.1195769009 | P13: 0.1195769009 | Q13: 0.073293213
A14: Aquifer Hydraulic Conductivity | B14: 2e-07 | C14: m/s | E14: Assumed Sat Flow Depth | G14: 30 | H14: m
A15: Hydraulic Gradient | B15: 0.1 | C15: Unitless | E15: Length of Shoreline | G15: 50 | H15: km
A16: WET PERIOD | K16: DRY PERIOD
B17: OCTOBER | C17: NOVEMBER | D17: DECEMBER | E17: JANUARY | F17: FEBRUARY | G17: MARCH | L17: OCTOBER | M17: NOVEMBER | N17: DECEMBER | O17: JANUARY | P17: FEBRUARY | Q17: MARCH
A18: Wet Season SW Flow (m3) | B18: 134053.92 | C18: 1310839.2 | D18: 4643274.24 | E18: 5632474.32 | F18: 5225774.4 | G18: 3613183.2 | K18: Dry Season SW Flow (m3) | L18: 1034985.6 | M18: 439461.1584 | N18: 173124.864 | O18: 85558.8096 | P18: 58335.552 | Q18: 71508.096
A19: Direct flow composition | B19: 0.5 | C19: 0.9 | D19: 0.9 | E19: 0.9 | F19: 0.9 | G19: 0.9 | K19: Direct flow composition | L19: 0.6 | M19: 0.25 | N19: 0.1 | O19: 0.1 | P19: 0.1 | Q19: 0.1
A20: Groundwater composition | B20: =1-B19 -> 0.5 | C20: =1-C19 -> 0.1 | D20: 0.1 | E20: 0.1 | F20: 0.1 | G20: 0.1 | K20: Groundwater composition | L20: =1-L19 -> 0.4 | M20: 0.75 | N20: 0.9 | O20: 0.9 | P20: 0.9 | Q20: 0.9
B21: OCTOBER | C21: NOVEMBER | D21: DECEMBER | E21: JANUARY | F21: FEBRUARY | G21: MARCH | H21: TOTAL | L21: APRIL | M21: MAY | N21: JUNE | O21: JULY | P21: AUGUST | Q21: SEPTEMBER | R21: TOTAL
A22: Storage Change | K22: Storage Change
A23: Change In GW Level - OW 373 | B23: 0.06146153846 | C23: 3.52414359 | D23: 2.383461538 | E23: 0.6106820513 | F23: 0.403 | G23: 0.073 | K23: Change In GW Level - OW 373 | L23: -1.244 | M23: -3.592 | N23: -0.165 | O23: -0.5379312026 | P23: -1.614015168 | Q23: -0.2150536295
A24: Associated Volume | B24: =($B$7*B23)*$B$6 -> 1727.428252 | C24: =($B$7*C23)*$B$6 -> 99049.02081 | D24: 66989.19199 | E24: 17163.73288 | F24: 11326.65409 | G24: 2051.726422 | H24: =SUM(B24:G24) -> 198307.7544 | K24: Associated Volume | L24: =($B$7*L23)*$B$6 -> -34963.6667 | M24: =($B$7*M23)*$B$6 -> -100956.1823 | N24: -4637.463831 | O24: -15119.00907 | P24: -45363.25433 | Q24: -6044.263203 | R24: =SUM(L24:Q24) -> -207083.8395
A25: Change in GW Level - Harbourview | B25: -0.56 | C25: 4.02 | D25: 1.76 | E25: 0.35 | F25: 0.52 | G25: 0.26 | K25: Change in GW Level - Harbourview | L25: -1.48 | M25: -1.25 | N25: -1.08 | O25: -0.87 | P25: -1.68 | Q25: -1.51
A26: Associated Volume | B26: =($B$8*B25)*$B$6 -> -4586.925514 | C26: =($B$8*C25)*$B$6 -> 32927.57244 | D26: 14416.05161 | E26: 2866.828446 | F26: 4259.287977 | G26: 2129.643988 | H26: =SUM(B26:G26) -> 52012.45895 | K26: Associated Volume | L26: =($B$8*L25)*$B$6 -> -12122.58886 | M26: =($B$8*M25)*$B$6 -> -10238.67302 | N26: -8846.213491 | O26: -7126.116423 | P26: -13760.77654 | Q26: -12368.31701 | R26: =SUM(L26:Q26) -> -64462.68534
A27: TOTAL ΔSGW (m3) | B27: =B26+B24 -> -2859.497261 | C27: =C26+C24 -> 131976.5932 | D27: 81405.2436 | E27: 20030.56133 | F27: 15585.94206 | G27: 4181.370411 | H27: =SUM(B27:G27) -> 250320.2134 | K27: TOTAL ΔSGW | L27: =L26+L24 -> -47086.25556 | M27: =M26+M24 -> -111194.8553 | N27: -13483.67732 | O27: -22245.12549 | P27: -59124.03087 | Q27: -18412.58021 | R27: =SUM(L27:Q27) -> -271546.5248
A29: Groundwater Flux Out (QGWout) | K29: Groundwater Flux Out (QGWout)
B30: =$B14*$B15*($G14*($G15*1000))*60*60*24*31 -> 80352 | C30: =$B14*$B15*($G14*($G15*1000))*60*60*24*30 -> 77760 | D30: =$B14*$B15*($G14*($G15*1000))*60*60*24*31 -> 80352 | E30: =$B14*$B15*($G14*($G15*1000))*60*60*24*31 -> 80352 | F30: =$B14*$B15*($G14*($G15*1000))*60*60*24*28 -> 72576 | G30: =$B14*$B15*($G14*($G15*1000))*60*60*24*31 -> 80352 | H30: =SUM(B30:G30) -> 471744 | L30: =$B14*$B15*($G14*($G15*1000))*60*60*24*30 -> 77760 | M30: =$B14*$B15*($G14*($G15*1000))*60*60*24*31 -> 80352 | N30: =$B14*$B15*($G14*($G15*1000))*60*60*24*30 -> 77760 | O30: 80352 | P30: 80352 | Q30: =$B14*$B15*($G14*($G15*1000))*60*60*24*30 -> 77760 | R30: =SUM(L30:Q30) -> 474336
A32: Groundwater Flux to SW (QSWout) | K32: Groundwater Flux to SW (QSWout)
B33: =(1-B$19)*B18 -> 67026.96 | C33: =(1-C$19)*C18 -> 131083.92 | D33: 464327.424 | E33: 563247.432 | F33: 522577.44 | G33: 361318.32 | H33: =SUM(B33:G33) -> 2109581.496 | L33: =(1-L$19)*L18 -> 413994.24 | M33: =(1-M$19)*M18 -> 329595.8688 | N33: 155812.3776 | O33: 77002.92864 | P33: 52501.9968 | Q33: 64357.2864 | R33: =SUM(L33:Q33) -> 1093264.698
A35: Runoff to SW | K35: Runoff to SW
B36: =B$19*B$18 -> 67026.96 | C36: =C$19*C$18 -> 1179755.28 | D36: 4178946.816 | E36: 5069226.888 | F36: 4703196.96 | G36: 3251864.88 | H36: =SUM(B36:G36) -> 18450017.78 | L36: =L$19*L$18 -> 620991.36 | M36: =M$19*M$18 -> 109865.2896 | N36: 17312.4864 | O36: 8555.88096 | P36: 5833.5552 | Q36: 7150.8096 | R36: =SUM(L36:Q36) -> 769709.3818
A38: Groundwater Use | K38: Groundwater Use
A39: Residential / Domestic | K39: Residential / Domestic
A40: External Parcels | B40: =$B$12*($B$10*L11) -> 5397.421229 | C40: =$B$12*($B$10*M11) -> 5683.987865 | D40: 5683.987865 | E40: 4409.300431 | F40: 4409.300431 | G40: 4897.790842 | H40: =SUM(B40:G40) -> 30481.78866 | K40: External Parcels | L40: =$B$12*($B$10*L13) -> 4897.790842 | M40: =$B$12*($B$10*M13) -> 7626.422528 | N40: 7626.422528 | O40: 8805.820856 | P40: 8805.820856 | Q40: 5397.421229 | R40: =SUM(L40:Q40) -> 43159.69884
A41: Mt. Belcher WSS | B41: 456.5335432 | C41: 293.4 | D41: 573.1 | E41: 346.7850067 | F41: 626.7600177 | G41: 443.6297774 | H41: =SUM(B41:G41) -> 2740.208345 | K41: Mt. Belcher WSS | L41: 511.5929054 | M41: 815.4299959 | N41: 660.6839059 | O41: 336.8280168 | P41: 760.5571649 | Q41: 593.8278202 | R41: =SUM(L41:Q41) -> 3678.919809
A42: Erskine WSS | B42: 313.089287 | C42: 258.8998823 | D42: 359.8276486 | E42: 281.0848064 | F42: 288.6313175 | G42: 313.8666686 | H42: =SUM(B42:G42) -> 1815.39961 | K42: Erskine WSS | L42: 281.812181 | M42: 553.486579 | N42: 406.5114571 | O42: 443.6530205 | P42: 460.5235642 | Q42: 320.5448763 | R42: =SUM(L42:Q42) -> 2466.531678
A43: ICI | B43: =$B$13*$B$9 -> 31.5 | C43: =$B$13*$B$9 -> 31.5 | D43: 31.5 | E43: 31.5 | F43: 31.5 | G43: 31.5 | H43: =SUM(B43:G43) -> 189 | K43: ICI | L43: =$B$13*$B$9 -> 31.5 | M43: =$B$13*$B$9 -> 31.5 | N43: 31.5 | O43: 31.5 | P43: 31.5 | Q43: 31.5 | R43: =SUM(L43:Q43) -> 189
A44: Agricultural | B44: 0 | C44: 0 | D44: 0 | E44: 0 | F44: 0 | G44: 0 | H44: 0 | K44: Agricultural | L44: =$L$6*L8 -> 7069.098559 | M44: =$L$6*M8 -> 10218.78738 | N44: 11727.39469 | O44: 13192.60526 | P44: 11433.89576 | Q44: 7295.218351 | R44: =$L$6*R8 -> 60937
A45: SubTotal GWpumpOUT | B45: =SUM(B39:B44) -> 6198.544059 | C45: =SUM(C39:C44) -> 6267.787747 | D45: 6648.415514 | E45: 5068.670244 | F45: 5356.191766 | G45: 5686.787288 | H45: 35226.39662 | K45: SubTotal GWpumpOUT | L45: =SUM(L39:L44) -> 12791.79449 | M45: =SUM(M39:M44) -> 19245.62649 | N45: 20452.51258 | O45: 22810.40715 | P45: 21492.29735 | Q45: 13638.51228 | R45: 110431.1503
A46: QIRReturnIN | B46: =B45*$B$11 -> 0 | C46: =C45*$B$11 -> 0 | D46: 0 | E46: 0 | F46: 0 | G46: 0 | H46: 0 | K46: QIRReturnIN | L46: =L45*$B$11 -> 0 | M46: =M45*$B$11 -> 0 | N46: 0 | O46: 0 | P46: 0 | Q46: 0 | R46: 0
A47: Total GWpumpOUT | B47: =B45-B46 -> 6198.544059 | C47: =C45-C46 -> 6267.787747 | D47: 6648.415514 | E47: 5068.670244 | F47: 5356.191766 | G47: 5686.787288 | H47: 35226.39662 | K47: Total GWpumpOUT | L47: =L45-L46 -> 12791.79449 | M47: =M45-M46 -> 19245.62649 | N47: 20452.51258 | O47: 22810.40715 | P47: 21492.29735 | Q47: 13638.51228 | R47: 110431.1503
A49: Minimum Recharge (R - QSWout) | B49: =B47+B27+B30 -> 83691.0468 | C49: =C47+C27+C30 -> 216004.381 | D49: 168405.6591 | E49: 105451.2316 | F49: 93518.13383 | G49: 90220.1577 | H49: =SUM(B49:G49) -> 757290.61
A50: Recharge (QGWout + QSWout + deltaS + QGWpump) | B50: =B49+B33 -> 150718.0068 | C50: =C49+C33 -> 347088.301 | D50: 632733.0831 | E50: 668698.6636 | F50: 616095.5738 | G50: 451538.4777 | H50: =SUM(B50:G50) -> 2866872.106 | K50: Recharge (QGWout + QSWout - deltaS + QGWpump) | L50: =L47+L33+L30+L27 -> 457459.7789 | M50: =M47+M33+M30+M27 -> 317998.6399 | N50: 240541.2129 | O50: 157920.2103 | P50: 95222.26328 | Q50: 137343.2185 | R50: 1406485.324
A52: Precpitation (mm) | B52: 94 | C52: 167.9 | D52: 154.3 | E52: 162.1 | F52: 98.5 | G52: 88.6 | L52: 56.8 | M52: 43 | N52: 37.4 | O52: 23.2 | P52: 28 | Q52: 33.1
A53: Precipitation (m3) | B53: =(B52/1000)*SUM($B$7:$B$8) -> 3411897.303 | C53: =(C52/1000)*SUM($B$7:$B$8) -> 6094229.332 | D53: 5600593.126 | E53: 5883708.009 | F53: 3575232.812 | G53: 3215894.692 | H53: =SUM(B53:G53) -> 27781555.27 | L53: =(L52/1000)*SUM($B$7:$B$8) -> 2061657.094 | M53: =(M52/1000)*SUM($B$7:$B$8) -> 1560761.532 | N53: =(N52/1000)*SUM($B$7:$B$8) -> 1357499.565 | O53: =(O52/1000)*SUM($B$7:$B$8) -> 842085.2918 | P53: =(P52/1000)*SUM($B$7:$B$8) -> 1016309.835 | Q53: =(Q52/1000)*SUM($B$7:$B$8) -> 1201423.412 | R53: =R50+R30+R27+R24 -> 1402190.96
A55: Precipitation Dry Year 2009 (mm) | B55: 76.85862069 | C55: 130.4 | D55: 143.1 | E55: 44.6 | F55: 50.2 | G55: 63.9 | K55: Precipitation Dry Year 2009 (mm) | L55: 35.14285714 | M55: 54.9 | N55: 9.2 | O55: 10.6 | P55: 8.124137931 | Q55: 64.2
A56: Precipitation Dry Year 2009 (m3) | B56: =(B55/1000)*SUM($B$7:$B$8) -> 2789720.432 | C56: =(C55/1000)*SUM($B$7:$B$8) -> 4733100.088 | D56: 5194069.192 | E56: 1618836.38 | F56: 1822098.347 | G56: 2319364.23 | K56: Precipitation Dry Year 2009 (m3) | L56: =(L55/1000)*SUM($B$7:$B$8) -> 1275572.548 | M56: 1992693.212 | N56: 333930.3743 | O56: 384745.8661 | P56: 294880.0457 | Q56: 2330253.264
A57: Recharge Change (%) | B57: =B56/B53 -> 0.817644901 | C57: =C56/C53 -> 0.7766527695 | D57: 0.9274141283 | E57: 0.2751388032 | F57: 0.5096446701 | G57: 0.7212189616 | K57: Recharge Change (%) | L57: =L56/L53 -> 0.6187122736 | M57: 1.276744186 | N57: 0.2459893048 | O57: 0.4568965517 | P57: 0.2901477833 | Q57: 1.939577039
A58: Precipitation Wet Year 2010 (mm) | B58: 127.5133333 | C58: 304.5 | D58: 101.8 | E58: 209.8035714 | F58: 94.6 | G58: 105.4 | K58: Precipitation Wet Year 2010 (mm) | L58: 47.88888889 | M58: 82.73793103 | N58: 31 | O58: 0.2000000003 | P58: 34.74137931 | Q58: 102.4285714
A59: Precipitation Wet Year 2010 (m3) | B59: =(B58/1000)*SUM($B$7:$B$8) -> 4628323.384 | C59: =(C58/1000)*SUM($B$7:$B$8) -> 11052369.45 | D59: 3695012.186 | E59: 7615194.037 | F59: 3433675.371 | G59: 3825680.593 | K59: Precipitation Wet Year 2010 (m3) | L59: =(L58/1000)*SUM($B$7:$B$8) -> 1738212.456 | M59: 3003120.465 | N59: 1125200.174 | O59: 7259.355975 | P59: 1261000.195 | Q59: 3717827.304
A60: Recharge Change (%) | B60: =B59/B53 -> 1.356524823 | C60: =C59/C53 -> 1.813579512 | D60: 0.6597537265 | E60: 1.294284833 | F60: 0.9604060914 | G60: 1.189616253 | K60: Recharge Change (%) | L60: =L59/L53 -> 0.843114241 | M60: 1.924137931 | N60: 0.8288770054 | O60: 0.008620689668 | P60: 1.240763547 | Q60: 3.094518774
A61: Climate Change (mm) | K61: Climate Change (mm)
A62: Climate Change (m3) | K62: Climate Change (m3)
A63: Recharge Change (%) | K63: Recharge Change (%)
A65: Recharge Dry Year 2009 (m3) | B65: =B$50*B57 -> 123233.8097 | C65: =C$50*C57 -> 269567.0902 | D65: 586805.6007 | E65: 183984.95 | F65: 313989.8254 | G65: 325658.112 | H65: =SUM(B65:G65) -> 1803239.388 | K65: Recharge Dry Year 2009 (m3) | L65: =L$50*L57 -> 283035.9799 | M65: =M$50*M57 -> 406002.9147 | N65: 59170.56573 | O65: 72153.19954 | P65: 27628.52861 | Q65: 266387.753 | R65: =SUM(L65:Q65) -> 1114378.942
A66: Recharge Wet Year 2010 (m3) | B66: =B$50*B60 -> 204452.7174 | C66: =C$50*C60 -> 629472.2314 | D66: 417448.0095 | E66: 865486.5381 | F66: 591701.942 | G66: 537157.5118 | H66: =SUM(B66:G66) -> 3245718.95 | K66: Recharge Wet Year 2010 (m3) | L66: =L$50*L60 -> 385690.8543 | M66: =M$50*M60 -> 611873.2451 | N66: 199379.0802 | O66: 1361.381125 | P66: 118148.3131 | Q66: 425011.1681 | R66: =SUM(L66:Q66) -> 1741464.042
A67: Recharge Climate Change (m3) | B67: =B$50*B63 -> 0 | C67: =C$50*C63 -> 0 | D67: 0 | E67: 0 | F67: 0 | G67: 0 | H67: =H50*A87/100 -> 2482033.337 | K67: Recharge Climate Change (m3) | L67: =L$50*L63 -> 0 | M67: =M$50*M63 -> 0 | N67: 0 | O67: 0 | P67: 0 | Q67: 0 | R67: =R50*A87/100 -> 1217683.71
A69: Total Precipitation | B69: =0.987*SUM(B7:B8) -> 35824921.68 | C69: m3
A70: Minimum Recharge % | B70: =(H49/B69)*100 -> 2.113865361 | C70: %
A71: Recharge (%) | B71: =((H50+R50)/B$69)*100 -> 11.92844877 | C71: %
A72: Runoff (%) | B72: =((H36+R36)/B69)*100 -> 53.64904168 | C72: %
A73: Evapotransipration (%) | B73: =100-B72-B71 -> 34.42250955 | C73: %
A74: Recharge Components
A75: Groundwater Use | B75: =((H47+R47)/B69)*100 -> 0.40658162 | C75: %
A76: Flux to Sea | B76: =((H30+R30)/B69)*100 -> 2.640843177 | C76: %
A77: Baseflow to Creeks | B77: =B71-B76-B75 -> 8.881023973 | C77: %
A78: Wet/Dry/Climate Effects
A79: Recharge (%) - Dry Year 2009 | B79: =((H65+R65)/$B$69)*100 -> 8.144102465 | C79: %
A80: Recharge (%) - Wet Year 2010 | B80: =((H66+R66)/$B$69)*100 -> 13.92098784 | C80: %
A81: Recharge (%) - Climate Change | B81: =((H67+R67)/$B$69)*100 -> 10.32721601 | C81: %
E84: Total Recharge
A85: =(843.4/987)*1000 -> 854.508612 | E85: =(B71*B69)/100 -> 4273357.43
A86: =(A85/1000)*SUM(B7:B8) -> 31015910.94
A87: =A86/B69*100 -> 86.57635379
E92: Percent Change in Recharge | G92: Volume
E93: =((B79/B71)*100)-100 -> -31.72538507 | G93: =(B79*B$69)/100 -> 2917618.33
E94: =((B80/B71)*100)-100 -> 16.70409214 | G94: =(B80*B$69)/100 -> 4987182.992
E95: =(B81/B71)*100-100 -> -13.42364621 | G95: 3699717.047

Sheet GW Budgets - NCSSI Aquifer U-D (hidden)
A1: NORTH CENTRAL SALT SPRING ISLAND AQUIFER (USER-DEFINED VALUES)
A3: WET PERIOD | K3: DRY PERIOD
A5: Input Data | K5: Distributions
A6: Storage / Specific Yield | B6: 0.001 | C6: Unitless | K6: Total Agricultural Demand | L6: 60937 | M6: m3
A7: Area - OW #373 | B7: 28105841.4 | C7: m2 | L7: APRIL | M7: MAY | N7: JUNE | O7: JULY | P7: AUGUST | Q7: SEPTEMBER
A8: Area - Harbourview Garden | B8: 8190938.417 | C8: m2 | K8: Monthly Distribution of Ag Demand | L8: =L9/$R$9 -> 0.1160066718 | M8: =M9/$R$9 -> 0.1676942971 | N8: 0.1924511329 | O8: 0.2164958114 | P8: 0.1876347008 | Q8: 0.119717386 | R8: =SUM(L8:Q8) -> 1
A9: ICI Water Use - Per Parcel | B9: ='Standard and U-D Numbers'!C18*30/1000 -> 3 | C9: m3 | K9: RefET | L9: 61.9 | M9: 89.48 | N9: 102.69 | O9: 115.52 | P9: 100.12 | Q9: 63.88 | R9: =SUM(L9:Q9) -> 533.59
A10: Res Water Use / Year - Per Parcel | B10: ='Standard and U-D Numbers'!D18*365/1000 -> 182.5 | C10: m3 | K10: Monthly Res Demand Dist - WET | L10: OCTOBER | M10: NOVEMBER | N10: DECEMBER | O10: JANUARY | P10: FEBRUARY | Q10: MARCH
A11: QIRReturnIN | B11: 0 | C11: Unitless | L11: 0.073293213 | M11: 0.0771845879 | N11: 0.0771845879 | O11: 0.05987522225 | P11: 0.05987522225 | Q11: 0.06650858107
A12: Number of Residential Connections | B12: 427 | K12: Monthly Res Demand - DRY | L12: APRIL | M12: MAY | N12: JUNE | O12: JULY | P12: AUGUST | Q12: SEPTEMBER
A13: Number of Commercial Connections | B13: 14 | L13: 0.06650858107 | M13: 0.1035614948 | N13: 0.1035614948 | O13: 0.1195769009 | P13: 0.1195769009 | Q13: 0.073293213
A14: Aquifer Hydraulic Conductivity | B14: ='Standard and U-D Numbers'!E18 -> 1e-07 | C14: m/s | E14: Assumed Sat Flow Depth | G14: 30 | H14: m
A15: Hydraulic Gradient | B15: ='Standard and U-D Numbers'!F18 -> 0.05 | C15: Unitless | E15: Length of Shoreline | G15: 50 | H15: km
A16: WET PERIOD | K16: DRY PERIOD
B17: OCTOBER | C17: NOVEMBER | D17: DECEMBER | E17: JANUARY | F17: FEBRUARY | G17: MARCH | L17: APRIL | M17: MAY | N17: JUNE | O17: JULY | P17: AUGUST | Q17: SEPTEMBER
A18: Wet Season SW Flow (m3) | B18: 134053.92 | C18: 1310839.2 | D18: 4643274.24 | E18: 5632474.32 | F18: 5225774.4 | G18: 3613183.2 | K18: Dry Season SW Flow (m3) | L18: 1034985.6 | M18: 439461.1584 | N18: 173124.864 | O18: 85558.8096 | P18: 58335.552 | Q18: 71508.096
A19: Direct flow composition | B19: ='Standard and U-D Numbers'!P18/100 -> 0.5 | C19: ='Standard and U-D Numbers'!Q18/100 -> 0.8 | D19: ='Standard and U-D Numbers'!R18/100 -> 0.8 | E19: ='Standard and U-D Numbers'!G18/100 -> 0.8 | F19: ='Standard and U-D Numbers'!H18/100 -> 0.8 | G19: ='Standard and U-D Numbers'!I18/100 -> 0.8 | K19: Direct flow composition | L19: ='Standard and U-D Numbers'!J18/100 -> 0.6 | M19: ='Standard and U-D Numbers'!K18/100 -> 0.25 | N19: ='Standard and U-D Numbers'!L18/100 -> 0.1 | O19: ='Standard and U-D Numbers'!M18/100 -> 0.1 | P19: ='Standard and U-D Numbers'!N18/100 -> 0.1 | Q19: ='Standard and U-D Numbers'!O18/100 -> 0.1
A20: Groundwater composition | B20: =1-B19 -> 0.5 | C20: =1-C19 -> 0.2 | D20: 0.2 | E20: 0.2 | F20: 0.2 | G20: 0.2 | K20: Groundwater composition | L20: =1-L19 -> 0.4 | M20: 0.75 | N20: 0.9 | O20: 0.9 | P20: 0.9 | Q20: 0.9
B21: OCTOBER | C21: NOVEMBER | D21: DECEMBER | E21: JANUARY | F21: FEBRUARY | G21: MARCH | H21: TOTAL | L21: APRIL | M21: MAY | N21: JUNE | O21: JULY | P21: AUGUST | Q21: SEPTEMBER | R21: TOTAL
A22: Storage Change | K22: Storage Change
A23: Change In GW Level - OW 373 | B23: 0.06146153846 | C23: 3.52414359 | D23: 2.383461538 | E23: 0.6106820513 | F23: 0.403 | G23: 0.073 | K23: Change In GW Level - OW 373 | L23: -1.244 | M23: -3.592 | N23: -0.165 | O23: -0.5379312026 | P23: -1.614015168 | Q23: -0.2150536295
A24: Associated Volume | B24: =($B$7*B23)*$B$6 -> 1727.428252 | C24: =($B$7*C23)*$B$6 -> 99049.02081 | D24: 66989.19199 | E24: 17163.73288 | F24: 11326.65409 | G24: 2051.726422 | H24: =SUM(B24:G24) -> 198307.7544 | K24: Associated Volume | L24: =($B$7*L23)*$B$6 -> -34963.6667 | M24: =($B$7*M23)*$B$6 -> -100956.1823 | N24: -4637.463831 | O24: -15119.00907 | P24: -45363.25433 | Q24: -6044.263203 | R24: =SUM(L24:Q24) -> -207083.8395
A25: Change in GW Level - Harbourview | B25: -0.56 | C25: 4.02 | D25: 1.76 | E25: 0.35 | F25: 0.52 | G25: 0.26 | K25: Change in GW Level - Harbourview | L25: -1.48 | M25: -1.25 | N25: -1.08 | O25: -0.87 | P25: -1.68 | Q25: -1.51
A26: Associated Volume | B26: =($B$8*B25)*$B$6 -> -4586.925514 | C26: =($B$8*C25)*$B$6 -> 32927.57244 | D26: 14416.05161 | E26: 2866.828446 | F26: 4259.287977 | G26: 2129.643988 | H26: =SUM(B26:G26) -> 52012.45895 | K26: Associated Volume | L26: =($B$8*L25)*$B$6 -> -12122.58886 | M26: =($B$8*M25)*$B$6 -> -10238.67302 | N26: -8846.213491 | O26: -7126.116423 | P26: -13760.77654 | Q26: -12368.31701 | R26: =SUM(L26:Q26) -> -64462.68534
A27: TOTAL ΔSGW (m3) | B27: =B26+B24 -> -2859.497261 | C27: =C26+C24 -> 131976.5932 | D27: 81405.2436 | E27: 20030.56133 | F27: 15585.94206 | G27: 4181.370411 | H27: =SUM(B27:G27) -> 250320.2134 | K27: TOTAL ΔSGW | L27: =L26+L24 -> -47086.25556 | M27: =M26+M24 -> -111194.8553 | N27: -13483.67732 | O27: -22245.12549 | P27: -59124.03087 | Q27: -18412.58021 | R27: =SUM(L27:Q27) -> -271546.5248
A29: Groundwater Flux Out (QGWout) | K29: Groundwater Flux Out (QGWout)
B30: =$B14*$B15*($G14*($G15*1000))*60*60*24*31 -> 20088 | C30: =$B14*$B15*($G14*($G15*1000))*60*60*24*30 -> 19440 | D30: =$B14*$B15*($G14*($G15*1000))*60*60*24*31 -> 20088 | E30: =$B14*$B15*($G14*($G15*1000))*60*60*24*31 -> 20088 | F30: =$B14*$B15*($G14*($G15*1000))*60*60*24*28 -> 18144 | G30: =$B14*$B15*($G14*($G15*1000))*60*60*24*31 -> 20088 | H30: =SUM(B30:G30) -> 117936 | L30: =$B14*$B15*($G14*($G15*1000))*60*60*24*30 -> 19440 | M30: =$B14*$B15*($G14*($G15*1000))*60*60*24*31 -> 20088 | N30: =$B14*$B15*($G14*($G15*1000))*60*60*24*30 -> 19440 | O30: 20088 | P30: 20088 | Q30: =$B14*$B15*($G14*($G15*1000))*60*60*24*30 -> 19440 | R30: =SUM(L30:Q30) -> 118584
A32: Groundwater Flux to SW (QSWout) | K32: Groundwater Flux to SW (QSWout)
B33: =(1-B$19)*B18 -> 67026.96 | C33: =(1-C$19)*C18 -> 262167.84 | D33: 928654.848 | E33: 1126494.864 | F33: 1045154.88 | G33: 722636.64 | H33: =SUM(B33:G33) -> 4152136.032 | L33: =(1-L$19)*L18 -> 413994.24 | M33: =(1-M$19)*M18 -> 329595.8688 | N33: 155812.3776 | O33: 77002.92864 | P33: 52501.9968 | Q33: 64357.2864 | R33: =SUM(L33:Q33) -> 1093264.698
A35: Runoff to SW | K35: Runoff to SW
B36: =B$19*B$18 -> 67026.96 | C36: =C$19*C$18 -> 1048671.36 | D36: 3714619.392 | E36: 4505979.456 | F36: 4180619.52 | G36: 2890546.56 | H36: =SUM(B36:G36) -> 16407463.25 | L36: =L$19*L$18 -> 620991.36 | M36: =M$19*M$18 -> 109865.2896 | N36: 17312.4864 | O36: 8555.88096 | P36: 5833.5552 | Q36: 7150.8096 | R36: =SUM(L36:Q36) -> 769709.3818
A38: Groundwater Use | K38: Groundwater Use
A39: Residential / Domestic | K39: Residential / Domestic
A40: External Parcels | B40: =$B$12*($B$10*L11) -> 5711.556856 | C40: =$B$12*($B$10*M11) -> 6014.801974 | D40: 6014.801974 | E40: 4665.926382 | F40: 4665.926382 | G40: 5182.847452 | H40: =SUM(B40:G40) -> 32255.86102 | K40: External Parcels | L40: =$B$12*($B$10*L13) -> 5182.847452 | M40: =$B$12*($B$10*M13) -> 8070.288389 | N40: 8070.288389 | O40: 9318.328948 | P40: 9318.328948 | Q40: 5711.556856 | R40: =SUM(L40:Q40) -> 45671.63898
A41: Mt. Belcher WSS | B41: 456.5335432 | C41: 293.4 | D41: 573.1 | E41: 346.7850067 | F41: 626.7600177 | G41: 443.6297774 | H41: =SUM(B41:G41) -> 2740.208345 | K41: Mt. Belcher WSS | L41: 511.5929054 | M41: 815.4299959 | N41: 660.6839059 | O41: 336.8280168 | P41: 760.5571649 | Q41: 593.8278202 | R41: =SUM(L41:Q41) -> 3678.919809
A42: Erskine WSS | B42: 313.089287 | C42: 258.8998823 | D42: 359.8276486 | E42: 281.0848064 | F42: 288.6313175 | G42: 313.8666686 | H42: =SUM(B42:G42) -> 1815.39961 | K42: Erskine WSS | L42: 281.812181 | M42: 553.486579 | N42: 406.5114571 | O42: 443.6530205 | P42: 460.5235642 | Q42: 320.5448763 | R42: =SUM(L42:Q42) -> 2466.531678
A43: ICI | B43: =$B$13*$B$9 -> 42 | C43: =$B$13*$B$9 -> 42 | D43: 42 | E43: 42 | F43: 42 | G43: 42 | H43: =SUM(B43:G43) -> 252 | K43: ICI | L43: =$B$13*$B$9 -> 42 | M43: =$B$13*$B$9 -> 42 | N43: 42 | O43: 42 | P43: 42 | Q43: 42 | R43: =SUM(L43:Q43) -> 252
A44: Agricultural | B44: 0 | C44: 0 | D44: 0 | E44: 0 | F44: 0 | G44: 0 | H44: 0 | K44: Agricultural | L44: =$L$6*L8 -> 7069.098559 | M44: =$L$6*M8 -> 10218.78738 | N44: 11727.39469 | O44: 13192.60526 | P44: 11433.89576 | Q44: 7295.218351 | R44: =$L$6*R8 -> 60937
A45: SubTotal GWpumpOUT | B45: =SUM(B39:B44) -> 6523.179686 | C45: =SUM(C39:C44) -> 6609.101856 | D45: 6989.729622 | E45: 5335.796195 | F45: 5623.317717 | G45: 5982.343898 | H45: 37063.46897 | K45: SubTotal GWpumpOUT | L45: =SUM(L39:L44) -> 13087.3511 | M45: =SUM(M39:M44) -> 19699.99235 | N45: 20906.87844 | O45: 23333.41524 | P45: 22015.30544 | Q45: 13963.1479 | R45: 113006.0905
A46: QIRReturnIN | B46: =B45*$B$11 -> 0 | C46: =C45*$B$11 -> 0 | D46: 0 | E46: 0 | F46: 0 | G46: 0 | H46: 0 | K46: QIRReturnIN | L46: =L45*$B$11 -> 0 | M46: =M45*$B$11 -> 0 | N46: 0 | O46: 0 | P46: 0 | Q46: 0 | R46: 0
A47: Total GWpumpOUT | B47: =B45-B46 -> 6523.179686 | C47: =C45-C46 -> 6609.101856 | D47: 6989.729622 | E47: 5335.796195 | F47: 5623.317717 | G47: 5982.343898 | H47: 37063.46897 | K47: Total GWpumpOUT | L47: =L45-L46 -> 13087.3511 | M47: =M45-M46 -> 19699.99235 | N47: 20906.87844 | O47: 23333.41524 | P47: 22015.30544 | Q47: 13963.1479 | R47: 113006.0905
A49: Minimum Recharge (R - QSWout) | B49: =B47+B27+B30 -> 23751.68242 | C49: =C47+C27+C30 -> 158025.6951 | D49: 108482.9732 | E49: 45454.35752 | F49: 39353.25978 | G49: 30251.71431 | H49: =SUM(B49:G49) -> 405319.6824
A50: Recharge (QGWout + QSWout + deltaS + QGWpump) | B50: =B49+B33 -> 90778.64242 | C50: =C49+C33 -> 420193.5351 | D50: 1037137.821 | E50: 1171949.222 | F50: 1084508.14 | G50: 752888.3543 | H50: =SUM(B50:G50) -> 4557455.714 | K50: Recharge (QGWout + QSWout - deltaS + QGWpump) | L50: =L47+L33+L30+L27 -> 399435.3355 | M50: =M47+M33+M30+M27 -> 258189.0058 | N50: 182675.5787 | O50: 98179.2184 | P50: 35481.27137 | Q50: 79347.85409 | R50: 1053308.264
A52: Precpitation (mm) | B52: 94 | C52: 167.9 | D52: 154.3 | E52: 162.1 | F52: 98.5 | G52: 88.6 | L52: 56.8 | M52: 43 | N52: 37.4 | O52: 23.2 | P52: 28 | Q52: 33.1
A53: Precipitation (m3) | B53: =(B52/1000)*SUM($B$7:$B$8) -> 3411897.303 | C53: =(C52/1000)*SUM($B$7:$B$8) -> 6094229.332 | D53: 5600593.126 | E53: 5883708.009 | F53: 3575232.812 | G53: 3215894.692 | H53: =SUM(B53:G53) -> 27781555.27 | L53: =(L52/1000)*SUM($B$7:$B$8) -> 2061657.094 | M53: 1560761.532 | N53: 1357499.565 | O53: 842085.2918 | P53: 1016309.835 | Q53: 1201423.412 | R53: =R50+R30+R27+R24 -> 693261.8997
A55: Precipitation Dry Year 2009 (mm) | B55: 76.85862069 | C55: 130.4 | D55: 143.1 | E55: 44.6 | F55: 50.2 | G55: 63.9 | K55: Precipitation Dry Year 2009 (mm) | L55: 35.14285714 | M55: 54.9 | N55: 9.2 | O55: 10.6 | P55: 8.124137931 | Q55: 64.2
A56: Precipitation Dry Year 2009 (m3) | B56: =(B55/1000)*SUM($B$7:$B$8) -> 2789720.432 | C56: =(C55/1000)*SUM($B$7:$B$8) -> 4733100.088 | D56: 5194069.192 | E56: 1618836.38 | F56: 1822098.347 | G56: 2319364.23 | K56: Precipitation Dry Year 2009 (m3) | L56: =(L55/1000)*SUM($B$7:$B$8) -> 1275572.548 | M56: 1992693.212 | N56: 333930.3743 | O56: 384745.8661 | P56: 294880.0457 | Q56: 2330253.264
A57: Recharge Change (%) | B57: =B56/B53 -> 0.817644901 | C57: =C56/C53 -> 0.7766527695 | D57: 0.9274141283 | E57: 0.2751388032 | F57: 0.5096446701 | G57: 0.7212189616 | K57: Recharge Change (%) | L57: =L56/L53 -> 0.6187122736 | M57: 1.276744186 | N57: 0.2459893048 | O57: 0.4568965517 | P57: 0.2901477833 | Q57: 1.939577039
A58: Precipitation Wet Year 2010 (mm) | B58: 127.5133333 | C58: 304.5 | D58: 101.8 | E58: 209.8035714 | F58: 94.6 | G58: 105.4 | K58: Precipitation Wet Year 2010 (mm) | L58: 47.88888889 | M58: 82.73793103 | N58: 31 | O58: 0.2000000003 | P58: 34.74137931 | Q58: 102.4285714
A59: Precipitation Wet Year 2010 (m3) | B59: =(B58/1000)*SUM($B$7:$B$8) -> 4628323.384 | C59: =(C58/1000)*SUM($B$7:$B$8) -> 11052369.45 | D59: 3695012.186 | E59: 7615194.037 | F59: 3433675.371 | G59: 3825680.593 | K59: Precipitation Wet Year 2010 (m3) | L59: =(L58/1000)*SUM($B$7:$B$8) -> 1738212.456 | M59: 3003120.465 | N59: 1125200.174 | O59: 7259.355975 | P59: 1261000.195 | Q59: 3717827.304
A60: Recharge Change (%) | B60: =B59/B53 -> 1.356524823 | C60: =C59/C53 -> 1.813579512 | D60: 0.6597537265 | E60: 1.294284833 | F60: 0.9604060914 | G60: 1.189616253 | K60: Recharge Change (%) | L60: =L59/L53 -> 0.843114241 | M60: 1.924137931 | N60: 0.8288770054 | O60: 0.008620689668 | P60: 1.240763547 | Q60: 3.094518774
A61: Climate Change (mm) | K61: Climate Change (mm)
A62: Climate Change (m3) | K62: Climate Change (m3)
A63: Recharge Change (%) | K63: Recharge Change (%)
A65: Recharge Dry Year 2009 (m3) | B65: =B$50*B57 -> 74224.69409 | C65: =C$50*C57 -> 326344.4728 | D65: 961856.2684 | E65: 322448.7062 | F65: 552713.7931 | G65: 542997.3571 | H65: =SUM(B65:G65) -> 2780585.292 | K65: Recharge Dry Year 2009 (m3) | L65: =L$50*L57 -> 247135.5446 | M65: =M$50*M57 -> 329641.3121 | N65: 44936.23862 | O65: 44857.74634 | P65: 10294.81223 | Q65: 153901.2759 | R65: =SUM(L65:Q65) -> 830766.9298
A66: Recharge Wet Year 2010 (m3) | B66: =B$50*B60 -> 123143.4818 | C66: =C$50*C60 -> 762054.3862 | D66: 684255.5425 | E66: 1516836.102 | F66: 1041568.224 | G66: 895648.2228 | H66: =SUM(B66:G66) -> 5023505.959 | K66: Recharge Wet Year 2010 (m3) | L66: =L$50*L60 -> 336769.6197 | M66: =M$50*M60 -> 496791.2595 | N66: 151415.5866 | O66: 846.3725736 | P66: 44023.86811 | Q66: 245543.4242 | R66: =SUM(L66:Q66) -> 1275390.131
A67: Recharge Climate Change (m3) | B67: =B$50*B63 -> 0 | C67: =C$50*C63 -> 0 | D67: 0 | E67: 0 | F67: 0 | G67: 0 | H67: =H50*A87/100 -> 3945678.983 | K67: Recharge Climate Change (m3) | L67: =L$50*L63 -> 0 | M67: =M$50*M63 -> 0 | N67: 0 | O67: 0 | P67: 0 | Q67: 0 | R67: =R50*A87/100 -> 911915.8891
A69: Total precip | B69: =0.987*SUM(B7:B8) -> 35824921.68
A70: Minimum Recharge % | B70: =(H49/B69)*100 -> 1.131390282 | C70: % | E70: Total Recharge
A71: Recharge (%) | B71: =((H50+R50)/B$69)*100 -> 15.66162245 | C71: % | E71: =(B71*B69)/100 -> 5610763.978
A72: Runoff (%) | B72: =((H36+R36)/B69)*100 -> 47.9475511 | C72: %
A73: Evapotransipration (%) | B73: =100-B72-B71 -> 36.39082645 | C73: %
A74: Recharge Components
A75: Groundwater Use | B75: =((H47+R47)/B69)*100 -> 0.418897104 | C75: %
A76: Flux to Sea | B76: =((H30+R30)/B69)*100 -> 0.6602107943 | C76: %
A77: Baseflow to Creeks | B77: =B71-B76-B75 -> 14.58251456 | C77: %
E78: Percent Change in Recharge | G78: Volume
A79: Recharge (%) - Dry Year 2009 | B79: =((H65+R65)/$B$69)*100 -> 10.08055859 | C79: % | E79: =((B79/B71)*100)-100 -> -35.6352854 | G79: =(B79*B$69)/100 -> 3611352.221
A80: Recharge (%) - Wet Year 2010 | B80: =((H66+R66)/$B$69)*100 -> 17.58244204 | C80: % | E80: =((B80/B71)*100)-100 -> 12.26449935 | G80: =(B80*B$69)/100 -> 6298896.09
A81: Recharge (%) - Climate Change | B81: =((H67+R67)/$B$69)*100 -> 13.55926167 | C81: % | E81: =(B81/B71)*100-100 -> -13.42364621 | G81: 4857594.872
A85: =(843.4/987)*1000 -> 854.508612
A86: =(A85/1000)*SUM(B7:B8) -> 31015910.94
A87: =A86/B69*100 -> 86.57635379

Sheet GW Budgets - SCSSI Aquifer
A1: SOUTH CENTRAL SALT SPRING ISLAND AQUIFER
A3: WET PERIOD | K3: DRY PERIOD
A5: Input Data | K5: Distributions
A6: Storage / Specific Yield | B6: 0.001 | C6: Unitless | K6: Total Agricultural Demand | L6: 42930 | M6: m3
A7: Area - OW #373 | B7: 22505435.12 | C7: m2 | L7: APRIL | M7: MAY | N7: JUNE | O7: JULY | P7: AUGUST | Q7: SEPTEMBER
A8: Area - Harbourview Garden | B8: 26264275.62 | C8: m2 | K8: Monthly Distribution of Ag Demand | L8: =L9/$R$9 -> 0.1160066718 | M8: =M9/$R$9 -> 0.1676942971 | N8: 0.1924511329 | O8: 0.2164958114 | P8: 0.1876347008 | Q8: 0.119717386 | R8: =SUM(L8:Q8) -> 1
A9: ICI Water Use - Per Parcel | B9: 2.25 | C9: m3 | K9: RefET | L9: 61.9 | M9: 89.48 | N9: 102.69 | O9: 115.52 | P9: 100.12 | Q9: 63.88 | R9: =SUM(L9:Q9) -> 533.59
A10: Res Water Use / Year - Per Parcel | B10: =(225*2.1)/1000*365 -> 172.4625 | C10: m3 | K10: Monthly Res Demand Dist - WET | L10: OCTOBER | M10: NOVEMBER | N10: DECEMBER | O10: JANUARY | P10: FEBRUARY | Q10: MARCH
A11: QIRReturnIN | B11: 0 | C11: Unitless | L11: 0.073293213 | M11: 0.0771845879 | N11: 0.0771845879 | O11: 0.05987522225 | P11: 0.05987522225 | Q11: 0.06650858107
A12: Number of Residential Connections | B12: 475 | K12: Monthly Res Demand - DRY | L12: APRIL | M12: MAY | N12: JUNE | O12: JULY | P12: AUGUST | Q12: SEPTEMBER
A13: Number of Commercial Connections | B13: 25 | L13: 0.06650858107 | M13: 0.1035614948 | N13: 0.1035614948 | O13: 0.1195769009 | P13: 0.1195769009 | Q13: 0.073293213
A14: Aquifer Hydraulic Conductivity | B14: 2e-07 | C14: m/s | E14: Assumed Sat Flow Depth | G14: 30 | H14: m
A15: Hydraulic Gradient | B15: 0.1 | C15: Unitless | E15: Length of Shoreline | G15: 50 | H15: km
A16: WET PERIOD | K16: DRY PERIOD
B17: OCTOBER | C17: NOVEMBER | D17: DECEMBER | E17: JANUARY | F17: FEBRUARY | G17: MARCH | L17: OCTOBER | M17: NOVEMBER | N17: DECEMBER | O17: JANUARY | P17: FEBRUARY | Q17: MARCH
A18: Wet Season SW Flow (m3) | B18: 180215.7382 | C18: 1762230.109 | D18: 6242197.876 | E18: 7572031.593 | F18: 7025283.491 | G18: 4857392.291 | K18: Dry Season SW Flow (m3) | L18: 1391385.6 | M18: 590790.7584 | N18: 232740.864 | O18: 115021.2096 | P18: 78423.552 | Q18: 96132.096
A19: Direct flow composition | B19: 0.5 | C19: 0.9 | D19: 0.9 | E19: 0.9 | F19: 0.9 | G19: 0.9 | K19: Direct flow composition | L19: 0.6 | M19: 0.25 | N19: 0.1 | O19: 0.1 | P19: 0.1 | Q19: 0.1
A20: Groundwater composition | B20: =1-B19 -> 0.5 | C20: =1-C19 -> 0.1 | D20: 0.1 | E20: 0.1 | F20: 0.1 | G20: 0.1 | K20: Groundwater composition | L20: =1-L19 -> 0.4 | M20: =1-M19 -> 0.75 | N20: =1-N19 -> 0.9 | O20: =1-O19 -> 0.9 | P20: =1-P19 -> 0.9 | Q20: =1-Q19 -> 0.9
B21: OCTOBER | C21: NOVEMBER | D21: DECEMBER | E21: JANUARY | F21: FEBRUARY | G21: MARCH | H21: TOTAL | L21: APRIL | M21: MAY | N21: JUNE | O21: JULY | P21: AUGUST | Q21: SEPTEMBER | R21: TOTAL
A22: Storage Change | K22: Storage Change
A23: Change In GW Level - OW 373 | B23: 0.06146153846 | C23: 3.52414359 | D23: 2.383461538 | E23: 0.6106820513 | F23: 0.403 | G23: 0.073 | K23: Change In GW Level - OW 373 | L23: -1.244 | M23: -3.592 | N23: -0.165 | O23: -0.5379312026 | P23: -1.614015168 | Q23: -0.2150536295
A24: Associated Volume | B24: =($B$7*B23)*$B$6 -> 1383.218666 | C24: =($B$7*C23)*$B$6 -> 79312.38492 | D24: 53640.83902 | E24: 13743.66529 | F24: 9069.690354 | G24: 1642.896764 | H24: =SUM(B24:G24) -> 158792.695 | K24: Associated Volume | L24: =($B$7*L23)*$B$6 -> -27996.76129 | M24: =($B$7*M23)*$B$6 -> -80839.52296 | N24: -3713.396795 | O24: -12106.37578 | P24: -36324.11365 | Q24: -4839.875506 | R24: =SUM(L24:Q24) -> -165820.046
A25: Change in GW Level - Harbourview | B25: -0.56 | C25: 4.02 | D25: 1.76 | E25: 0.35 | F25: 0.52 | G25: 0.26 | K25: Change in GW Level - Harbourview | L25: -1.48 | M25: -1.25 | N25: -1.08 | O25: -0.87 | P25: -1.68 | Q25: -1.51
A26: Associated Volume | B26: =($B$8*B25)*$B$6 -> -14707.99435 | C26: =($B$8*C25)*$B$6 -> 105582.388 | D26: 46225.12509 | E26: 9192.496467 | F26: 13657.42332 | G26: 6828.711661 | H26: =SUM(B26:G26) -> 166778.1502 | K26: Associated Volume | L26: =($B$8*L25)*$B$6 -> -38871.12792 | M26: =($B$8*M25)*$B$6 -> -32830.34452 | N26: -28365.41767 | O26: -22849.91979 | P26: -44123.98304 | Q26: -39659.05619 | R26: =SUM(L26:Q26) -> -206699.8491
A27: TOTAL ΔSGW (m3) | B27: =B26+B24 -> -13324.77568 | C27: =C26+C24 -> 184894.7729 | D27: 99865.96411 | E27: 22936.16175 | F27: 22727.11368 | G27: 8471.608425 | H27: =SUM(B27:G27) -> 325570.8452 | K27: TOTAL ΔSGW | L27: =L26+L24 -> -66867.88921 | M27: =M26+M24 -> -113669.8675 | N27: -32078.81446 | O27: -34956.29557 | P27: -80448.09669 | Q27: -44498.93169 | R27: =SUM(L27:Q27) -> -372519.8951
A29: Groundwater Flux Out (QGWout) | K29: Groundwater Flux Out (QGWout)
B30: =$B14*$B15*($G14*($G15*1000))*60*60*24*31 -> 80352 | C30: =$B14*$B15*($G14*($G15*1000))*60*60*24*30 -> 77760 | D30: =$B14*$B15*($G14*($G15*1000))*60*60*24*31 -> 80352 | E30: =$B14*$B15*($G14*($G15*1000))*60*60*24*31 -> 80352 | F30: =$B14*$B15*($G14*($G15*1000))*60*60*24*28 -> 72576 | G30: =$B14*$B15*($G14*($G15*1000))*60*60*24*31 -> 80352 | H30: =SUM(B30:G30) -> 471744 | L30: =$B14*$B15*($G14*($G15*1000))*60*60*24*30 -> 77760 | M30: =$B14*$B15*($G14*($G15*1000))*60*60*24*31 -> 80352 | N30: =$B14*$B15*($G14*($G15*1000))*60*60*24*30 -> 77760 | O30: 80352 | P30: 80352 | Q30: =$B14*$B15*($G14*($G15*1000))*60*60*24*30 -> 77760 | R30: =SUM(L30:Q30) -> 474336
A32: Groundwater Flux to SW (QSWout) | K32: Groundwater Flux to SW (QSWout)
B33: =(1-B$19)*B18 -> 90107.86909 | C33: =(1-C$19)*C18 -> 176223.0109 | D33: 624219.7876 | E33: 757203.1593 | F33: 702528.3491 | G33: 485739.2291 | H33: =SUM(B33:G33) -> 2836021.405 | L33: =(1-L$19)*L18 -> 556554.24 | M33: =(1-M$19)*M18 -> 443093.0688 | N33: 209466.7776 | O33: 103519.0886 | P33: 70581.1968 | Q33: 86518.8864 | R33: =SUM(L33:Q33) -> 1469733.258
A35: Runoff to SW | K35: Runoff to SW
B36: =B$19*B$18 -> 90107.86909 | C36: =C$19*C$18 -> 1586007.098 | D36: 5617978.089 | E36: 6814828.433 | F36: 6322755.142 | G36: 4371653.062 | H36: =SUM(B36:G36) -> 24803329.69 | L36: =L$19*L$18 -> 834831.36 | M36: =M$19*M$18 -> 147697.6896 | N36: 23274.0864 | O36: 11502.12096 | P36: 7842.3552 | Q36: 9613.2096 | R36: =SUM(L36:Q36) -> 1034760.822
A38: Groundwater Use | K38: Groundwater Use
A39: Residential / Domestic | K39: Residential / Domestic
A40: External Parcels | B40: =$B$12*($B$10*L11) -> 6004.157104 | C40: =$B$12*($B$10*M11) -> 6322.937321 | D40: 6322.937321 | E40: 4904.959496 | F40: 4904.959496 | G40: 5448.362178 | H40: =SUM(B40:G40) -> 33908.31291 | K40: External Parcels | L40: =$B$12*($B$10*L13) -> 5448.362178 | M40: =$B$12*($B$10*M13) -> 8483.725294 | N40: 8483.725294 | O40: 9795.702357 | P40: 9795.702357 | Q40: 6004.157104 | R40: =SUM(L40:Q40) -> 48011.37459
A41: Reginald Hill WSS | B41: 81.27696605 | C41: 105.2383756 | D41: 77.22273045 | E41: 113.2785063 | F41: 58.2411434 | G41: 111.329638 | H41: =SUM(B41:G41) -> 546.5873597 | K41: Reginald Hill WSS | L41: 160.6339786 | M41: 121.6692411 | N41: 125.3175445 | O41: 139.9963262 | P41: 126.3189356 | Q41: 107.3791364 | R41: =SUM(L41:Q41) -> 781.3151623
A43: ICI | B43: =$B$13*$B$9 -> 56.25 | C43: =$B$13*$B$9 -> 56.25 | D43: 56.25 | E43: 56.25 | F43: 56.25 | G43: 56.25 | H43: =SUM(B43:G43) -> 337.5 | K43: ICI | L43: =$B$13*$B$9 -> 56.25 | M43: =$B$13*$B$9 -> 56.25 | N43: 56.25 | O43: 56.25 | P43: 56.25 | Q43: 56.25 | R43: =SUM(L43:Q43) -> 337.5
A44: Agricultural | B44: 0 | C44: 0 | D44: 0 | E44: 0 | F44: 0 | G44: 0 | H44: 0 | K44: Agricultural | L44: =$L$6*L8 -> 4980.16642 | M44: =$L$6*M8 -> 7199.116175 | N44: 8261.927135 | O44: 9294.165183 | P44: 8055.157705 | Q44: 5139.467381 | R44: =$L$6*R8 -> 42930
A45: SubTotal GWpumpOUT | B45: =SUM(B39:B44) -> 6141.684071 | C45: =SUM(C39:C44) -> 6484.425696 | D45: 6456.410051 | E45: 5074.488002 | F45: 5019.450639 | G45: 5615.941816 | H45: 34792.40027 | K45: SubTotal GWpumpOUT | L45: =SUM(L39:L44) -> 10645.41258 | M45: =SUM(M39:M44) -> 15860.76071 | N45: 16927.21997 | O45: 19286.11387 | P45: 18033.429 | Q45: 11307.25362 | R45: 92060.18975
A46: QIRReturnIN | B46: =B45*$B$11 -> 0 | C46: =C45*$B$11 -> 0 | D46: 0 | E46: 0 | F46: 0 | G46: 0 | H46: 0 | K46: QIRReturnIN | L46: =L45*$B$11 -> 0 | M46: =M45*$B$11 -> 0 | N46: 0 | O46: 0 | P46: 0 | Q46: 0 | R46: 0
A47: Total GWpumpOUT | B47: =B45-B46 -> 6141.684071 | C47: =C45-C46 -> 6484.425696 | D47: 6456.410051 | E47: 5074.488002 | F47: 5019.450639 | G47: 5615.941816 | H47: 34792.40027 | K47: Total GWpumpOUT | L47: =L45-L46 -> 10645.41258 | M47: =M45-M46 -> 15860.76071 | N47: 16927.21997 | O47: 19286.11387 | P47: 18033.429 | Q47: 11307.25362 | R47: 92060.18975
A49: Minimum Recharge (R - QSWout) | B49: =B47+B27+B30 -> 73168.90839 | C49: =C47+C27+C30 -> 269139.1986 | D49: 186674.3742 | E49: 108362.6498 | F49: 100322.5643 | G49: 94439.55024 | H49: =SUM(B49:G49) -> 832107.2455
A50: Recharge (QGWout + QSWout + deltaS + QGWpump) | B50: =B49+B33 -> 163276.7775 | C50: =C49+C33 -> 445362.2095 | D50: 810894.1618 | E50: 865565.809 | F50: 802850.9134 | G50: 580178.7793 | H50: =SUM(B50:G50) -> 3668128.651 | K50: Recharge (QGWout + QSWout - deltaS + QGWpump) | L50: =L47+L33+L30+L27 -> 578091.7634 | M50: =M47+M33+M30+M27 -> 425635.962 | N50: 272075.1831 | O50: 168200.9069 | P50: 88518.52911 | Q50: 131087.2083 | R50: 1663609.553
A52: Precpitation (mm) | B52: 94 | C52: 167.9 | D52: 154.3 | E52: 162.1 | F52: 98.5 | G52: 88.6 | L52: 56.8 | M52: 43 | N52: 37.4 | O52: 23.2 | P52: 28 | Q52: 33.1
A53: Precipitation (m3) | B53: =(B52/1000)*SUM($B$7:$B$8) -> 4584352.81 | C53: =(C52/1000)*SUM($B$7:$B$8) -> 8188434.434 | D53: 7525166.367 | E53: 7905570.111 | F53: 4803816.508 | G53: 4320996.372 | H53: =SUM(B53:G53) -> 37328336.6 | L53: =(L52/1000)*SUM($B$7:$B$8) -> 2770119.57 | M53: 2097097.562 | N53: 1823987.182 | O53: 1131457.289 | P53: 1365551.901 | Q53: 1614277.426 | R53: =R50+R30+R27+R24 -> 1599605.612
A55: Precipitation Dry Year 2009 (mm) | B55: 76.85862069 | C55: 130.4 | D55: 143.1 | E55: 44.6 | F55: 50.2 | G55: 63.9 | K55: Precipitation Dry Year 2009 (mm) | L55: 35.14285714 | M55: 54.9 | N55: 9.2 | O55: 10.6 | P55: 8.124137931 | Q55: 64.2
A56: Precipitation Dry Year 2009 (m3) | B56: =(B55/1000)*SUM($B$7:$B$8) -> 3748372.699 | C56: =(C55/1000)*SUM($B$7:$B$8) -> 6359570.281 | D56: 6978945.607 | E56: 2175129.099 | F56: 2448239.479 | G56: 3116384.516 | K56: Precipitation Dry Year 2009 (m3) | L56: =(L55/1000)*SUM($B$7:$B$8) -> 1713906.978 | M56: =(M55/1000)*SUM($B$7:$B$8) -> 2677457.12 | N56: =(N55/1000)*SUM($B$7:$B$8) -> 448681.3388 | O56: =(O55/1000)*SUM($B$7:$B$8) -> 516958.9339 | P56: =(P55/1000)*SUM($B$7:$B$8) -> 396211.8569 | Q56: =(Q55/1000)*SUM($B$7:$B$8) -> 3131015.43
A57: Recharge Change (%) | B57: =B56/B53 -> 0.817644901 | C57: =C56/C53 -> 0.7766527695 | D57: 0.9274141283 | E57: 0.2751388032 | F57: 0.5096446701 | G57: 0.7212189616 | K57: Recharge Change (%) | L57: =L56/L53 -> 0.6187122736 | M57: 1.276744186 | N57: 0.2459893048 | O57: 0.4568965517 | P57: 0.2901477833 | Q57: 1.939577039
A58: Precipitation Wet Year 2010 (mm) | B58: 127.5133333 | C58: 304.5 | D58: 101.8 | E58: 209.8035714 | F58: 94.6 | G58: 105.4 | K58: Precipitation Wet Year 2010 (mm) | L58: 47.88888889 | M58: 82.73793103 | N58: 31 | O58: 0.2000000003 | P58: 34.74137931 | Q58: 102.4285714
A59: Precipitation Wet Year 2010 (m3) | B59: =(B58/1000)*SUM($B$7:$B$8) -> 6218788.382 | C59: =(C58/1000)*SUM($B$7:$B$8) -> 14850376.92 | D59: 4964756.554 | E59: 10232059.49 | F59: 4613614.636 | G59: 5140327.512 | K59: Precipitation Wet Year 2010 (m3) | L59: =(L58/1000)*SUM($B$7:$B$8) -> 2335527.259 | M59: 4035104.964 | N59: 1511861.033 | O59: 9753.942163 | P59: 1694327.02 | Q59: 4995411.8
A60: Recharge Change (%) | B60: =B59/B53 -> 1.356524823 | C60: =C59/C53 -> 1.813579512 | D60: 0.6597537265 | E60: 1.294284833 | F60: 0.9604060914 | G60: 1.189616253 | K60: Recharge Change (%) | L60: =L59/L53 -> 0.843114241 | M60: 1.924137931 | N60: 0.8288770054 | O60: 0.008620689668 | P60: 1.240763547 | Q60: 3.094518774
A61: Climate Change (mm) | K61: Climate Change (mm)
A62: Climate Change (m3) | K62: Climate Change (m3)
A63: Recharge Change (%) | K63: Recharge Change (%)
A65: Recharge Dry Year 2009 (m3) | B65: =B$50*B57 -> 133502.4246 | C65: =C$50*C57 -> 345891.7935 | D65: 752034.7022 | E65: 238150.7408 | F65: 409168.6889 | G65: 418435.9368 | H65: =SUM(B65:G65) -> 2297184.287 | K65: Recharge Dry Year 2009 (m3) | L65: =L$50*L57 -> 357672.4693 | M65: =M$50*M57 -> 543428.2399 | N65: 66927.58515 | O65: 76850.41438 | P65: 25683.455 | Q65: 254253.7394 | R65: =SUM(L65:Q65) -> 1324815.903
A66: Recharge Wet Year 2010 (m3) | B66: =B$50*B60 -> 221489.0016 | C66: =C$50*C60 -> 807699.7784 | D66: 534990.445 | E66: 1120288.699 | F66: 771062.9077 | G66: 690190.1054 | H66: =SUM(B66:G66) -> 4145720.937 | K66: Recharge Wet Year 2010 (m3) | L66: =L$50*L60 -> 487397.3983 | M66: =M$50*M60 -> 818982.2994 | N66: 225516.863 | O66: 1450.007821 | P66: 109830.5641 | Q66: 405651.8272 | R66: =SUM(L66:Q66) -> 2048828.96
A67: Recharge Climate Change (m3) | B67: =B$50*B63 -> 0 | C67: =C$50*C63 -> 0 | D67: 0 | E67: 0 | F67: 0 | G67: 0 | H67: =H50*A87/100 -> 3175732.038 | K67: Recharge Climate Change (m3) | L67: =L$50*L63 -> 0 | M67: =M$50*M63 -> 0 | N67: 0 | O67: 0 | P67: 0 | Q67: 0 | R67: =R50*A87/100 -> 1440292.492
A69: Total Precipitation | B69: =0.987*SUM(B7:B8) -> 48135704.5 | C69: m3
A70: Minimum Recharge % | B70: =(H49/B69)*100 -> 1.728669507 | C70: %
A71: Recharge (%) | B71: =((H50+R50)/B$69)*100 -> 11.07647277 | C71: %
A72: Runoff (%) | B72: =((H36+R36)/B69)*100 -> 53.67759916 | C72: %
A73: Evapotranspiration (%) | B73: =100-B72-B71 -> 35.24592807 | C73: %
A74: Recharge Components
A75: Groundwater Use | B75: =((H47+R47)/B69)*100 -> 0.2635311799 | C75: %
A76: Flux to Sea | B76: =((H30+R30)/B69)*100 -> 1.965443344 | C76: %
A77: Baseflow to Creeks | B77: =B71-B76-B75 -> 8.84749825 | C77: %
A78: Wet/Dry/Climate Effects
A79: Recharge (%) - Dry Year 2009 | B79: =((H65+R65)/$B$69)*100 -> 7.524560464 | C79: %
A80: Recharge (%) - Wet Year 2010 | B80: =((H66+R66)/$B$69)*100 -> 12.86892954 | C80: %
A81: Recharge (%) - Climate Change | B81: =((H67+R67)/$B$69)*100 -> 9.589606256 | C81: %
E84: Total Recharge
A85: =(843.4/987)*1000 -> 854.508612 | E85: =(B71*B69)/100 -> 5331738.203
A86: =(A85/1000)*SUM(B7:B8) -> 41674137.83
A87: =A86/B69*100 -> 86.57635379
E92: Percent Change in Recharge | G92: Volume
E93: =((B79/B71)*100)-100 -> -32.06717863 | G93: =(B79*B$69)/100 -> 3622000.19
E94: =((B80/B71)*100)-100 -> 16.18255924 | G94: =(B80*B$69)/100 -> 6194549.897
E95: =(B81/B71)*100-100 -> -13.42364621 | G95: 4616024.53

Sheet GW Budgets - SCSSI Aquifer U-D (hidden)
A1: SOUTH CENTRAL SALT SPRING ISLAND AQUIFER (USER-DEFINED VALUES)
A3: WET PERIOD | K3: DRY PERIOD
A5: Input Data | K5: Distributions
A6: Storage / Specific Yield | B6: 0.001 | C6: Unitless | K6: Total Agricultural Demand | L6: 42930 | M6: m3
A7: Area - OW #373 | B7: 22505435.12 | C7: m2 | L7: APRIL | M7: MAY | N7: JUNE | O7: JULY | P7: AUGUST | Q7: SEPTEMBER
A8: Area - Harbourview Garden | B8: 26264275.62 | C8: m2 | K8: Monthly Distribution of Ag Demand | L8: =L9/$R$9 -> 0.1160066718 | M8: =M9/$R$9 -> 0.1676942971 | N8: 0.1924511329 | O8: 0.2164958114 | P8: 0.1876347008 | Q8: 0.119717386 | R8: =SUM(L8:Q8) -> 1
A9: ICI Water Use - Per Parcel | B9: ='Standard and U-D Numbers'!C19*30/1000 -> 3 | C9: m3 | K9: RefET | L9: 61.9 | M9: 89.48 | N9: 102.69 | O9: 115.52 | P9: 100.12 | Q9: 63.88 | R9: =SUM(L9:Q9) -> 533.59
A10: Res Water Use / Year - Per Parcel | B10: ='Standard and U-D Numbers'!D19*365/1000 -> 182.5 | C10: m3 | K10: Monthly Res Demand Dist - WET | L10: OCTOBER | M10: NOVEMBER | N10: DECEMBER | O10: JANUARY | P10: FEBRUARY | Q10: MARCH
A11: QIRReturnIN | B11: 0 | C11: Unitless | L11: 0.073293213 | M11: 0.0771845879 | N11: 0.0771845879 | O11: 0.05987522225 | P11: 0.05987522225 | Q11: 0.06650858107
A12: Number of Residential Connections | B12: 475 | K12: Monthly Res Demand - DRY | L12: APRIL | M12: MAY | N12: JUNE | O12: JULY | P12: AUGUST | Q12: SEPTEMBER
A13: Number of Commercial Connections | B13: 25 | L13: 0.06650858107 | M13: 0.1035614948 | N13: 0.1035614948 | O13: 0.1195769009 | P13: 0.1195769009 | Q13: 0.073293213
A14: Aquifer Hydraulic Conductivity | B14: ='Standard and U-D Numbers'!E19 -> 1e-07 | C14: m/s | E14: Assumed Sat Flow Depth | G14: 30 | H14: m
A15: Hydraulic Gradient | B15: ='Standard and U-D Numbers'!F19 -> 0.05 | C15: Unitless | E15: Length of Shoreline | G15: 50 | H15: km
A16: WET PERIOD | K16: DRY PERIOD
B17: OCTOBER | C17: NOVEMBER | D17: DECEMBER | E17: JANUARY | F17: FEBRUARY | G17: MARCH | L17: APRIL | M17: MAY | N17: JUNE | O17: JULY | P17: AUGUST | Q17: SEPTEMBER
A18: Wet Season SW Flow (m3) | B18: 180215.7382 | C18: 1762230.109 | D18: 6242197.876 | E18: 7572031.593 | F18: 7025283.491 | G18: 4857392.291 | K18: Dry Season SW Flow (m3) | L18: 1391385.6 | M18: 590790.7584 | N18: 232740.864 | O18: 115021.2096 | P18: 78423.552 | Q18: 96132.096
A19: Direct flow composition | B19: ='Standard and U-D Numbers'!P19/100 -> 0.5 | C19: ='Standard and U-D Numbers'!Q19/100 -> 0.8 | D19: ='Standard and U-D Numbers'!R19/100 -> 0.8 | E19: ='Standard and U-D Numbers'!G19/100 -> 0.8 | F19: ='Standard and U-D Numbers'!H19/100 -> 0.8 | G19: ='Standard and U-D Numbers'!I19/100 -> 0.8 | K19: Direct flow composition | L19: ='Standard and U-D Numbers'!J19/100 -> 0.6 | M19: ='Standard and U-D Numbers'!K19/100 -> 0.25 | N19: ='Standard and U-D Numbers'!L19/100 -> 0.1 | O19: ='Standard and U-D Numbers'!M19/100 -> 0.1 | P19: ='Standard and U-D Numbers'!N19/100 -> 0.1 | Q19: ='Standard and U-D Numbers'!O19/100 -> 0.1
A20: Groundwater composition | B20: =1-B19 -> 0.5 | C20: =1-C19 -> 0.2 | D20: 0.2 | E20: 0.2 | F20: 0.2 | G20: 0.2 | K20: Groundwater composition | L20: =1-L19 -> 0.4 | M20: 0.75 | N20: 0.9 | O20: 0.9 | P20: 0.9 | Q20: 0.9
B21: OCTOBER | C21: NOVEMBER | D21: DECEMBER | E21: JANUARY | F21: FEBRUARY | G21: MARCH | H21: TOTAL | L21: APRIL | M21: MAY | N21: JUNE | O21: JULY | P21: AUGUST | Q21: SEPTEMBER | R21: TOTAL
A22: Storage Change | K22: Storage Change
A23: Change In GW Level - OW 373 | B23: 0.06146153846 | C23: 3.52414359 | D23: 2.383461538 | E23: 0.6106820513 | F23: 0.403 | G23: 0.073 | K23: Change In GW Level - OW 373 | L23: -1.244 | M23: -3.592 | N23: -0.165 | O23: -0.5379312026 | P23: -1.614015168 | Q23: -0.2150536295
A24: Associated Volume | B24: =($B$7*B23)*$B$6 -> 1383.218666 | C24: =($B$7*C23)*$B$6 -> 79312.38492 | D24: 53640.83902 | E24: 13743.66529 | F24: 9069.690354 | G24: 1642.896764 | H24: =SUM(B24:G24) -> 158792.695 | K24: Associated Volume | L24: =($B$7*L23)*$B$6 -> -27996.76129 | M24: =($B$7*M23)*$B$6 -> -80839.52296 | N24: -3713.396795 | O24: -12106.37578 | P24: -36324.11365 | Q24: -4839.875506 | R24: =SUM(L24:Q24) -> -165820.046
A25: Change in GW Level - Harbourview | B25: -0.56 | C25: 4.02 | D25: 1.76 | E25: 0.35 | F25: 0.52 | G25: 0.26 | K25: Change in GW Level - Harbourview | L25: -1.48 | M25: -1.25 | N25: -1.08 | O25: -0.87 | P25: -1.68 | Q25: -1.51
A26: Associated Volume | B26: =($B$8*B25)*$B$6 -> -14707.99435 | C26: =($B$8*C25)*$B$6 -> 105582.388 | D26: 46225.12509 | E26: 9192.496467 | F26: 13657.42332 | G26: 6828.711661 | H26: =SUM(B26:G26) -> 166778.1502 | K26: Associated Volume | L26: =($B$8*L25)*$B$6 -> -38871.12792 | M26: =($B$8*M25)*$B$6 -> -32830.34452 | N26: -28365.41767 | O26: -22849.91979 | P26: -44123.98304 | Q26: -39659.05619 | R26: =SUM(L26:Q26) -> -206699.8491
A27: TOTAL ΔSGW (m3) | B27: =B26+B24 -> -13324.77568 | C27: =C26+C24 -> 184894.7729 | D27: 99865.96411 | E27: 22936.16175 | F27: 22727.11368 | G27: 8471.608425 | H27: =SUM(B27:G27) -> 325570.8452 | K27: TOTAL ΔSGW | L27: =L26+L24 -> -66867.88921 | M27: =M26+M24 -> -113669.8675 | N27: -32078.81446 | O27: -34956.29557 | P27: -80448.09669 | Q27: -44498.93169 | R27: =SUM(L27:Q27) -> -372519.8951
A29: Groundwater Flux Out (QGWout) | K29: Groundwater Flux Out (QGWout)
B30: =$B14*$B15*($G14*($G15*1000))*60*60*24*31 -> 20088 | C30: =$B14*$B15*($G14*($G15*1000))*60*60*24*30 -> 19440 | D30: =$B14*$B15*($G14*($G15*1000))*60*60*24*31 -> 20088 | E30: =$B14*$B15*($G14*($G15*1000))*60*60*24*31 -> 20088 | F30: =$B14*$B15*($G14*($G15*1000))*60*60*24*28 -> 18144 | G30: =$B14*$B15*($G14*($G15*1000))*60*60*24*31 -> 20088 | H30: =SUM(B30:G30) -> 117936 | L30: =$B14*$B15*($G14*($G15*1000))*60*60*24*30 -> 19440 | M30: =$B14*$B15*($G14*($G15*1000))*60*60*24*31 -> 20088 | N30: =$B14*$B15*($G14*($G15*1000))*60*60*24*30 -> 19440 | O30: 20088 | P30: 20088 | Q30: =$B14*$B15*($G14*($G15*1000))*60*60*24*30 -> 19440 | R30: =SUM(L30:Q30) -> 118584
A32: Groundwater Flux to SW (QSWout) | K32: Groundwater Flux to SW (QSWout)
B33: =(1-B$19)*B18 -> 90107.86909 | C33: =(1-C$19)*C18 -> 352446.0218 | D33: 1248439.575 | E33: 1514406.319 | F33: 1405056.698 | G33: 971478.4582 | H33: =SUM(B33:G33) -> 5581934.941 | L33: =(1-L$19)*L18 -> 556554.24 | M33: =(1-M$19)*M18 -> 443093.0688 | N33: 209466.7776 | O33: 103519.0886 | P33: 70581.1968 | Q33: 86518.8864 | R33: =SUM(L33:Q33) -> 1469733.258
A35: Runoff to SW | K35: Runoff to SW
B36: =B$19*B$18 -> 90107.86909 | C36: =C$19*C$18 -> 1409784.087 | D36: 4993758.301 | E36: 6057625.274 | F36: 5620226.793 | G36: 3885913.833 | H36: =SUM(B36:G36) -> 22057416.16 | L36: =L$19*L$18 -> 834831.36 | M36: =M$19*M$18 -> 147697.6896 | N36: 23274.0864 | O36: 11502.12096 | P36: 7842.3552 | Q36: 9613.2096 | R36: =SUM(L36:Q36) -> 1034760.822
A38: Groundwater Use | K38: Groundwater Use
A39: Residential / Domestic | K39: Residential / Domestic
A40: External Parcels | B40: =$B$12*($B$10*L11) -> 6353.605402 | C40: =$B$12*($B$10*M11) -> 6690.938964 | D40: 6690.938964 | E40: 5190.433329 | F40: 5190.433329 | G40: 5765.462622 | H40: =SUM(B40:G40) -> 35881.81261 | K40: External Parcels | L40: =$B$12*($B$10*L13) -> 5765.462622 | M40: =$B$12*($B$10*M13) -> 8977.487084 | N40: 8977.487084 | O40: 10365.8226 | P40: 10365.8226 | Q40: 6353.605402 | R40: =SUM(L40:Q40) -> 50805.68739
A41: Reginald Hill WSS | B41: 81.27696605 | C41: 105.2383756 | D41: 77.22273045 | E41: 113.2785063 | F41: 58.2411434 | G41: 111.329638 | H41: =SUM(B41:G41) -> 546.5873597 | K41: Reginald Hill WSS | L41: 160.6339786 | M41: 121.6692411 | N41: 125.3175445 | O41: 139.9963262 | P41: 126.3189356 | Q41: 107.3791364 | R41: =SUM(L41:Q41) -> 781.3151623
A43: ICI | B43: =$B$13*$B$9 -> 75 | C43: =$B$13*$B$9 -> 75 | D43: 75 | E43: 75 | F43: 75 | G43: 75 | H43: =SUM(B43:G43) -> 450 | K43: ICI | L43: =$B$13*$B$9 -> 75 | M43: =$B$13*$B$9 -> 75 | N43: 75 | O43: 75 | P43: 75 | Q43: 75 | R43: =SUM(L43:Q43) -> 450
A44: Agricultural | B44: 0 | C44: 0 | D44: 0 | E44: 0 | F44: 0 | G44: 0 | H44: 0 | K44: Agricultural | L44: =$L$6*L8 -> 4980.16642 | M44: =$L$6*M8 -> 7199.116175 | N44: 8261.927135 | O44: 9294.165183 | P44: 8055.157705 | Q44: 5139.467381 | R44: =$L$6*R8 -> 42930
A45: SubTotal GWpumpOUT | B45: =SUM(B39:B44) -> 6509.882368 | C45: =SUM(C39:C44) -> 6871.177339 | D45: 6843.161694 | E45: 5378.711835 | F45: 5323.674472 | G45: 5951.79226 | H45: 36878.39997 | K45: SubTotal GWpumpOUT | L45: =SUM(L39:L44) -> 10981.26302 | M45: =SUM(M39:M44) -> 16373.2725 | N45: 17439.73176 | O45: 19874.98411 | P45: 18622.29924 | Q45: 11675.45192 | R45: 94967.00255
A46: QIRReturnIN | B46: =B45*$B$11 -> 0 | C46: =C45*$B$11 -> 0 | D46: 0 | E46: 0 | F46: 0 | G46: 0 | H46: 0 | K46: QIRReturnIN | L46: =L45*$B$11 -> 0 | M46: =M45*$B$11 -> 0 | N46: 0 | O46: 0 | P46: 0 | Q46: 0 | R46: 0
A47: Total GWpumpOUT | B47: =B45-B46 -> 6509.882368 | C47: =C45-C46 -> 6871.177339 | D47: 6843.161694 | E47: 5378.711835 | F47: 5323.674472 | G47: 5951.79226 | H47: 36878.39997 | K47: Total GWpumpOUT | L47: =L45-L46 -> 10981.26302 | M47: =M45-M46 -> 16373.2725 | N47: 17439.73176 | O47: 19874.98411 | P47: 18622.29924 | Q47: 11675.45192 | R47: 94967.00255
A49: Minimum Recharge (R - QSWout) | B49: =B47+B27+B30 -> 13273.10669 | C49: =C47+C27+C30 -> 211205.9502 | D49: 126797.1258 | E49: 48402.87359 | F49: 46194.78815 | G49: 34511.40068 | H49: =SUM(B49:G49) -> 480385.2452
A50: Recharge (QGWout + QSWout + deltaS + QGWpump) | B50: =B49+B33 -> 103380.9758 | C50: =C49+C33 -> 563651.9721 | D50: 1375236.701 | E50: 1562809.192 | F50: 1451251.486 | G50: 1005989.859 | H50: =SUM(B50:G50) -> 6062320.186 | K50: Recharge (QGWout + QSWout - deltaS + QGWpump) | L50: =L47+L33+L30+L27 -> 520107.6138 | M50: =M47+M33+M30+M27 -> 365884.4738 | N50: 214267.6949 | O50: 108525.7772 | P50: 28843.39935 | Q50: 73135.40663 | R50: 1310764.366
A52: Precpitation (mm) | B52: 94 | C52: 167.9 | D52: 154.3 | E52: 162.1 | F52: 98.5 | G52: 88.6 | L52: 56.8 | M52: 43 | N52: 37.4 | O52: 23.2 | P52: 28 | Q52: 33.1
A53: Precipitation (m3) | B53: =(B52/1000)*SUM($B$7:$B$8) -> 4584352.81 | C53: =(C52/1000)*SUM($B$7:$B$8) -> 8188434.434 | D53: 7525166.367 | E53: 7905570.111 | F53: 4803816.508 | G53: 4320996.372 | H53: =SUM(B53:G53) -> 37328336.6 | L53: =(L52/1000)*SUM($B$7:$B$8) -> 2770119.57 | M53: 2097097.562 | N53: 1823987.182 | O53: 1131457.289 | P53: 1365551.901 | Q53: 1614277.426 | R53: =R50+R30+R27+R24 -> 891008.4246
A55: Precipitation Dry Year 2009 (mm) | B55: 76.85862069 | C55: 130.4 | D55: 143.1 | E55: 44.6 | F55: 50.2 | G55: 63.9 | K55: Precipitation Dry Year 2009 (mm) | L55: 35.14285714 | M55: 54.9 | N55: 9.2 | O55: 10.6 | P55: 8.124137931 | Q55: 64.2
A56: Precipitation Dry Year 2009 (m3) | B56: =(B55/1000)*SUM($B$7:$B$8) -> 3748372.699 | C56: =(C55/1000)*SUM($B$7:$B$8) -> 6359570.281 | D56: 6978945.607 | E56: 2175129.099 | F56: 2448239.479 | G56: 3116384.516 | K56: Precipitation Dry Year 2009 (m3) | L56: =(L55/1000)*SUM($B$7:$B$8) -> 1713906.978 | M56: 2677457.12 | N56: 448681.3388 | O56: 516958.9339 | P56: 396211.8569 | Q56: 3131015.43
A57: Recharge Change (%) | B57: =B56/B53 -> 0.817644901 | C57: =C56/C53 -> 0.7766527695 | D57: 0.9274141283 | E57: 0.2751388032 | F57: 0.5096446701 | G57: 0.7212189616 | K57: Recharge Change (%) | L57: =L56/L53 -> 0.6187122736 | M57: 1.276744186 | N57: 0.2459893048 | O57: 0.4568965517 | P57: 0.2901477833 | Q57: 1.939577039
A58: Precipitation Wet Year 2010 (mm) | B58: 127.5133333 | C58: 304.5 | D58: 101.8 | E58: 209.8035714 | F58: 94.6 | G58: 105.4 | K58: Precipitation Wet Year 2010 (mm) | L58: 47.88888889 | M58: 82.73793103 | N58: 31 | O58: 0.2000000003 | P58: 34.74137931 | Q58: 102.4285714
A59: Precipitation Wet Year 2010 (m3) | B59: =(B58/1000)*SUM($B$7:$B$8) -> 6218788.382 | C59: =(C58/1000)*SUM($B$7:$B$8) -> 14850376.92 | D59: 4964756.554 | E59: 10232059.49 | F59: 4613614.636 | G59: 5140327.512 | K59: Precipitation Wet Year 2010 (m3) | L59: =(L58/1000)*SUM($B$7:$B$8) -> 2335527.259 | M59: 4035104.964 | N59: 1511861.033 | O59: 9753.942163 | P59: 1694327.02 | Q59: 4995411.8
A60: Recharge Change (%) | B60: =B59/B53 -> 1.356524823 | C60: =C59/C53 -> 1.813579512 | D60: 0.6597537265 | E60: 1.294284833 | F60: 0.9604060914 | G60: 1.189616253 | K60: Recharge Change (%) | L60: =L59/L53 -> 0.843114241 | M60: 1.924137931 | N60: 0.8288770054 | O60: 0.008620689668 | P60: 1.240763547 | Q60: 3.094518774
A61: Climate Change (mm) | K61: Climate Change (mm)
A62: Climate Change (m3) | K62: Climate Change (m3)
A63: Recharge Change (%) | K63: Recharge Change (%)
A65: Recharge Dry Year 2009 (m3) | B65: =B$50*B57 -> 84528.9277 | C65: =C$50*C57 -> 437761.8651 | D65: 1275413.946 | E65: 429989.4508 | F65: 739622.5849 | G65: 725538.9614 | H65: =SUM(B65:G65) -> 3692855.736 | K65: Recharge Dry Year 2009 (m3) | L65: =L$50*L57 -> 321796.9643 | M65: =M$50*M57 -> 467140.8747 | N65: 52707.56131 | O65: 49585.05337 | P65: 8368.848384 | Q65: 141851.7555 | R65: =SUM(L65:Q65) -> 1041451.058
A66: Recharge Wet Year 2010 (m3) | B66: =B$50*B60 -> 140238.8598 | C66: =C$50*C60 -> 1022227.668 | D66: 907317.5384 | E66: 2022720.234 | F66: 1393790.768 | G66: 1196741.886 | H66: =SUM(B66:G66) -> 6683036.955 | K66: Recharge Wet Year 2010 (m3) | L66: =L$50*L60 -> 438510.1361 | M66: =M$50*M60 -> 704012.1944 | N66: 177601.5653 | O66: 935.5670461 | P66: 35787.83848 | Q66: 226318.8889 | R66: =SUM(L66:Q66) -> 1583166.19
A67: Recharge Climate Change (m3) | B67: =B$50*B63 -> 0 | C67: =C$50*C63 -> 0 | D67: 0 | E67: 0 | F67: 0 | G67: 0 | H67: =H50*A87/100 -> 5248535.773 | K67: Recharge Climate Change (m3) | L67: =L$50*L63 -> 0 | M67: =M$50*M63 -> 0 | N67: 0 | O67: 0 | P67: 0 | Q67: 0 | R67: =R50*A87/100 -> 1134811.995
A69: Total precip | B69: =0.987*SUM(B7:B8) -> 48135704.5
A70: Minimum Recharge % | B70: =(H49/B69)*100 -> 0.9979811247 | C70: % | E70: Total Recharge
A71: Recharge (%) | B71: =((H50+R50)/B$69)*100 -> 15.31728813 | C71: % | E71: =(B71*B69)/100 -> 7373084.552
A72: Runoff (%) | B72: =((H36+R36)/B69)*100 -> 47.97307366 | C72: %
A73: Evapotranspiration (%) | B73: =100-B72-B71 -> 36.70963821 | C73: %
A74: Recharge Components
A75: Groundwater Use | B75: =((H47+R47)/B69)*100 -> 0.2739035481 | C75: %
A76: Flux to Sea | B76: =((H30+R30)/B69)*100 -> 0.4913608359 | C76: %
A77: Baseflow to Creeks | B77: =B71-B76-B75 -> 14.55202375 | C77: %
E78: Percent Change in Recharge | G78: Volume
A79: Recharge (%) - Dry Year 2009 | B79: =((H65+R65)/$B$69)*100 -> 9.835332926 | C79: % | E79: =((B79/B71)*100)-100 -> -35.78933267 | G79: =(B79*B$69)/100 -> 4734306.794
A80: Recharge (%) - Wet Year 2010 | B80: =((H66+R66)/$B$69)*100 -> 17.17270627 | C80: % | E80: =((B80/B71)*100)-100 -> 12.11322868 | G80: =(B80*B$69)/100 -> 8266203.145
A81: Recharge (%) - Climate Change | B81: =((H67+R67)/$B$69)*100 -> 13.26114956 | C81: % | E81: =(B81/B71)*100-100 -> -13.42364621 | G81: 6383347.767
A85: =(843.4/987)*1000 -> 854.508612
A86: =(A85/1000)*SUM(B7:B8) -> 41674137.83
A87: =A86/B69*100 -> 86.57635379

Sheet GW Budgets - SSSI Aquifer
A1: SOUTH SALT SPRING ISLAND AQUIFER
A3: WET PERIOD | K3: DRY PERIOD
A5: Input Data | K5: Distributions
A6: Storage / Specific Yield | B6: 0.001 | C6: Unitless | K6: Total Agricultural Demand | L6: 76839 | M6: m3
A7: Area - OW #373 | B7: 50750433.46 | C7: m2 | L7: APRIL | M7: MAY | N7: JUNE | O7: JULY | P7: AUGUST | Q7: SEPTEMBER
A8: Area - Harbourview Garden | B8: 647694.0838 | C8: m2 | K8: Monthly Distribution of Ag Demand | L8: =L9/$R$9 -> 0.1160066718 | M8: =M9/$R$9 -> 0.1676942971 | N8: 0.1924511329 | O8: 0.2164958114 | P8: 0.1876347008 | Q8: 0.119717386 | R8: =SUM(L8:Q8) -> 1
A9: ICI Water Use - Per Parcel | B9: 2.25 | C9: m3 | K9: RefET | L9: 61.9 | M9: 89.48 | N9: 102.69 | O9: 115.52 | P9: 100.12 | Q9: 63.88 | R9: =SUM(L9:Q9) -> 533.59
A10: Res Water Use / Year - Per Parcel | B10: =(225*2.1)/1000*365 -> 172.4625 | C10: m3 | K10: Monthly Res Demand Dist - WET | L10: OCTOBER | M10: NOVEMBER | N10: DECEMBER | O10: JANUARY | P10: FEBRUARY | Q10: MARCH
A11: QIRReturnIN | B11: 0 | C11: Unitless | L11: 0.073293213 | M11: 0.0771845879 | N11: 0.0771845879 | O11: 0.05987522225 | P11: 0.05987522225 | Q11: 0.06650858107
A12: Number of Residential Connections | B12: 303 | K12: Monthly Res Demand - DRY | L12: APRIL | M12: MAY | N12: JUNE | O12: JULY | P12: AUGUST | Q12: SEPTEMBER
A13: Number of Commercial Connections | B13: 34 | L13: 0.06650858107 | M13: 0.1035614948 | N13: 0.1035614948 | O13: 0.1195769009 | P13: 0.1195769009 | Q13: 0.073293213
A14: Aquifer Hydraulic Conductivity | B14: 1e-07 | C14: m/s | E14: Assumed Sat Flow Depth | G14: 30 | H14: m
A15: Hydraulic Gradient | B15: 0.15 | C15: Unitless | E15: Length of Shoreline | G15: 50 | H15: km
A16: WET PERIOD | K16: DRY PERIOD
B17: OCTOBER | C17: NOVEMBER | D17: DECEMBER | E17: JANUARY | F17: FEBRUARY | G17: MARCH | L17: APRIL | M17: MAY | N17: JUNE | O17: JULY | P17: AUGUST | Q17: SEPTEMBER
A18: Wet Season SW Flow (m3) | B18: 189817.3964 | C18: 1856119.418 | D18: 6574773.993 | E18: 7975459.505 | F18: 7399581.382 | G18: 5116187.782 | K18: Dry Season SW Flow (m3) | L18: 1465516.8 | M18: 622267.3152 | N18: 245140.992 | O18: 121149.3888 | P18: 82601.856 | Q18: 101253.888
A19: Direct flow composition | B19: 0.5 | C19: 0.9 | D19: 0.9 | E19: 0.9 | F19: 0.9 | G19: 0.9 | K19: Direct flow composition | L19: 0.6 | M19: 0.25 | N19: 0.1 | O19: 0.1 | P19: 0.1 | Q19: 0.1
A20: Groundwater composition | B20: =1-B19 -> 0.5 | C20: =1-C19 -> 0.1 | D20: 0.1 | E20: 0.1 | F20: 0.1 | G20: 0.1 | K20: Groundwater composition | L20: =1-L19 -> 0.4 | M20: 0.75 | N20: =1-N19 -> 0.9 | O20: =1-O19 -> 0.9 | P20: 0.9 | Q20: 0.9
B21: OCTOBER | C21: NOVEMBER | D21: DECEMBER | E21: JANUARY | F21: FEBRUARY | G21: MARCH | H21: TOTAL | L21: APRIL | M21: MAY | N21: JUNE | O21: JULY | P21: AUGUST | Q21: SEPTEMBER | R21: TOTAL
A22: Storage Change | K22: Storage Change
A23: Change In GW Level - OW 373 | B23: 0.06146153846 | C23: 3.52414359 | D23: 2.383461538 | E23: 0.6106820513 | F23: 0.403 | G23: 0.073 | K23: Change In GW Level - OW 373 | L23: -1.244 | M23: -3.592 | N23: -0.165 | O23: -0.5379312026 | P23: -1.614015168 | Q23: -0.2150536295
A24: Associated Volume | B24: =($B$7*B23)*$B$6 -> 3119.199718 | C24: =($B$7*C23)*$B$6 -> 178851.8148 | D24: 120961.7062 | E24: 30992.37881 | F24: 20452.42469 | G24: 3704.781643 | H24: =SUM(B24:G24) -> 358082.3059 | K24: Associated Volume | L24: =($B$7*L23)*$B$6 -> -63133.53923 | M24: =($B$7*M23)*$B$6 -> -182295.557 | N24: -8373.821522 | O24: -27300.24171 | P24: -81911.96939 | Q24: -10914.06491 | R24: =SUM(L24:Q24) -> -373929.1938
A25: Change in GW Level - Harbourview | B25: -0.56 | C25: 4.02 | D25: 1.76 | E25: 0.35 | F25: 0.52 | G25: 0.26 | K25: Change in GW Level - Harbourview | L25: -1.48 | M25: -1.25 | N25: -1.08 | O25: -0.87 | P25: -1.68 | Q25: -1.51
A26: Associated Volume | B26: =($B$8*B25)*$B$6 -> -362.7086869 | C26: =($B$8*C25)*$B$6 -> 2603.730217 | D26: 1139.941587 | E26: 226.6929293 | F26: 336.8009236 | G26: 168.4004618 | H26: =SUM(B26:G26) -> 4112.857432 | K26: Associated Volume | L26: =($B$8*L25)*$B$6 -> -958.587244 | M26: =($B$8*M25)*$B$6 -> -809.6176048 | N26: -699.5096105 | O26: -563.4938529 | P26: -1088.126061 | Q26: -978.0180665 | R26: =SUM(L26:Q26) -> -5097.35244
A27: TOTAL ΔSGW (m3) | B27: =B26+B24 -> 2756.491031 | C27: =C26+C24 -> 181455.545 | D27: 122101.6478 | E27: 31219.07174 | F27: 20789.22561 | G27: 3873.182105 | H27: =SUM(B27:G27) -> 362195.1633 | K27: TOTAL ΔSGW | L27: =L26+L24 -> -64092.12647 | M27: =M26+M24 -> -183105.1746 | N27: =N26+N24 -> -9073.331132 | O27: =O26+O24 -> -27863.73556 | P27: =P26+P24 -> -83000.09545 | Q27: =Q26+Q24 -> -11892.08298 | R27: =SUM(L27:Q27) -> -379026.5462
A29: Groundwater Flux Out (QGWout) | K29: Groundwater Flux Out (QGWout)
B30: =$B14*$B15*($G14*($G15*1000))*60*60*24*31 -> 60264 | C30: =$B14*$B15*($G14*($G15*1000))*60*60*24*30 -> 58320 | D30: =$B14*$B15*($G14*($G15*1000))*60*60*24*31 -> 60264 | E30: =$B14*$B15*($G14*($G15*1000))*60*60*24*31 -> 60264 | F30: =$B14*$B15*($G14*($G15*1000))*60*60*24*28 -> 54432 | G30: =$B14*$B15*($G14*($G15*1000))*60*60*24*31 -> 60264 | H30: =SUM(B30:G30) -> 353808 | L30: =$B14*$B15*($G14*($G15*1000))*60*60*24*30 -> 58320 | M30: =$B14*$B15*($G14*($G15*1000))*60*60*24*31 -> 60264 | N30: =$B14*$B15*($G14*($G15*1000))*60*60*24*30 -> 58320 | O30: 60264 | P30: 60264 | Q30: =$B14*$B15*($G14*($G15*1000))*60*60*24*30 -> 58320 | R30: =SUM(L30:Q30) -> 355752
A32: Groundwater Flux to SW (QSWout) | K32: Groundwater Flux to SW (QSWout)
B33: =(1-B$19)*B18 -> 94908.69818 | C33: =(1-C$19)*C18 -> 185611.9418 | D33: 657477.3993 | E33: 797545.9505 | F33: 739958.1382 | G33: 511618.7782 | H33: =SUM(B33:G33) -> 2987120.906 | L33: =(1-L$19)*L18 -> 586206.72 | M33: =(1-M$19)*M18 -> 466700.4864 | N33: 220626.8928 | O33: 109034.4499 | P33: 74341.6704 | Q33: 91128.4992 | R33: =SUM(L33:Q33) -> 1548038.719
A35: Runoff to SW | K35: Runoff to SW
B36: =B$19*B$18 -> 94908.69818 | C36: =C$19*C$18 -> 1670507.476 | D36: 5917296.593 | E36: 7177913.555 | F36: 6659623.244 | G36: 4604569.004 | H36: =SUM(B36:G36) -> 26124818.57 | L36: =L$19*L$18 -> 879310.08 | M36: =M$19*M$18 -> 155566.8288 | N36: 24514.0992 | O36: 12114.93888 | P36: 8260.1856 | Q36: 10125.3888 | R36: =SUM(L36:Q36) -> 1089891.521
A38: Groundwater Use | K38: Groundwater Use
A39: Residential / Domestic | K39: Residential / Domestic
A40: External Parcels | B40: =$B$12*($B$10*L11) -> 3830.020216 | C40: =$B$12*($B$10*M11) -> 4033.368438 | D40: 4033.368438 | E40: 3128.847847 | F40: 3128.847847 | G40: 3475.481558 | H40: =SUM(B40:G40) -> 21629.93434 | K40: External Parcels | L40: =$B$12*($B$10*L13) -> 3475.481558 | M40: =$B$12*($B$10*M13) -> 5411.723714 | N40: 5411.723714 | O40: 6248.626977 | P40: 6248.626977 | Q40: 3830.020216 | R40: =SUM(L40:Q40) -> 30626.20316
A41: Cedars of Taum | B41: 157.3 | C41: 246.3 | D41: 325.6 | E41: 68.9 | F41: 82.3 | G41: 79.3 | H41: =SUM(B41:G41) -> 959.7 | K41: Cedars of Taum | L41: 119.2 | M41: 159.6 | N41: 90.2 | O41: 110.4 | P41: 131.3 | Q41: 114.6 | R41: =SUM(L41:Q41) -> 725.3
A42: ICI | B42: =$B$13*$B$9 -> 76.5 | C42: =$B$13*$B$9 -> 76.5 | D42: 76.5 | E42: 76.5 | F42: 76.5 | G42: 76.5 | H42: =SUM(B42:G42) -> 459 | K42: ICI | L42: =$B$13*$B$9 -> 76.5 | M42: =$B$13*$B$9 -> 76.5 | N42: 76.5 | O42: 76.5 | P42: 76.5 | Q42: 76.5 | R42: =SUM(L42:Q42) -> 459
A43: Agricultural | B43: 0 | C43: 0 | D43: 0 | E43: 0 | F43: 0 | G43: 0 | H43: 0 | K43: Agricultural | L43: =$L$6*L8 -> 8913.836654 | M43: =$L$6*M8 -> 12885.4621 | N43: 14787.7526 | O43: 16635.32165 | P43: 14417.66277 | Q43: 9198.964223 | R43: =$L$6*R8 -> 76839
A45: SubTotal GWpumpOUT | B45: =SUM(B39:B43) -> 4063.820216 | C45: =SUM(C39:C43) -> 4356.168438 | D45: 4435.468438 | E45: 3274.247847 | F45: 3287.647847 | G45: 3631.281558 | H45: 23048.63434 | K45: SubTotal GWpumpOUT | L45: =SUM(L39:L43) -> 12585.01821 | M45: =SUM(M39:M43) -> 18533.28581 | N45: =SUM(N39:N43) -> 20366.17631 | O45: =SUM(O39:O43) -> 23070.84863 | P45: =SUM(P39:P43) -> 20874.08975 | Q45: =SUM(Q39:Q43) -> 13220.08444 | R45: =SUM(R39:R43) -> 108649.5032
A46: QIRReturnIN | B46: =B45*$B$11 -> 0 | C46: =C45*$B$11 -> 0 | D46: 0 | E46: 0 | F46: 0 | G46: 0 | H46: 0 | K46: QIRReturnIN | L46: =L45*$B$11 -> 0 | M46: =M45*$B$11 -> 0 | N46: =N45*$B$11 -> 0 | O46: =O45*$B$11 -> 0 | P46: =P45*$B$11 -> 0 | Q46: =Q45*$B$11 -> 0 | R46: =R45*$B$11 -> 0
A47: Total GWpumpOUT | B47: =B45-B46 -> 4063.820216 | C47: =C45-C46 -> 4356.168438 | D47: 4435.468438 | E47: 3274.247847 | F47: 3287.647847 | G47: 3631.281558 | H47: 23048.63434 | K47: Total GWpumpOUT | L47: =L45-L46 -> 12585.01821 | M47: =M45-M46 -> 18533.28581 | N47: =N45-N46 -> 20366.17631 | O47: =O45-O46 -> 23070.84863 | P47: =P45-P46 -> 20874.08975 | Q47: =Q45-Q46 -> 13220.08444 | R47: =R45-R46 -> 108649.5032
A49: Minimum Recharge (R - QSWout) | B49: =B47+B27+B30 -> 67084.31125 | C49: =C47+C27+C30 -> 244131.7134 | D49: 186801.1162 | E49: 94757.31959 | F49: 78508.87346 | G49: 67768.46366 | H49: =SUM(B49:G49) -> 739051.7976
A50: Recharge (QGWout + QSWout + deltaS + QGWpump) | B50: =B49+B33 -> 161993.0094 | C50: =C49+C33 -> 429743.6552 | D50: 844278.5155 | E50: 892303.2701 | F50: 818467.0116 | G50: 579387.2418 | H50: =SUM(B50:G50) -> 3726172.704 | K50: Recharge (QGWout + QSWout - deltaS + QGWpump) | L50: =L47+L33+L30+L27 -> 593019.6117 | M50: =M47+M33+M30+M27 -> 362392.5976 | N50: 290239.738 | O50: 164505.563 | P50: 72479.6647 | Q50: 150776.5007 | R50: 1633413.676
A52: Precpitation (mm) | B52: 94 | C52: 167.9 | D52: 154.3 | E52: 162.1 | F52: 98.5 | G52: 88.6 | L52: 56.8 | M52: 43 | N52: 37.4 | O52: 23.2 | P52: 28 | Q52: 33.1
A53: Precipitation (m3) | B53: =(B52/1000)*SUM($B$7:$B$8) -> 4831423.99 | C53: =(C52/1000)*SUM($B$7:$B$8) -> 8629745.615 | D53: 7930731.081 | E53: 8331636.476 | F53: 5062715.564 | G53: 4553874.101 | H53: =SUM(B53:G53) -> 39340126.83 | L53: =(L52/1000)*SUM($B$7:$B$8) -> 2919413.645 | M53: 2210119.485 | N53: 1922289.97 | O53: 1192436.559 | P53: 1439147.571 | Q53: 1701278.022 | R53: =R50+R30+R27+R24 -> 1236209.936
A55: Precipitation Dry Year 2009 (mm) | B55: 76.85862069 | C55: 130.4 | D55: 143.1 | E55: 44.6 | F55: 50.2 | G55: 63.9 | K55: Precipitation Dry Year 2009 (mm) | L55: 35.14285714 | M55: 54.9 | N55: 9.2 | O55: 10.6 | P55: 8.124137931 | Q55: 64.2
A56: Precipitation Dry Year 2009 (m3) | B56: =(B55/1000)*SUM($B$7:$B$8) -> 3950389.189 | C56: =(C55/1000)*SUM($B$7:$B$8) -> 6702315.832 | D56: 7355072.052 | E56: 2292356.489 | F56: 2580186.003 | G56: 3284340.35 | K56: Precipitation Dry Year 2009 (m3) | L56: =(L55/1000)*SUM($B$7:$B$8) -> 1806277.054 | M56: 2821757.202 | N56: 472862.7735 | O56: 544820.152 | P56: 417565.4776 | Q56: 3299759.789
A57: Recharge Change (%) | B57: =B56/B53 -> 0.817644901 | C57: =C56/C53 -> 0.7766527695 | D57: 0.9274141283 | E57: 0.2751388032 | F57: 0.5096446701 | G57: 0.7212189616 | K57: Recharge Change (%) | L57: =L56/L53 -> 0.6187122736 | M57: 1.276744186 | N57: 0.2459893048 | O57: 0.4568965517 | P57: 0.2901477833 | Q57: 1.939577039
A58: Precipitation Wet Year 2010 (mm) | B58: 127.5133333 | C58: 304.5 | D58: 101.8 | E58: 209.8035714 | F58: 94.6 | G58: 105.4 | K58: Precipitation Wet Year 2010 (mm) | L58: 47.88888889 | M58: 82.73793103 | N58: 31 | O58: 0.2000000003 | P58: 34.74137931 | Q58: 102.4285714
A59: Precipitation Wet Year 2010 (m3) | B59: =(B58/1000)*SUM($B$7:$B$8) -> 6553946.571 | C59: =(C58/1000)*SUM($B$7:$B$8) -> 15650729.84 | D59: 5232329.384 | E59: 10783510.72 | F59: 4862262.866 | G59: 5417362.644 | K59: Precipitation Wet Year 2010 (m3) | L59: =(L58/1000)*SUM($B$7:$B$8) -> 2461399.219 | M59: =(M58/1000)*SUM($B$7:$B$8) -> 4252574.732 | N59: =(N58/1000)*SUM($B$7:$B$8) -> 1593341.954 | O59: =(O58/1000)*SUM($B$7:$B$8) -> 10279.62553 | P59: =(P58/1000)*SUM($B$7:$B$8) -> 1785641.845 | Q59: =(Q58/1000)*SUM($B$7:$B$8) -> 5264636.779
A60: Recharge Change (%) | B60: =B59/B53 -> 1.356524823 | C60: =C59/C53 -> 1.813579512 | D60: 0.6597537265 | E60: 1.294284833 | F60: 0.9604060914 | G60: 1.189616253 | K60: Recharge Change (%) | L60: =L59/L53 -> 0.843114241 | M60: 1.924137931 | N60: 0.8288770054 | O60: 0.008620689668 | P60: 1.240763547 | Q60: 3.094518774
A61: Climate Change (mm) | K61: Climate Change (mm)
A62: Climate Change (m3) | K62: Climate Change (m3)
A63: Recharge Change (%) | K63: Recharge Change (%)
A65: Recharge Dry Year 2009 (m3) | B65: =B$50*B57 -> 132452.7582 | C65: =C$50*C57 -> 333761.6 | D65: 782995.8235 | E65: 245507.2538 | F65: 417127.3501 | G65: 417865.0649 | H65: =SUM(B65:G65) -> 2329709.851 | K65: Recharge Dry Year 2009 (m3) | L65: =L$50*L57 -> 366908.5123 | M65: =M$50*M57 -> 462682.6421 | N65: 71395.87138 | O65: 75162.02447 | P65: 21029.81404 | Q65: 292442.6387 | R65: =SUM(L65:Q65) -> 1289621.503
A66: Recharge Wet Year 2010 (m3) | B66: =B$50*B60 -> 219747.5384 | C66: =C$50*C60 -> 779374.2884 | D66: 557015.8968 | E66: 1154894.589 | F66: 786060.7036 | G66: 689248.4796 | H66: =SUM(B66:G66) -> 4186341.496 | K66: Recharge Wet Year 2010 (m3) | L66: =L$50*L60 -> 499983.2798 | M66: =M$50*M60 -> 697293.343 | N66: 240573.0449 | O66: 1418.151407 | P66: 89930.12584 | Q66: 466580.712 | R66: =SUM(L66:Q66) -> 1995778.657
A67: Recharge Climate Change (m3) | B67: =B$50*B63 -> 0 | C67: =C$50*C63 -> 0 | D67: 0 | E67: 0 | F67: 0 | G67: 0 | H67: =H50*A87/100 -> 3225984.463 | K67: Recharge Climate Change (m3) | L67: =L$50*L63 -> 0 | M67: =M$50*M63 -> 0 | N67: 0 | O67: 0 | P67: 0 | Q67: 0 | R67: =R50*A87/100 -> 1414150.003
A69: Total Precipitation | B69: =0.987*SUM(B7:B8) -> 50729951.89 | C69: m3
A70: Minimum Recharge % | B70: =(H49/B69)*100 -> 1.456835203 | C70: %
A71: Recharge (%) - Average Year | B71: =((H50+R50)/B$69)*100 -> 10.56493488 | C71: %
A72: Runoff (%) | B72: =((H36+R36)/B69)*100 -> 53.64623674 | C72: %
A73: Evapotranspiration (%) | B73: =100-B72-B71 -> 35.78882838 | C73: %
A74: Recharge Components
A75: Groundwater Use | B75: =((H47+R47)/B69)*100 -> 0.2596062732 | C75: %
A76: Flux to Sea | B76: =((H30+R30)/B69)*100 -> 1.398700321 | C76: %
A77: Baseflow to Creeks | B77: =B71-B76-B75 -> 8.906628281 | C77: %
A78: Wet/Dry/Climate Effects
A79: Recharge (%) - Dry Year 2009 | B79: =((H65+R65)/$B$69)*100 -> 7.134505787 | C79: %
A80: Recharge (%) - Wet Year 2010 | B80: =((H66+R66)/$B$69)*100 -> 12.18633159 | C80: %
A81: Recharge (%) - Climate Change | B81: =((H67+R67)/$B$69)*100 -> 9.146735396 | C81: %
E84: Total Recharge
A85: =(843.4/987)*1000 -> 854.508612 | E85: =(B71*B69)/100 -> 5359586.379
A86: =(A85/1000)*SUM(B7:B8) -> 43920142.63
A87: =A86/B69*100 -> 86.57635379
E92: Percent Change in Recharge | G92: Volume
E93: =((B79/B71)*100)-100 -> -32.46995015 | G93: =(B79*B$69)/100 -> 3619331.354
E94: =((B80/B71)*100)-100 -> 15.34696364 | G94: =(B80*B$69)/100 -> 6182120.153
E95: =(B81/B71)*100-100 -> -13.42364621 | G95: 4640134.466

Sheet GW Budgets - SSSI Aquifer U-D (hidden)
A1: SOUTH SALT SPRING ISLAND AQUIFER (USER-DEFINED VALUES)
A3: WET PERIOD | K3: DRY PERIOD
A5: Input Data | K5: Distributions
A6: Storage / Specific Yield | B6: 0.001 | C6: Unitless | K6: Total Agricultural Demand | L6: 76839 | M6: m3
A7: Area - OW #373 | B7: 50750433.46 | C7: m2 | L7: APRIL | M7: MAY | N7: JUNE | O7: JULY | P7: AUGUST | Q7: SEPTEMBER
A8: Area - Harbourview Garden | B8: 647694.0838 | C8: m2 | K8: Monthly Distribution of Ag Demand | L8: =L9/$R$9 -> 0.1160066718 | M8: =M9/$R$9 -> 0.1676942971 | N8: 0.1924511329 | O8: 0.2164958114 | P8: 0.1876347008 | Q8: 0.119717386 | R8: =SUM(L8:Q8) -> 1
A9: ICI Water Use - Per Parcel | B9: ='Standard and U-D Numbers'!C20*30/1000 -> 3 | C9: m3 | K9: RefET | L9: 61.9 | M9: 89.48 | N9: 102.69 | O9: 115.52 | P9: 100.12 | Q9: 63.88 | R9: =SUM(L9:Q9) -> 533.59
A10: Res Water Use / Year - Per Parcel | B10: ='Standard and U-D Numbers'!D20*365/1000 -> 182.5 | C10: m3 | K10: Monthly Res Demand Dist - WET | L10: OCTOBER | M10: NOVEMBER | N10: DECEMBER | O10: JANUARY | P10: FEBRUARY | Q10: MARCH
A11: QIRReturnIN | B11: 0 | C11: Unitless | L11: 0.073293213 | M11: 0.0771845879 | N11: 0.0771845879 | O11: 0.05987522225 | P11: 0.05987522225 | Q11: 0.06650858107
A12: Number of Residential Connections | B12: 303 | K12: Monthly Res Demand - DRY | L12: APRIL | M12: MAY | N12: JUNE | O12: JULY | P12: AUGUST | Q12: SEPTEMBER
A13: Number of Commercial Connections | B13: 34 | L13: 0.06650858107 | M13: 0.1035614948 | N13: 0.1035614948 | O13: 0.1195769009 | P13: 0.1195769009 | Q13: 0.073293213
A14: Aquifer Hydraulic Conductivity | B14: ='Standard and U-D Numbers'!E20 -> 1e-07 | C14: m/s | E14: Assumed Sat Flow Depth | G14: 30 | H14: m
A15: Hydraulic Gradient | B15: ='Standard and U-D Numbers'!F20 -> 0.05 | C15: Unitless | E15: Length of Shoreline | G15: 50 | H15: km
A16: WET PERIOD | K16: DRY PERIOD
B17: OCTOBER | C17: NOVEMBER | D17: DECEMBER | E17: JANUARY | F17: FEBRUARY | G17: MARCH | L17: APRIL | M17: MAY | N17: JUNE | O17: JULY | P17: AUGUST | Q17: SEPTEMBER
A18: Wet Season SW Flow (m3) | B18: 189817.3964 | C18: 1856119.418 | D18: 6574773.993 | E18: 7975459.505 | F18: 7399581.382 | G18: 5116187.782 | K18: Dry Season SW Flow (m3) | L18: 1465516.8 | M18: 622267.3152 | N18: 245140.992 | O18: 121149.3888 | P18: 82601.856 | Q18: 101253.888
A19: Direct flow composition | B19: ='Standard and U-D Numbers'!P20/100 -> 0.5 | C19: ='Standard and U-D Numbers'!Q20/100 -> 0.8 | D19: ='Standard and U-D Numbers'!R20/100 -> 0.8 | E19: ='Standard and U-D Numbers'!G20/100 -> 0.8 | F19: ='Standard and U-D Numbers'!H20/100 -> 0.8 | G19: ='Standard and U-D Numbers'!I20/100 -> 0.8 | K19: Direct flow composition | L19: ='Standard and U-D Numbers'!J20/100 -> 0.6 | M19: ='Standard and U-D Numbers'!K20/100 -> 0.25 | N19: ='Standard and U-D Numbers'!L20/100 -> 0.1 | O19: ='Standard and U-D Numbers'!M20/100 -> 0.1 | P19: ='Standard and U-D Numbers'!N20/100 -> 0.1 | Q19: ='Standard and U-D Numbers'!O20/100 -> 0.1
A20: Groundwater composition | B20: =1-B19 -> 0.5 | C20: =1-C19 -> 0.2 | D20: 0.2 | E20: 0.2 | F20: 0.2 | G20: 0.2 | K20: Groundwater composition | L20: =1-L19 -> 0.4 | M20: 0.75 | N20: 0.9 | O20: 0.9 | P20: 0.9 | Q20: 0.9
B21: OCTOBER | C21: NOVEMBER | D21: DECEMBER | E21: JANUARY | F21: FEBRUARY | G21: MARCH | H21: TOTAL | L21: APRIL | M21: MAY | N21: JUNE | O21: JULY | P21: AUGUST | Q21: SEPTEMBER | R21: TOTAL
A22: Storage Change | K22: Storage Change
A23: Change In GW Level - OW 373 | B23: 0.06146153846 | C23: 3.52414359 | D23: 2.383461538 | E23: 0.6106820513 | F23: 0.403 | G23: 0.073 | K23: Change In GW Level - OW 373 | L23: -1.244 | M23: -3.592 | N23: -0.165 | O23: -0.5379312026 | P23: -1.614015168 | Q23: -0.2150536295
A24: Associated Volume | B24: =($B$7*B23)*$B$6 -> 3119.199718 | C24: =($B$7*C23)*$B$6 -> 178851.8148 | D24: 120961.7062 | E24: 30992.37881 | F24: 20452.42469 | G24: 3704.781643 | H24: =SUM(B24:G24) -> 358082.3059 | K24: Associated Volume | L24: =($B$7*L23)*$B$6 -> -63133.53923 | M24: =($B$7*M23)*$B$6 -> -182295.557 | N24: -8373.821522 | O24: -27300.24171 | P24: -81911.96939 | Q24: -10914.06491 | R24: =SUM(L24:Q24) -> -373929.1938
A25: Change in GW Level - Harbourview | B25: -0.56 | C25: 4.02 | D25: 1.76 | E25: 0.35 | F25: 0.52 | G25: 0.26 | K25: Change in GW Level - Harbourview | L25: -1.48 | M25: -1.25 | N25: -1.08 | O25: -0.87 | P25: -1.68 | Q25: -1.51
A26: Associated Volume | B26: =($B$8*B25)*$B$6 -> -362.7086869 | C26: =($B$8*C25)*$B$6 -> 2603.730217 | D26: 1139.941587 | E26: 226.6929293 | F26: 336.8009236 | G26: 168.4004618 | H26: =SUM(B26:G26) -> 4112.857432 | K26: Associated Volume | L26: =($B$8*L25)*$B$6 -> -958.587244 | M26: =($B$8*M25)*$B$6 -> -809.6176048 | N26: -699.5096105 | O26: -563.4938529 | P26: -1088.126061 | Q26: -978.0180665 | R26: =SUM(L26:Q26) -> -5097.35244
A27: TOTAL ΔSGW (m3) | B27: =B26+B24 -> 2756.491031 | C27: =C26+C24 -> 181455.545 | D27: 122101.6478 | E27: 31219.07174 | F27: 20789.22561 | G27: 3873.182105 | H27: =SUM(B27:G27) -> 362195.1633 | K27: TOTAL ΔSGW | L27: =L26+L24 -> -64092.12647 | M27: =M26+M24 -> -183105.1746 | N27: -9073.331132 | O27: -27863.73556 | P27: -83000.09545 | Q27: -11892.08298 | R27: =SUM(L27:Q27) -> -379026.5462
A29: Groundwater Flux Out (QGWout) | K29: Groundwater Flux Out (QGWout)
B30: =$B14*$B15*($G14*($G15*1000))*60*60*24*31 -> 20088 | C30: =$B14*$B15*($G14*($G15*1000))*60*60*24*30 -> 19440 | D30: =$B14*$B15*($G14*($G15*1000))*60*60*24*31 -> 20088 | E30: =$B14*$B15*($G14*($G15*1000))*60*60*24*31 -> 20088 | F30: =$B14*$B15*($G14*($G15*1000))*60*60*24*28 -> 18144 | G30: =$B14*$B15*($G14*($G15*1000))*60*60*24*31 -> 20088 | H30: =SUM(B30:G30) -> 117936 | L30: =$B14*$B15*($G14*($G15*1000))*60*60*24*30 -> 19440 | M30: =$B14*$B15*($G14*($G15*1000))*60*60*24*31 -> 20088 | N30: =$B14*$B15*($G14*($G15*1000))*60*60*24*30 -> 19440 | O30: 20088 | P30: 20088 | Q30: =$B14*$B15*($G14*($G15*1000))*60*60*24*30 -> 19440 | R30: =SUM(L30:Q30) -> 118584
A32: Groundwater Flux to SW (QSWout) | K32: Groundwater Flux to SW (QSWout)
B33: =(1-B$19)*B18 -> 94908.69818 | C33: =(1-C$19)*C18 -> 371223.8836 | D33: 1314954.799 | E33: 1595091.901 | F33: 1479916.276 | G33: 1023237.556 | H33: =SUM(B33:G33) -> 5879333.114 | L33: =(1-L$19)*L18 -> 586206.72 | M33: =(1-M$19)*M18 -> 466700.4864 | N33: 220626.8928 | O33: 109034.4499 | P33: 74341.6704 | Q33: 91128.4992 | R33: =SUM(L33:Q33) -> 1548038.719
A35: Runoff to SW | K35: Runoff to SW
B36: =B$19*B$18 -> 94908.69818 | C36: =C$19*C$18 -> 1484895.535 | D36: 5259819.194 | E36: 6380367.604 | F36: 5919665.105 | G36: 4092950.225 | H36: =SUM(B36:G36) -> 23232606.36 | L36: =L$19*L$18 -> 879310.08 | M36: =M$19*M$18 -> 155566.8288 | N36: 24514.0992 | O36: 12114.93888 | P36: 8260.1856 | Q36: 10125.3888 | R36: =SUM(L36:Q36) -> 1089891.521
A38: Groundwater Use | K38: Groundwater Use
A39: Residential / Domestic | K39: Residential / Domestic
A40: External Parcels | B40: =$B$12*($B$10*L11) -> 4052.931446 | C40: =$B$12*($B$10*M11) -> 4268.114749 | D40: 4268.114749 | E40: 3310.950102 | F40: 3310.950102 | G40: 3677.758262 | H40: =SUM(B40:G40) -> 22888.81941 | K40: External Parcels | L40: =$B$12*($B$10*L13) -> 3677.758262 | M40: =$B$12*($B$10*M13) -> 5726.691761 | N40: 5726.691761 | O40: 6612.30368 | P40: 6612.30368 | Q40: 4052.931446 | R40: =SUM(L40:Q40) -> 32408.68059
A41: Cedars of Taum | B41: 157.3 | C41: 246.3 | D41: 325.6 | E41: 68.9 | F41: 82.3 | G41: 79.3 | H41: =SUM(B41:G41) -> 959.7 | K41: Cedars of Taum | L41: 119.2 | M41: 159.6 | N41: 90.2 | O41: 110.4 | P41: 131.3 | Q41: 114.6 | R41: =SUM(L41:Q41) -> 725.3
A42: ICI | B42: =$B$13*$B$9 -> 102 | C42: =$B$13*$B$9 -> 102 | D42: 102 | E42: 102 | F42: 102 | G42: 102 | H42: =SUM(B42:G42) -> 612 | K42: ICI | L42: =$B$13*$B$9 -> 102 | M42: =$B$13*$B$9 -> 102 | N42: 102 | O42: 102 | P42: 102 | Q42: 102 | R42: =SUM(L42:Q42) -> 612
A43: Agricultural | B43: 0 | C43: 0 | D43: 0 | E43: 0 | F43: 0 | G43: 0 | H43: 0 | K43: Agricultural | L43: =$L$6*L8 -> 8913.836654 | M43: =$L$6*M8 -> 12885.4621 | N43: 14787.7526 | O43: 16635.32165 | P43: 14417.66277 | Q43: 9198.964223 | R43: =$L$6*R8 -> 76839
A45: SubTotal GWpumpOUT | B45: =SUM(B39:B43) -> 4312.231446 | C45: =SUM(C39:C43) -> 4616.414749 | D45: 4695.714749 | E45: 3481.850102 | F45: 3495.250102 | G45: 3859.058262 | H45: 24460.51941 | K45: SubTotal GWpumpOUT | L45: =SUM(L39:L43) -> 12812.79492 | M45: =SUM(M39:M43) -> 18873.75386 | N45: 20706.64436 | O45: 23460.02533 | P45: 21263.26645 | Q45: 13468.49567 | R45: 110584.9806
A46: QIRReturnIN | B46: =B45*$B$11 -> 0 | C46: =C45*$B$11 -> 0 | D46: 0 | E46: 0 | F46: 0 | G46: 0 | H46: 0 | K46: QIRReturnIN | L46: =L45*$B$11 -> 0 | M46: =M45*$B$11 -> 0 | N46: 0 | O46: 0 | P46: 0 | Q46: 0 | R46: 0
A47: Total GWpumpOUT | B47: =B45-B46 -> 4312.231446 | C47: =C45-C46 -> 4616.414749 | D47: 4695.714749 | E47: 3481.850102 | F47: 3495.250102 | G47: 3859.058262 | H47: 24460.51941 | K47: Total GWpumpOUT | L47: =L45-L46 -> 12812.79492 | M47: =M45-M46 -> 18873.75386 | N47: 20706.64436 | O47: 23460.02533 | P47: 21263.26645 | Q47: 13468.49567 | R47: 110584.9806
A49: Minimum Recharge (R - QSWout) | B49: =B47+B27+B30 -> 27156.72248 | C49: =C47+C27+C30 -> 205511.9597 | D49: 146885.3626 | E49: 54788.92184 | F49: 42428.47571 | G49: 27820.24037 | H49: =SUM(B49:G49) -> 504591.6827
A50: Recharge (QGWout + QSWout + deltaS + QGWpump) | B50: =B49+B33 -> 122065.4207 | C50: =C49+C33 -> 576735.8434 | D50: 1461840.161 | E50: 1649880.823 | F50: 1522344.752 | G50: 1051057.797 | H50: =SUM(B50:G50) -> 6383924.797 | K50: Recharge (QGWout + QSWout - deltaS + QGWpump) | L50: =L47+L33+L30+L27 -> 554367.3884 | M50: =M47+M33+M30+M27 -> 322557.0656 | N50: 251700.206 | O50: 124718.7397 | P50: 32692.8414 | Q50: 112144.9119 | R50: 1398181.153
A52: Precpitation (mm) | B52: 94 | C52: 167.9 | D52: 154.3 | E52: 162.1 | F52: 98.5 | G52: 88.6 | L52: 56.8 | M52: 43 | N52: 37.4 | O52: 23.2 | P52: 28 | Q52: 33.1
A53: Precipitation (m3) | B53: =(B52/1000)*SUM($B$7:$B$8) -> 4831423.99 | C53: =(C52/1000)*SUM($B$7:$B$8) -> 8629745.615 | D53: 7930731.081 | E53: 8331636.476 | F53: 5062715.564 | G53: 4553874.101 | H53: =SUM(B53:G53) -> 39340126.83 | L53: =(L52/1000)*SUM($B$7:$B$8) -> 2919413.645 | M53: 2210119.485 | N53: 1922289.97 | O53: 1192436.559 | P53: 1439147.571 | Q53: 1701278.022 | R53: =R50+R30+R27+R24 -> 763809.4131
A55: Precipitation Dry Year 2009 (mm) | B55: 76.85862069 | C55: 130.4 | D55: 143.1 | E55: 44.6 | F55: 50.2 | G55: 63.9 | K55: Precipitation Dry Year 2009 (mm) | L55: 35.14285714 | M55: 54.9 | N55: 9.2 | O55: 10.6 | P55: 8.124137931 | Q55: 64.2
A56: Precipitation Dry Year 2009 (m3) | B56: =(B55/1000)*SUM($B$7:$B$8) -> 3950389.189 | C56: =(C55/1000)*SUM($B$7:$B$8) -> 6702315.832 | D56: 7355072.052 | E56: 2292356.489 | F56: 2580186.003 | G56: 3284340.35 | K56: Precipitation Dry Year 2009 (m3) | L56: =(L55/1000)*SUM($B$7:$B$8) -> 1806277.054 | M56: 2821757.202 | N56: 472862.7735 | O56: 544820.152 | P56: 417565.4776 | Q56: 3299759.789
A57: Recharge Change (%) | B57: =B56/B53 -> 0.817644901 | C57: =C56/C53 -> 0.7766527695 | D57: 0.9274141283 | E57: 0.2751388032 | F57: 0.5096446701 | G57: 0.7212189616 | K57: Recharge Change (%) | L57: =L56/L53 -> 0.6187122736 | M57: 1.276744186 | N57: 0.2459893048 | O57: 0.4568965517 | P57: 0.2901477833 | Q57: 1.939577039
A58: Precipitation Wet Year 2010 (mm) | B58: 127.5133333 | C58: 304.5 | D58: 101.8 | E58: 209.8035714 | F58: 94.6 | G58: 105.4 | K58: Precipitation Wet Year 2010 (mm) | L58: 47.88888889 | M58: 82.73793103 | N58: 31 | O58: 0.2000000003 | P58: 34.74137931 | Q58: 102.4285714
A59: Precipitation Wet Year 2010 (m3) | B59: =(B58/1000)*SUM($B$7:$B$8) -> 6553946.571 | C59: =(C58/1000)*SUM($B$7:$B$8) -> 15650729.84 | D59: 5232329.384 | E59: 10783510.72 | F59: 4862262.866 | G59: 5417362.644 | K59: Precipitation Wet Year 2010 (m3) | L59: =(L58/1000)*SUM($B$7:$B$8) -> 2461399.219 | M59: 4252574.732 | N59: 1593341.954 | O59: 10279.62553 | P59: 1785641.845 | Q59: 5264636.779
A60: Recharge Change (%) | B60: =B59/B53 -> 1.356524823 | C60: =C59/C53 -> 1.813579512 | D60: 0.6597537265 | E60: 1.294284833 | F60: 0.9604060914 | G60: 1.189616253 | K60: Recharge Change (%) | L60: =L59/L53 -> 0.843114241 | M60: 1.924137931 | N60: 0.8288770054 | O60: 0.008620689668 | P60: 1.240763547 | Q60: 3.094518774
A61: Climate Change (mm) | K61: Climate Change (mm)
A62: Climate Change (m3) | K62: Climate Change (m3)
A63: Recharge Change (%) | K63: Recharge Change (%)
A65: Recharge Dry Year 2009 (m3) | B65: =B$50*B57 -> 99806.16878 | C65: =C$50*C57 -> 447923.49 | D65: 1355731.219 | E65: 453946.2351 | F65: 775854.8889 | G65: 758042.8128 | H65: =SUM(B65:G65) -> 3891304.814 | K65: Recharge Dry Year 2009 (m3) | L65: =L$50*L57 -> 342993.9073 | M65: =M$50*M57 -> 411822.8582 | N65: 61915.5587 | O65: 56983.5621 | P65: 9485.755461 | Q65: 217513.6962 | R65: =SUM(L65:Q65) -> 1100715.338
A66: Recharge Wet Year 2010 (m3) | B66: =B$50*B60 -> 165584.7731 | C66: =C$50*C60 -> 1045956.309 | D66: 964454.4938 | E66: 2135415.725 | F66: 1462069.173 | G66: 1250355.438 | H66: =SUM(B66:G66) -> 7023835.912 | K66: Recharge Wet Year 2010 (m3) | L66: =L$50*L60 -> 467395.0399 | M66: =M$50*M60 -> 620644.2849 | N66: 208628.513 | O66: 1075.161551 | P66: 40564.08585 | Q66: 347034.5353 | R66: =SUM(L66:Q66) -> 1685341.621
A67: Recharge Climate Change (m3) | B67: =B$50*B63 -> 0 | C67: =C$50*C63 -> 0 | D67: 0 | E67: 0 | F67: 0 | G67: 0 | H67: =H50*A87/100 -> 5526969.318 | K67: Recharge Climate Change (m3) | L67: =L$50*L63 -> 0 | M67: =M$50*M63 -> 0 | N67: 0 | O67: 0 | P67: 0 | Q67: 0 | R67: =R50*A87/100 -> 1210494.262
A69: Total precip | B69: =0.987*SUM(B7:B8) -> 50729951.89
A70: Minimum Recharge % | B70: =(H49/B69)*100 -> 0.9946622535 | C70: % | E70: Total Recharge
A71: Recharge (%) - Average Year | B71: =((H50+R50)/B$69)*100 -> 15.34025888 | C71: % | E71: =(B71*B69)/100 -> 7782105.95
A72: Runoff (%) | B72: =((H36+R36)/B69)*100 -> 47.94504425 | C72: %
A73: Evapotranspiration (%) | B73: =100-B72-B71 -> 36.71469687 | C73: %
A74: Recharge Components
A75: Groundwater Use | B75: =((H47+R47)/B69)*100 -> 0.266204668 | C75: %
A76: Flux to Sea | B76: =((H30+R30)/B69)*100 -> 0.4662334404 | C76: %
A77: Baseflow to Creeks | B77: =B71-B76-B75 -> 14.60782077 | C77: %
E78: Percent Change in Recharge | G78: Volume
A79: Recharge (%) - Dry Year 2009 | B79: =((H65+R65)/$B$69)*100 -> 9.840380222 | C79: % | E79: =((B79/B71)*100)-100 -> -35.85258047 | G79: =(B79*B$69)/100 -> 4992020.152
A80: Recharge (%) - Wet Year 2010 | B80: =((H66+R66)/$B$69)*100 -> 17.16772283 | C80: % | E80: =((B80/B71)*100)-100 -> 11.91286252 | G80: =(B80*B$69)/100 -> 8709177.533
A81: Recharge (%) - Climate Change | B81: =((H67+R67)/$B$69)*100 -> 13.2810368 | C81: % | E81: =(B81/B71)*100-100 -> -13.42364621 | G81: 6737463.58
A85: =(843.4/987)*1000 -> 854.508612
A86: =(A85/1000)*SUM(B7:B8) -> 43920142.63
A87: =A86/B69*100 -> 86.57635379

Sheet GW Budgets-Fulford Hbr Aquifer
A1: FULFORD HARBOUR AQUIFER
A2: Input Data
A3: Area of Aquifer | B3: 5.7 | C3: km2
A4: Recharge as % of Precipitation | B4: ='GW Budgets - SSSI Aquifer'!B71 -> 10.56493488 | C4: % of | D4: 987 | E4: mm | F4: *** Based on 1981-2010 climate normals
A5: Total Recharge | B5: =(B4/100)*(B3*1000000)*(D4/1000) -> 594372.6711 | C5: m3
A6: Hydraulic Gradient (towards coast) | B6: 0.15 | C6: ( - )
A7: Length of Coast | B7: 5.5 | C7: km
A8: Assumed Saturated Flow Depth | B8: 20 | C8: m
A9: Hydraulic Conductivity | B9: 1e-06 | C9: m/s
B11: OCTOBER | C11: NOVEMBER | D11: DECEMBER | E11: JANUARY | F11: FEBRUARY | G11: MARCH | H11: APRIL | I11: MAY | J11: JUNE | K11: JULY | L11: AUGUST | M11: SEPTEMBER | N11: TOTAL
A12: Average Monthly Precip (mm, 81-10 EC normals) | B12: 94 | C12: 167.9 | D12: 154.3 | E12: 162.1 | F12: 98.5 | G12: 88.6 | H12: 56.8 | I12: 43 | J12: 37.4 | K12: 23.2 | L12: 28 | M12: 33.1 | N12: =SUM(B12:M12) -> 986.9 | O12: mm
A13: Distribution of Precipitation | B13: =B12/$N$12 -> 0.09524774547 | C13: =C12/$N$12 -> 0.1701286858 | D13: 0.1563481609 | E13: 0.1642516972 | F13: 0.09980747796 | G13: 0.08977606647 | H13: 0.05755395683 | I13: 0.04357077718 | J13: 0.03789644341 | K13: 0.0235079542 | L13: 0.02837166886 | M13: 0.03353936569 | N13: 1
A15: Recharge by Month (SSSI), m3 | B15: ='GW Budgets - SSSI Aquifer'!B50 -> 161993.0094 | C15: ='GW Budgets - SSSI Aquifer'!C50 -> 429743.6552 | D15: ='GW Budgets - SSSI Aquifer'!D50 -> 844278.5155 | E15: ='GW Budgets - SSSI Aquifer'!E50 -> 892303.2701 | F15: ='GW Budgets - SSSI Aquifer'!F50 -> 818467.0116 | G15: ='GW Budgets - SSSI Aquifer'!G50 -> 579387.2418 | H15: ='GW Budgets - SSSI Aquifer'!L50 -> 593019.6117 | I15: ='GW Budgets - SSSI Aquifer'!M50 -> 362392.5976 | J15: ='GW Budgets - SSSI Aquifer'!N50 -> 290239.738 | K15: ='GW Budgets - SSSI Aquifer'!O50 -> 164505.563 | L15: ='GW Budgets - SSSI Aquifer'!P50 -> 72479.6647 | M15: ='GW Budgets - SSSI Aquifer'!Q50 -> 150776.5007 | N15: =SUM(B15:M15) -> 5359586.379 | O15: m3
A16: Distribution of Recharge | B16: =B15/$N$15 -> 0.03022490878 | C16: =C15/$N$15 -> 0.08018224259 | D16: 0.1575268044 | E16: 0.1664873382 | F16: 0.1527108537 | G16: 0.1081029768 | H16: 0.1106465256 | I16: 0.06761577703 | J16: 0.05415338376 | K16: 0.03069370495 | L16: 0.01352336908 | M16: 0.02813211505 | N16: 1
B19: OCTOBER | C19: NOVEMBER | D19: DECEMBER | E19: JANUARY | F19: FEBRUARY | G19: MARCH | H19: APRIL | I19: MAY | J19: JUNE | K19: JULY | L19: AUGUST | M19: SEPTEMBER | N19: TOTAL
A20: Recharge by Month | B20: =$B$5*B16 -> 17964.85977 | C20: =$B$5*C16 -> 47658.1337 | D20: 93629.62754 | E20: 98955.52391 | F20: 90767.15804 | G20: 64253.45506 | H20: 65765.271 | I20: 40188.97 | J20: 32187.29135 | K20: 18243.4994 | L20: 8037.921 | M20: 16720.96037 | N20: =SUM(B20:M20) -> 594372.6711 | O20: m3
A21: Discharge to Surface / Sea | B21: =$B$9*$B$6*($B$8*($B$7*1000))*60*60*24*31 -> 44193.6 | C21: =$B$9*$B$6*($B$8*($B$7*1000))*60*60*24*30 -> 42768 | D21: =$B$9*$B$6*($B$8*($B$7*1000))*60*60*24*31 -> 44193.6 | E21: =$B$9*$B$6*($B$8*($B$7*1000))*60*60*24*31 -> 44193.6 | F21: =$B$9*$B$6*($B$8*($B$7*1000))*60*60*24*28 -> 39916.8 | G21: 44193.6 | H21: =$B$9*$B$6*($B$8*($B$7*1000))*60*60*24*30 -> 42768 | I21: 44193.6 | J21: =$B$9*$B$6*($B$8*($B$7*1000))*60*60*24*30 -> 42768 | K21: 44193.6 | L21: 44193.6 | M21: =$B$9*$B$6*($B$8*($B$7*1000))*60*60*24*30 -> 42768 | N21: =SUM(B21:M21) -> 520344 | O21: m3

Sheet GW Budgets - Burgoyne Aquifer
A1: BURGOYNE AQUIFER
A2: Input Data
A3: Area of Aquifer | B3: 1 | C3: km2
A4: Recharge as % of Precipitation | B4: ='GW Budgets - SCSSI Aquifer'!B71 -> 11.07647277 | C4: % of | D4: 987 | E4: mm | F4: *** Based on 1980-2010 climate normals
A5: Total Recharge | B5: =(B4/100)*(B3*1000000)*(D4/1000) -> 109324.7863 | C5: m3
A6: Hydraulic Gradient (towards lateral boundary) | B6: 0.04 | C6: ( - )
A7: Length of Coast | B7: 1.5 | C7: km
A8: Assumed Saturated Flow Depth | B8: 10 | C8: m
A9: Hydraulic Conductivity | B9: 5e-06 | C9: m/s
B11: OCTOBER | C11: NOVEMBER | D11: DECEMBER | E11: JANUARY | F11: FEBRUARY | G11: MARCH | H11: APRIL | I11: MAY | J11: JUNE | K11: JULY | L11: AUGUST | M11: SEPTEMBER | N11: TOTAL
A12: Average Monthly Precip (mm, 81-10 EC normals) | B12: 94 | C12: 167.9 | D12: 154.3 | E12: 162.1 | F12: 98.5 | G12: 88.6 | H12: 56.8 | I12: 43 | J12: 37.4 | K12: 23.2 | L12: 28 | M12: 33.1 | N12: =SUM(B12:M12) -> 986.9 | O12: mm
A13: Distribution of Precipitation | B13: =B12/$N$12 -> 0.09524774547 | C13: =C12/$N$12 -> 0.1701286858 | D13: 0.1563481609 | E13: 0.1642516972 | F13: 0.09980747796 | G13: 0.08977606647 | H13: 0.05755395683 | I13: 0.04357077718 | J13: 0.03789644341 | K13: 0.0235079542 | L13: 0.02837166886 | M13: 0.03353936569 | N13: 1
A15: Recharge by Month (SSSI), m3 | B15: ='GW Budgets - SSSI Aquifer'!B50 -> 161993.0094 | C15: ='GW Budgets - SSSI Aquifer'!C50 -> 429743.6552 | D15: ='GW Budgets - SSSI Aquifer'!D50 -> 844278.5155 | E15: ='GW Budgets - SSSI Aquifer'!E50 -> 892303.2701 | F15: ='GW Budgets - SSSI Aquifer'!F50 -> 818467.0116 | G15: ='GW Budgets - SSSI Aquifer'!G50 -> 579387.2418 | H15: ='GW Budgets - SSSI Aquifer'!L50 -> 593019.6117 | I15: ='GW Budgets - SSSI Aquifer'!M50 -> 362392.5976 | J15: ='GW Budgets - SSSI Aquifer'!N50 -> 290239.738 | K15: ='GW Budgets - SSSI Aquifer'!O50 -> 164505.563 | L15: ='GW Budgets - SSSI Aquifer'!P50 -> 72479.6647 | M15: ='GW Budgets - SSSI Aquifer'!Q50 -> 150776.5007 | N15: =SUM(B15:M15) -> 5359586.379 | O15: m3
A16: Distribution of Recharge | B16: =B15/$N$15 -> 0.03022490878 | C16: =C15/$N$15 -> 0.08018224259 | D16: 0.1575268044 | E16: 0.1664873382 | F16: 0.1527108537 | G16: 0.1081029768 | H16: 0.1106465256 | I16: 0.06761577703 | J16: 0.05415338376 | K16: 0.03069370495 | L16: 0.01352336908 | M16: 0.02813211505 | N16: 1
B19: OCTOBER | C19: NOVEMBER | D19: DECEMBER | E19: JANUARY | F19: FEBRUARY | G19: MARCH | H19: APRIL | I19: MAY | J19: JUNE | K19: JULY | L19: AUGUST | M19: SEPTEMBER | N19: TOTAL
A20: Recharge by Month | B20: =$B$5*B16 -> 3304.331693 | C20: =$B$5*C16 -> 8765.906534 | D20: 17221.58423 | E20: 18201.19267 | F20: 16695.08145 | G20: 11818.33483 | H20: 12096.40777 | I20: 7392.080372 | J20: 5920.307105 | K20: 3355.582734 | L20: 1478.439434 | M20: 3075.537465 | N20: =SUM(B20:M20) -> 109324.7863 | O20: m3
A21: Discharge to Surface / Distal Boundary | B21: =$B$9*$B$6*($B$8*($B$7*1000))*60*60*24*31 -> 8035.2 | C21: =$B$9*$B$6*($B$8*($B$7*1000))*60*60*24*30 -> 7776 | D21: =$B$9*$B$6*($B$8*($B$7*1000))*60*60*24*31 -> 8035.2 | E21: =$B$9*$B$6*($B$8*($B$7*1000))*60*60*24*31 -> 8035.2 | F21: =$B$9*$B$6*($B$8*($B$7*1000))*60*60*24*28 -> 7257.6 | G21: 8035.2 | H21: =$B$9*$B$6*($B$8*($B$7*1000))*60*60*24*30 -> 7776 | I21: 8035.2 | J21: =$B$9*$B$6*($B$8*($B$7*1000))*60*60*24*30 -> 7776 | K21: 8035.2 | L21: 8035.2 | M21: =$B$9*$B$6*($B$8*($B$7*1000))*60*60*24*30 -> 7776 | N21: =SUM(B21:M21) -> 94608 | O21: m3

Sheet GW Budgets - Ganges Hbr Aquifer
A1: GANGES HARBOUR AQUIFER
A2: Input Data
A3: Area of Aquifer | B3: 2.5 | C3: km2
A4: Recharge as %age of Precipitation | B4: ='GW Budgets - NCSSI Aquifer'!B71 -> 11.92844877 | C4: % of | D4: 987 | E4: mm | F4: *** Based on 1980-2010 climate normals
A5: Total Recharge | B5: =(B4/100)*(B3*1000000)*(D4/1000) -> 294334.4734 | C5: m3
A6: Hydraulic Gradient (towards lateral boundary) | B6: 0.1 | C6: ( - )
A7: Length of Coast | B7: 5 | C7: km
A8: Assumed Saturated Flow Depth | B8: 5 | C8: m
A9: Hydraulic Conductivity | B9: 4e-06 | C9: m/s
B11: OCTOBER | C11: NOVEMBER | D11: DECEMBER | E11: JANUARY | F11: FEBRUARY | G11: MARCH | H11: APRIL | I11: MAY | J11: JUNE | K11: JULY | L11: AUGUST | M11: SEPTEMBER | N11: TOTAL
A12: Average Monthly Precip (mm, 81-10 EC normals) | B12: 94 | C12: 167.9 | D12: 154.3 | E12: 162.1 | F12: 98.5 | G12: 88.6 | H12: 56.8 | I12: 43 | J12: 37.4 | K12: 23.2 | L12: 28 | M12: 33.1 | N12: =SUM(B12:M12) -> 986.9 | O12: mm
A13: Distribution of Precipitation | B13: =B12/$N$12 -> 0.09524774547 | C13: =C12/$N$12 -> 0.1701286858 | D13: 0.1563481609 | E13: 0.1642516972 | F13: 0.09980747796 | G13: 0.08977606647 | H13: 0.05755395683 | I13: 0.04357077718 | J13: 0.03789644341 | K13: 0.0235079542 | L13: 0.02837166886 | M13: 0.03353936569 | N13: 1
A15: Recharge by Month (SSSI), m3 | B15: ='GW Budgets - SSSI Aquifer'!B50 -> 161993.0094 | C15: ='GW Budgets - SSSI Aquifer'!C50 -> 429743.6552 | D15: ='GW Budgets - SSSI Aquifer'!D50 -> 844278.5155 | E15: ='GW Budgets - SSSI Aquifer'!E50 -> 892303.2701 | F15: ='GW Budgets - SSSI Aquifer'!F50 -> 818467.0116 | G15: ='GW Budgets - SSSI Aquifer'!G50 -> 579387.2418 | H15: ='GW Budgets - SSSI Aquifer'!L50 -> 593019.6117 | I15: ='GW Budgets - SSSI Aquifer'!M50 -> 362392.5976 | J15: ='GW Budgets - SSSI Aquifer'!N50 -> 290239.738 | K15: ='GW Budgets - SSSI Aquifer'!O50 -> 164505.563 | L15: ='GW Budgets - SSSI Aquifer'!P50 -> 72479.6647 | M15: ='GW Budgets - SSSI Aquifer'!Q50 -> 150776.5007 | N15: =SUM(B15:M15) -> 5359586.379 | O15: m3
A16: Distribution of Recharge | B16: =B15/$N$15 -> 0.03022490878 | C16: =C15/$N$15 -> 0.08018224259 | D16: 0.1575268044 | E16: 0.1664873382 | F16: 0.1527108537 | G16: 0.1081029768 | H16: 0.1106465256 | I16: 0.06761577703 | J16: 0.05415338376 | K16: 0.03069370495 | L16: 0.01352336908 | M16: 0.02813211505 | N16: 1
B19: OCTOBER | C19: NOVEMBER | D19: DECEMBER | E19: JANUARY | F19: FEBRUARY | G19: MARCH | H19: APRIL | I19: MAY | J19: JUNE | K19: JULY | L19: AUGUST | M19: SEPTEMBER | N19: TOTAL
A20: Recharge by Month | B20: =$B$5*B16 -> 8896.23261 | C20: =$B$5*C16 -> 23600.39815 | D20: 46365.56903 | E20: 49002.96302 | F20: 44948.06872 | G20: 31818.43274 | H20: 32567.08686 | I20: 19901.65413 | J20: 15939.20769 | K20: 9034.215484 | L20: 3980.393715 | M20: 8280.25127 | N20: =SUM(B20:M20) -> 294334.4734 | O20: m3
A21: Discharge to Surface / Distal Boundary | B21: =$B$9*$B$6*($B$8*($B$7*1000))*60*60*24*31 -> 26784 | C21: =$B$9*$B$6*($B$8*($B$7*1000))*60*60*24*30 -> 25920 | D21: =$B$9*$B$6*($B$8*($B$7*1000))*60*60*24*31 -> 26784 | E21: =$B$9*$B$6*($B$8*($B$7*1000))*60*60*24*31 -> 26784 | F21: =$B$9*$B$6*($B$8*($B$7*1000))*60*60*24*28 -> 24192 | G21: 26784 | H21: =$B$9*$B$6*($B$8*($B$7*1000))*60*60*24*30 -> 25920 | I21: 26784 | J21: =$B$9*$B$6*($B$8*($B$7*1000))*60*60*24*30 -> 25920 | K21: 26784 | L21: 26784 | M21: =$B$9*$B$6*($B$8*($B$7*1000))*60*60*24*30 -> 25920 | N21: =SUM(B21:M21) -> 315360 | O21: m3

Sheet GW Budgets-Walker Hook Aquifer
A1: WALKER HOOK AQUIFER
A2: Input Data
A3: Area of Aquifer | B3: 0.3 | C3: km2
A4: Recharge as %age of Precipitation | B4: ='GW Budgets - NSSI Aquifer'!B83 -> 10.30561783 | C4: % of | D4: 987 | E4: mm | F4: *** Based on 1980-2010 climate normals
A5: Total Recharge | B5: =(B4/100)*(B3*1000000)*(D4/1000) -> 30514.93438 | C5: m3
A6: Hydraulic Gradient (towards lateral boundary) | B6: 0.05 | C6: ( - )
A7: Length of Coast | B7: 0.5 | C7: km
A8: Assumed Saturated Flow Depth | B8: 5 | C8: m
A9: Hydraulic Conductivity | B9: 8e-06 | C9: m/s
B11: OCTOBER | C11: NOVEMBER | D11: DECEMBER | E11: JANUARY | F11: FEBRUARY | G11: MARCH | H11: APRIL | I11: MAY | J11: JUNE | K11: JULY | L11: AUGUST | M11: SEPTEMBER | N11: TOTAL
A12: Average Monthly Precip (mm, 81-10 EC normals) | B12: 94 | C12: 167.9 | D12: 154.3 | E12: 162.1 | F12: 98.5 | G12: 88.6 | H12: 56.8 | I12: 43 | J12: 37.4 | K12: 23.2 | L12: 28 | M12: 33.1 | N12: =SUM(B12:M12) -> 986.9 | O12: mm
A13: Distribution of Precipitation | B13: =B12/$N$12 -> 0.09524774547 | C13: =C12/$N$12 -> 0.1701286858 | D13: 0.1563481609 | E13: 0.1642516972 | F13: 0.09980747796 | G13: 0.08977606647 | H13: 0.05755395683 | I13: 0.04357077718 | J13: 0.03789644341 | K13: 0.0235079542 | L13: 0.02837166886 | M13: 0.03353936569 | N13: 1
A15: Recharge by Month (SSSI), m3 | B15: ='GW Budgets - SSSI Aquifer'!B50 -> 161993.0094 | C15: ='GW Budgets - SSSI Aquifer'!C50 -> 429743.6552 | D15: ='GW Budgets - SSSI Aquifer'!D50 -> 844278.5155 | E15: ='GW Budgets - SSSI Aquifer'!E50 -> 892303.2701 | F15: ='GW Budgets - SSSI Aquifer'!F50 -> 818467.0116 | G15: ='GW Budgets - SSSI Aquifer'!G50 -> 579387.2418 | H15: ='GW Budgets - SSSI Aquifer'!L50 -> 593019.6117 | I15: ='GW Budgets - SSSI Aquifer'!M50 -> 362392.5976 | J15: ='GW Budgets - SSSI Aquifer'!N50 -> 290239.738 | K15: ='GW Budgets - SSSI Aquifer'!O50 -> 164505.563 | L15: ='GW Budgets - SSSI Aquifer'!P50 -> 72479.6647 | M15: ='GW Budgets - SSSI Aquifer'!Q50 -> 150776.5007 | N15: =SUM(B15:M15) -> 5359586.379 | O15: m3
A16: Distribution of Recharge | B16: =B15/$N$15 -> 0.03022490878 | C16: =C15/$N$15 -> 0.08018224259 | D16: 0.1575268044 | E16: 0.1664873382 | F16: 0.1527108537 | G16: 0.1081029768 | H16: 0.1106465256 | I16: 0.06761577703 | J16: 0.05415338376 | K16: 0.03069370495 | L16: 0.01352336908 | M16: 0.02813211505 | N16: 1
B19: OCTOBER | C19: NOVEMBER | D19: DECEMBER | E19: JANUARY | F19: FEBRUARY | G19: MARCH | H19: APRIL | I19: MAY | J19: JUNE | K19: JULY | L19: AUGUST | M19: SEPTEMBER | N19: TOTAL
A20: Recharge by Month | B20: =$B$5*B16 -> 922.3111081 | C20: =$B$5*C16 -> 2446.755871 | D20: 4806.920101 | E20: 5080.3502 | F20: 4659.961681 | G20: 3298.755242 | H20: 3376.371469 | I20: 2063.290999 | J20: 1652.486952 | K20: 936.6163925 | L20: 412.6647199 | M20: 858.4496448 | N20: =SUM(B20:M20) -> 30514.93438 | O20: m3
A21: Discharge to Surface / Distal Boundary | B21: =$B$9*$B$6*($B$8*($B$7*1000))*60*60*24*31 -> 2678.4 | C21: =$B$9*$B$6*($B$8*($B$7*1000))*60*60*24*30 -> 2592 | D21: =$B$9*$B$6*($B$8*($B$7*1000))*60*60*24*31 -> 2678.4 | E21: =$B$9*$B$6*($B$8*($B$7*1000))*60*60*24*31 -> 2678.4 | F21: =$B$9*$B$6*($B$8*($B$7*1000))*60*60*24*28 -> 2419.2 | G21: 2678.4 | H21: =$B$9*$B$6*($B$8*($B$7*1000))*60*60*24*30 -> 2592 | I21: 2678.4 | J21: =$B$9*$B$6*($B$8*($B$7*1000))*60*60*24*30 -> 2592 | K21: 2678.4 | L21: 2678.4 | M21: =$B$9*$B$6*($B$8*($B$7*1000))*60*60*24*30 -> 2592 | N21: =SUM(B21:M21) -> 31536 | O21: m3

Sheet Assumptions and Limitations

Sheet Form Control Selectors (hidden)
I10: INDEX SELECTOR GRAPH
A11: Spreadsheet | B11: Analysis Dashboard | C11: Analysis Dashboard
A12: Form Control Description | B12: Aquifer Selection Form | C12: Meteorological Scenario | I12: 1 | J12: 5
I13: 2 | J13: 6
B14: North Salt Spring Island Aquifer | C14: Standard Numbers (Golder 2018) | I14: 3 | J14: 7
B15: North-Central Salt Spring Island Aquifer | C15: User-Defined Numbers | I15: 4 | J15: 8
B16: South-Central Salt Spring Island Aquifer
B17: South Salt Spring Island Aquifer | I17: Selector | J17: =INDEX(I12:J15,B23,C23) -> 8
B22: Selected Value | C22: Selected Value | D22: Selected Value | E22: Selected Value | F22: Selected Value
B23: 4 | C23: 2 | D23: TRUE | E23: FALSE | F23: FALSE
A24: SELECTOR FOR DATA PRESENTATION
A25: For… | B25: Nested IF statements for data presentation selection | D25: AQUIFER AREAS | E25: HYDRAULIC CONDUCTIVITY | F25: HYDRAULIC GRADIENT
A26: NORTH SALT SPRING ISLAND AQUIFER | B26: =IF($B$23<>1,"",IF($C$23=1,1,IF($C$23=2,5,""))) ->  | D26: 48.2 | E26: 0.001 | F26: =MAX('[1]Hopington AB - Analysis'!L11:M11) -> 10000
A27: NORTH-CENTRAL SALT SPRING ISLAND AQUIFER | B27: =IF($B$23<>2,"",IF($C$23=1,2,IF($C$23=2,6,""))) ->  | D27: 36.3 | E27: 0.001 | F27: =MAX('[1]Fort Langley - Analysis'!L11:M11) -> 0
A28: SOUTH-CENTRAL SALT SPRING ISLAND AQUIFER | B28: =IF($B$23<>3,"",IF($C$23=1,3,IF($C$23=2,7,""))) ->  | D28: 48.8 | E28: 0.001 | F28: =MAX('[1]Beaver River - Analysis'!$L$11:$M$11) -> 0
A29: SOUTH SALT SPRING ISLAND AQUIFER | B29: =IF($B$23<>4,"",IF($C$23=1,4,IF($C$23=2,8,""))) -> 8 | D29: 51.4 | E29: 0.001 | F29: =MAX('[1]West of Aldergrove - Analysis'!L11:M11) -> 0
A30: NORTH SALT SPRING ISLAND AQUIFER (USER-DEFINED) | B30: =IF($B$23<>5,"",IF($C$23=1,13,IF($C$23=2,14,IF($C$23=3,15,"")))) ->  | D30: 48.2 | E30: 0.001 | F30: =MAX('[1]Hopington AB - Analysis'!L15:M15) -> 0.08
A31: NORTH-CENTRAL SALT SPRING ISLAND AQUIFER (USER-DEFINED) | B31: =IF($B$23<>6,"",IF($C$23=1,16,IF($C$23=2,17,IF($C$23=3,18,"")))) ->  | D31: 36.3 | E31: 0.001 | F31: =MAX('[1]Fort Langley - Analysis'!L15:M15) -> 0.14
A32: SOUTH-CENTRAL SALT SPRING ISLAND AQUIFER (USER-DEFINED) | B32: =IF($B$23<>7,"",IF($C$23=1,19,IF($C$23=2,20,IF($C$23=3,21,"")))) ->  | D32: 48.8 | E32: 0.001 | F32: =MAX('[1]Beaver River - Analysis'!$L$11:$M$11) -> 0
A33: SOUTH SALT SPRING ISLAND AQUIFER (USER-DEFINED) | D33: 51.4 | E33: 0.001 | F33: =MAX('[1]West of Aldergrove - Analysis'!L15:M15) -> 0.0019
A35: Selector | B35: =MAX(B26:B32) -> 8
A38: SELECTORS FOR GROUNDWATER BUDGET REPORT
A40: Aquifer Name | B40: =INDEX(A26:A32,B23) -> SOUTH SALT SPRING ISLAND AQUIFER | D40: STANDARD NUMBERS (GOLDER 2018)
A41: Groundwater Budget Parameters | B41: =INDEX(D40:D42,C23) -> USER-DEFINED NUMBERS | D41: USER-DEFINED NUMBERS
A43: For Charting
A44: ='Groundwater Budget Report'!$F40 -> 47.94504425
A45: ='Groundwater Budget Report'!$F41 -> 36.71469687
A46: ='Groundwater Budget Report'!$G43 -> 14.60782077
A47: ='Groundwater Budget Report'!$G44 -> 0.4662334404
A48: ='Groundwater Budget Report'!$G45 -> 0.266204668
A52: DIRECT RUNOFF
A53: EVAPOTRANSPIRATION
A54: GROUNDWATER TO BASEFLOW
A55: GROUNDWATER TO SEA
A56: GROUNDWATER USE

Sheet Standard and U-D Numbers (hidden)
B12: Total Agricultural Demand | C12: ICI | D12: Residential External Parcels | E12: Hyd Cond | F12: Hyd Grad | G12: Jan | H12: Feb | I12: Mar | J12: Apr | K12: May | L12: Jun | M12: Jul | N12: Aug | O12: Sep | P12: Oct | Q12: Nov | R12: Dec
A13: NSSI (Standard) | B13: 142844 | C13: ='GW Budgets - NSSI Aquifer'!B11/30*1000 -> 75 | D13: ='GW Budgets - NSSI Aquifer'!B12/365*1000 -> 472.5 | E13: 2e-07 | F13: 0.05 | G13: 90 | H13: 90 | I13: 90 | J13: 60 | K13: 25 | L13: 10 | M13: 10 | N13: 10 | O13: 10 | P13: 50 | Q13: 90 | R13: 90
A14: NCSSI (Standard) | B14: 60937 | C14: ='GW Budgets - NCSSI Aquifer'!B$9/30*1000 -> 75 | D14: ='GW Budgets - NCSSI Aquifer'!B$10/365*1000 -> 472.5 | E14: 2e-07 | F14: 0.1 | G14: 90 | H14: 90 | I14: 90 | J14: 60 | K14: 25 | L14: 10 | M14: 10 | N14: 10 | O14: 10 | P14: 50 | Q14: 90 | R14: 90
A15: SCSSI (Standard) | B15: 42930 | C15: ='GW Budgets - SCSSI Aquifer'!B$9/30*1000 -> 75 | D15: ='GW Budgets - SCSSI Aquifer'!B$10/365*1000 -> 472.5 | E15: 2e-07 | F15: 0.1 | G15: 90 | H15: 90 | I15: 90 | J15: 60 | K15: 25 | L15: 10 | M15: 10 | N15: 10 | O15: 10 | P15: 50 | Q15: 90 | R15: 90
A16: SSSI (Standard) | B16: 76839 | C16: ='GW Budgets - SSSI Aquifer'!B$9/30*1000 -> 75 | D16: ='GW Budgets - SSSI Aquifer'!B$10/365*1000 -> 472.5 | E16: 1e-07 | F16: 0.15 | G16: 90 | H16: 90 | I16: 90 | J16: 60 | K16: 25 | L16: 10 | M16: 10 | N16: 10 | O16: 10 | P16: 50 | Q16: 90 | R16: 90
A17: NSSI (User-Def) | B17: ='Analysis Dashboard'!$L$26 -> 50000 | C17: ='Analysis Dashboard'!$L$27 -> 100 | D17: ='Analysis Dashboard'!$L$28 -> 500 | E17: ='Analysis Dashboard'!$L$30 -> 1e-07 | F17: ='Analysis Dashboard'!$L$31 -> 0.05 | G17: ='Analysis Dashboard'!$L$33 -> 80 | H17: ='Analysis Dashboard'!$L$34 -> 80 | I17: ='Analysis Dashboard'!$L$35 -> 80 | J17: ='Analysis Dashboard'!$L$36 -> 60 | K17: ='Analysis Dashboard'!$L$37 -> 25 | L17: ='Analysis Dashboard'!$L$38 -> 10 | M17: ='Analysis Dashboard'!$L$39 -> 10 | N17: ='Analysis Dashboard'!$L$40 -> 10 | O17: ='Analysis Dashboard'!$L$41 -> 10 | P17: ='Analysis Dashboard'!$L$42 -> 50 | Q17: ='Analysis Dashboard'!$L$43 -> 80 | R17: ='Analysis Dashboard'!$L$44 -> 80
A18: NCSSI (User-Def) | B18: ='Analysis Dashboard'!$L$26 -> 50000 | C18: ='Analysis Dashboard'!$L$27 -> 100 | D18: ='Analysis Dashboard'!$L$28 -> 500 | E18: ='Analysis Dashboard'!$L$30 -> 1e-07 | F18: ='Analysis Dashboard'!$L$31 -> 0.05 | G18: ='Analysis Dashboard'!$L$33 -> 80 | H18: ='Analysis Dashboard'!$L$34 -> 80 | I18: ='Analysis Dashboard'!$L$35 -> 80 | J18: ='Analysis Dashboard'!$L$36 -> 60 | K18: ='Analysis Dashboard'!$L$37 -> 25 | L18: ='Analysis Dashboard'!$L$38 -> 10 | M18: ='Analysis Dashboard'!$L$39 -> 10 | N18: ='Analysis Dashboard'!$L$40 -> 10 | O18: ='Analysis Dashboard'!$L$41 -> 10 | P18: ='Analysis Dashboard'!$L$42 -> 50 | Q18: ='Analysis Dashboard'!$L$43 -> 80 | R18: ='Analysis Dashboard'!$L$44 -> 80
A19: SCSSI (User-Def) | B19: ='Analysis Dashboard'!$L$26 -> 50000 | C19: ='Analysis Dashboard'!$L$27 -> 100 | D19: ='Analysis Dashboard'!$L$28 -> 500 | E19: ='Analysis Dashboard'!$L$30 -> 1e-07 | F19: ='Analysis Dashboard'!$L$31 -> 0.05 | G19: ='Analysis Dashboard'!$L$33 -> 80 | H19: ='Analysis Dashboard'!$L$34 -> 80 | I19: ='Analysis Dashboard'!$L$35 -> 80 | J19: ='Analysis Dashboard'!$L$36 -> 60 | K19: ='Analysis Dashboard'!$L$37 -> 25 | L19: ='Analysis Dashboard'!$L$38 -> 10 | M19: ='Analysis Dashboard'!$L$39 -> 10 | N19: ='Analysis Dashboard'!$L$40 -> 10 | O19: ='Analysis Dashboard'!$L$41 -> 10 | P19: ='Analysis Dashboard'!$L$42 -> 50 | Q19: ='Analysis Dashboard'!$L$43 -> 80 | R19: ='Analysis Dashboard'!$L$44 -> 80
A20: SSSI (User-Def) | B20: ='Analysis Dashboard'!$L$26 -> 50000 | C20: ='Analysis Dashboard'!$L$27 -> 100 | D20: ='Analysis Dashboard'!$L$28 -> 500 | E20: ='Analysis Dashboard'!$L$30 -> 1e-07 | F20: ='Analysis Dashboard'!$L$31 -> 0.05 | G20: ='Analysis Dashboard'!$L$33 -> 80 | H20: ='Analysis Dashboard'!$L$34 -> 80 | I20: ='Analysis Dashboard'!$L$35 -> 80 | J20: ='Analysis Dashboard'!$L$36 -> 60 | K20: ='Analysis Dashboard'!$L$37 -> 25 | L20: ='Analysis Dashboard'!$L$38 -> 10 | M20: ='Analysis Dashboard'!$L$39 -> 10 | N20: ='Analysis Dashboard'!$L$40 -> 10 | O20: ='Analysis Dashboard'!$L$41 -> 10 | P20: ='Analysis Dashboard'!$L$42 -> 50 | Q20: ='Analysis Dashboard'!$L$43 -> 80 | R20: ='Analysis Dashboard'!$L$44 -> 80
A22: Direct Runoff Results | B22: JAN | C22: FEB | D22: MAR | E22: APR | F22: MAY | G22: JUN | H22: JUL | I22: AUG | J22: SEP | K22: OCT | L22: NOV | M22: DEC | N22: ANNUAL
A23: NSSI (Standard) | B23: ='GW Budgets - NSSI Aquifer'!E$42 -> 6731039.559 | C23: ='GW Budgets - NSSI Aquifer'!F$42 -> 6245016.349 | D23: ='GW Budgets - NSSI Aquifer'!G$42 -> 4317903.229 | E23: ='GW Budgets - NSSI Aquifer'!L$42 -> 824567.04 | F23: ='GW Budgets - NSSI Aquifer'!M$42 -> 145881.7344 | G23: ='GW Budgets - NSSI Aquifer'!N$42 -> 22987.9296 | H23: ='GW Budgets - NSSI Aquifer'!O$42 -> 11360.70144 | I23: ='GW Budgets - NSSI Aquifer'!P$42 -> 7745.9328 | J23: ='GW Budgets - NSSI Aquifer'!Q$42 -> 9495.0144 | K23: ='GW Budgets - NSSI Aquifer'!B$42 -> 88999.98545 | L23: ='GW Budgets - NSSI Aquifer'!C$42 -> 1566507.011 | M23: ='GW Budgets - NSSI Aquifer'!D$42 -> 5548904.588 | N23: ='GW Budgets - NSSI Aquifer'!H$42+'GW Budgets - NSSI Aquifer'!R$42 -> 25520409.07
A24: NCSSI (Standard) | B24: ='GW Budgets - NCSSI Aquifer'!E$36 -> 5069226.888 | C24: ='GW Budgets - NCSSI Aquifer'!F$36 -> 4703196.96 | D24: ='GW Budgets - NCSSI Aquifer'!G$36 -> 3251864.88 | E24: ='GW Budgets - NCSSI Aquifer'!L$36 -> 620991.36 | F24: ='GW Budgets - NCSSI Aquifer'!M$36 -> 109865.2896 | G24: ='GW Budgets - NCSSI Aquifer'!N$36 -> 17312.4864 | H24: ='GW Budgets - NCSSI Aquifer'!O$36 -> 8555.88096 | I24: ='GW Budgets - NCSSI Aquifer'!P$36 -> 5833.5552 | J24: ='GW Budgets - NCSSI Aquifer'!Q$36 -> 7150.8096 | K24: ='GW Budgets - NCSSI Aquifer'!B$36 -> 67026.96 | L24: ='GW Budgets - NCSSI Aquifer'!C$36 -> 1179755.28 | M24: ='GW Budgets - NCSSI Aquifer'!D$36 -> 4178946.816 | N24: ='GW Budgets - NCSSI Aquifer'!H$36+'GW Budgets - NCSSI Aquifer'!R$36 -> 19219727.17
A25: SCSSI (Standard) | B25: ='GW Budgets - SCSSI Aquifer'!E$36 -> 6814828.433 | C25: ='GW Budgets - SCSSI Aquifer'!F$36 -> 6322755.142 | D25: ='GW Budgets - SCSSI Aquifer'!G$36 -> 4371653.062 | E25: ='GW Budgets - SCSSI Aquifer'!L$36 -> 834831.36 | F25: ='GW Budgets - SCSSI Aquifer'!M$36 -> 147697.6896 | G25: ='GW Budgets - SCSSI Aquifer'!N$36 -> 23274.0864 | H25: ='GW Budgets - SCSSI Aquifer'!O$36 -> 11502.12096 | I25: ='GW Budgets - SCSSI Aquifer'!P$36 -> 7842.3552 | J25: ='GW Budgets - SCSSI Aquifer'!Q$36 -> 9613.2096 | K25: ='GW Budgets - SCSSI Aquifer'!B$36 -> 90107.86909 | L25: ='GW Budgets - SCSSI Aquifer'!C$36 -> 1586007.098 | M25: ='GW Budgets - SCSSI Aquifer'!D$36 -> 5617978.089 | N25: ='GW Budgets - SCSSI Aquifer'!H$36+'GW Budgets - SCSSI Aquifer'!R$36 -> 25838090.51
A26: SSSI (Standard) | B26: ='GW Budgets - SSSI Aquifer'!E$36 -> 7177913.555 | C26: ='GW Budgets - SSSI Aquifer'!F$36 -> 6659623.244 | D26: ='GW Budgets - SSSI Aquifer'!G$36 -> 4604569.004 | E26: ='GW Budgets - SSSI Aquifer'!L$36 -> 879310.08 | F26: ='GW Budgets - SSSI Aquifer'!M$36 -> 155566.8288 | G26: ='GW Budgets - SSSI Aquifer'!N$36 -> 24514.0992 | H26: ='GW Budgets - SSSI Aquifer'!O$36 -> 12114.93888 | I26: ='GW Budgets - SSSI Aquifer'!P$36 -> 8260.1856 | J26: ='GW Budgets - SSSI Aquifer'!Q$36 -> 10125.3888 | K26: ='GW Budgets - SSSI Aquifer'!B$36 -> 94908.69818 | L26: ='GW Budgets - SSSI Aquifer'!C$36 -> 1670507.476 | M26: ='GW Budgets - SSSI Aquifer'!D$36 -> 5917296.593 | N26: ='GW Budgets - SSSI Aquifer'!H$36+'GW Budgets - SSSI Aquifer'!R$36 -> 27214710.09
A27: NSSI (User-Def) | B27: ='GW Budgets - NSSI Aquifer U-D'!E$42 -> 5983146.275 | C27: ='GW Budgets - NSSI Aquifer U-D'!F$42 -> 5551125.644 | D27: ='GW Budgets - NSSI Aquifer U-D'!G$42 -> 3838136.204 | E27: ='GW Budgets - NSSI Aquifer U-D'!L$42 -> 824567.04 | F27: ='GW Budgets - NSSI Aquifer U-D'!M$42 -> 145881.7344 | G27: ='GW Budgets - NSSI Aquifer U-D'!N$42 -> 22987.9296 | H27: ='GW Budgets - NSSI Aquifer U-D'!O$42 -> 11360.70144 | I27: ='GW Budgets - NSSI Aquifer U-D'!P$42 -> 7745.9328 | J27: ='GW Budgets - NSSI Aquifer U-D'!Q$42 -> 9495.0144 | K27: ='GW Budgets - NSSI Aquifer U-D'!B$42 -> 88999.98545 | L27: ='GW Budgets - NSSI Aquifer U-D'!C$42 -> 1392450.676 | M27: ='GW Budgets - NSSI Aquifer U-D'!D$42 -> 4932359.633 | N27: ='GW Budgets - NSSI Aquifer U-D'!H42+'GW Budgets - NSSI Aquifer U-D'!R42 -> 22808256.77
A28: NCSSI (User-Def) | B28: ='GW Budgets - NCSSI Aquifer U-D'!E$36 -> 4505979.456 | C28: ='GW Budgets - NCSSI Aquifer U-D'!F$36 -> 4180619.52 | D28: ='GW Budgets - NCSSI Aquifer U-D'!G$36 -> 2890546.56 | E28: ='GW Budgets - NCSSI Aquifer U-D'!L$36 -> 620991.36 | F28: ='GW Budgets - NCSSI Aquifer U-D'!M$36 -> 109865.2896 | G28: ='GW Budgets - NCSSI Aquifer U-D'!N$36 -> 17312.4864 | H28: ='GW Budgets - NCSSI Aquifer U-D'!O$36 -> 8555.88096 | I28: ='GW Budgets - NCSSI Aquifer U-D'!P$36 -> 5833.5552 | J28: ='GW Budgets - NCSSI Aquifer U-D'!Q$36 -> 7150.8096 | K28: ='GW Budgets - NCSSI Aquifer U-D'!B$36 -> 67026.96 | L28: ='GW Budgets - NCSSI Aquifer U-D'!C$36 -> 1048671.36 | M28: ='GW Budgets - NCSSI Aquifer U-D'!D$36 -> 3714619.392 | N28: ='GW Budgets - NCSSI Aquifer U-D'!H$36+'GW Budgets - NCSSI Aquifer U-D'!R$36 -> 17177172.63
A29: SCSSI (User-Def) | B29: ='GW Budgets - SCSSI Aquifer U-D'!E$36 -> 6057625.274 | C29: ='GW Budgets - SCSSI Aquifer U-D'!F$36 -> 5620226.793 | D29: ='GW Budgets - SCSSI Aquifer U-D'!G$36 -> 3885913.833 | E29: ='GW Budgets - SCSSI Aquifer U-D'!L$36 -> 834831.36 | F29: ='GW Budgets - SCSSI Aquifer U-D'!M$36 -> 147697.6896 | G29: ='GW Budgets - SCSSI Aquifer U-D'!N$36 -> 23274.0864 | H29: ='GW Budgets - SCSSI Aquifer U-D'!O$36 -> 11502.12096 | I29: ='GW Budgets - SCSSI Aquifer U-D'!P$36 -> 7842.3552 | J29: ='GW Budgets - SCSSI Aquifer U-D'!Q$36 -> 9613.2096 | K29: ='GW Budgets - SCSSI Aquifer U-D'!B$36 -> 90107.86909 | L29: ='GW Budgets - SCSSI Aquifer U-D'!C$36 -> 1409784.087 | M29: ='GW Budgets - SCSSI Aquifer U-D'!D$36 -> 4993758.301 | N29: ='GW Budgets - SCSSI Aquifer U-D'!H$36+'GW Budgets - SCSSI Aquifer U-D'!R$36 -> 23092176.98
A30: SSSI (User-Def) | B30: ='GW Budgets - SSSI Aquifer U-D'!E$36 -> 6380367.604 | C30: ='GW Budgets - SSSI Aquifer U-D'!F$36 -> 5919665.105 | D30: ='GW Budgets - SSSI Aquifer U-D'!G$36 -> 4092950.225 | E30: ='GW Budgets - SSSI Aquifer U-D'!L$36 -> 879310.08 | F30: ='GW Budgets - SSSI Aquifer U-D'!M$36 -> 155566.8288 | G30: ='GW Budgets - SSSI Aquifer U-D'!N$36 -> 24514.0992 | H30: ='GW Budgets - SSSI Aquifer U-D'!O$36 -> 12114.93888 | I30: ='GW Budgets - SSSI Aquifer U-D'!P$36 -> 8260.1856 | J30: ='GW Budgets - SSSI Aquifer U-D'!Q$36 -> 10125.3888 | K30: ='GW Budgets - SSSI Aquifer U-D'!B$36 -> 94908.69818 | L30: ='GW Budgets - SSSI Aquifer U-D'!C$36 -> 1484895.535 | M30: ='GW Budgets - SSSI Aquifer U-D'!D$36 -> 5259819.194 | N30: ='GW Budgets - SSSI Aquifer U-D'!H$36+'GW Budgets - SSSI Aquifer U-D'!R$36 -> 24322497.88
A32: Groundwater Flow to Baseflow | B32: JAN | C32: FEB | D32: MAR | E32: APR | F32: MAY | G32: JUN | H32: JUL | I32: AUG | J32: SEP | K32: OCT | L32: NOV | M32: DEC | N32: ANNUAL
A33: NSSI (Standard) | B33: ='GW Budgets - NSSI Aquifer'!E$39 -> 747893.2844 | C33: ='GW Budgets - NSSI Aquifer'!F$39 -> 693890.7055 | D33: ='GW Budgets - NSSI Aquifer'!G$39 -> 479767.0255 | E33: ='GW Budgets - NSSI Aquifer'!L$39 -> 549711.36 | F33: ='GW Budgets - NSSI Aquifer'!M$39 -> 437645.2032 | G33: ='GW Budgets - NSSI Aquifer'!N$39 -> 206891.3664 | H33: ='GW Budgets - NSSI Aquifer'!O$39 -> 102246.313 | I33: ='GW Budgets - NSSI Aquifer'!P$39 -> 69713.3952 | J33: ='GW Budgets - NSSI Aquifer'!Q$39 -> 85455.1296 | K33: ='GW Budgets - NSSI Aquifer'!B$39 -> 88999.98545 | L33: ='GW Budgets - NSSI Aquifer'!C$39 -> 174056.3345 | M33: ='GW Budgets - NSSI Aquifer'!D$39 -> 616544.9542 | N33: ='GW Budgets - NSSI Aquifer'!H$39+'GW Budgets - NSSI Aquifer'!R$39 -> 4252815.057
A34: NCSSI (Standard) | B34: ='GW Budgets - NCSSI Aquifer'!E$33 -> 563247.432 | C34: ='GW Budgets - NCSSI Aquifer'!F$33 -> 522577.44 | D34: ='GW Budgets - NCSSI Aquifer'!G$33 -> 361318.32 | E34: ='GW Budgets - NCSSI Aquifer'!L$33 -> 413994.24 | F34: ='GW Budgets - NCSSI Aquifer'!M$33 -> 329595.8688 | G34: ='GW Budgets - NCSSI Aquifer'!N$33 -> 155812.3776 | H34: ='GW Budgets - NCSSI Aquifer'!O$33 -> 77002.92864 | I34: ='GW Budgets - NCSSI Aquifer'!P$33 -> 52501.9968 | J34: ='GW Budgets - NCSSI Aquifer'!Q$33 -> 64357.2864 | K34: ='GW Budgets - NCSSI Aquifer'!B$33 -> 67026.96 | L34: ='GW Budgets - NCSSI Aquifer'!C$33 -> 131083.92 | M34: ='GW Budgets - NCSSI Aquifer'!D$33 -> 464327.424 | N34: ='GW Budgets - NCSSI Aquifer'!H$33+'GW Budgets - NCSSI Aquifer'!R$33 -> 3202846.194
A35: SCSSI (Standard) | B35: ='GW Budgets - SCSSI Aquifer'!E$33 -> 757203.1593 | C35: ='GW Budgets - SCSSI Aquifer'!F$33 -> 702528.3491 | D35: ='GW Budgets - SCSSI Aquifer'!G$33 -> 485739.2291 | E35: ='GW Budgets - SCSSI Aquifer'!L$33 -> 556554.24 | F35: ='GW Budgets - SCSSI Aquifer'!M$33 -> 443093.0688 | G35: ='GW Budgets - SCSSI Aquifer'!N$33 -> 209466.7776 | H35: ='GW Budgets - SCSSI Aquifer'!O$33 -> 103519.0886 | I35: ='GW Budgets - SCSSI Aquifer'!P$33 -> 70581.1968 | J35: ='GW Budgets - SCSSI Aquifer'!Q$33 -> 86518.8864 | K35: ='GW Budgets - SCSSI Aquifer'!B$33 -> 90107.86909 | L35: ='GW Budgets - SCSSI Aquifer'!C$33 -> 176223.0109 | M35: ='GW Budgets - SCSSI Aquifer'!D$33 -> 624219.7876 | N35: ='GW Budgets - SCSSI Aquifer'!H$33+'GW Budgets - SCSSI Aquifer'!R$33 -> 4305754.663
A36: SSSI (Standard) | B36: ='GW Budgets - SSSI Aquifer'!E$33 -> 797545.9505 | C36: ='GW Budgets - SSSI Aquifer'!F$33 -> 739958.1382 | D36: ='GW Budgets - SSSI Aquifer'!G$33 -> 511618.7782 | E36: ='GW Budgets - SSSI Aquifer'!L$33 -> 586206.72 | F36: ='GW Budgets - SSSI Aquifer'!M$33 -> 466700.4864 | G36: ='GW Budgets - SSSI Aquifer'!N$33 -> 220626.8928 | H36: ='GW Budgets - SSSI Aquifer'!O$33 -> 109034.4499 | I36: ='GW Budgets - SSSI Aquifer'!P$33 -> 74341.6704 | J36: ='GW Budgets - SSSI Aquifer'!Q$33 -> 91128.4992 | K36: ='GW Budgets - SSSI Aquifer'!B$33 -> 94908.69818 | L36: ='GW Budgets - SSSI Aquifer'!C$33 -> 185611.9418 | M36: ='GW Budgets - SSSI Aquifer'!D$33 -> 657477.3993 | N36: ='GW Budgets - SSSI Aquifer'!H$33+'GW Budgets - SSSI Aquifer'!R$33 -> 4535159.625
A37: NSSI (User-Def) | B37: ='GW Budgets - NSSI Aquifer U-D'!E$39 -> 1495786.569 | C37: ='GW Budgets - NSSI Aquifer U-D'!F$39 -> 1387781.411 | D37: ='GW Budgets - NSSI Aquifer U-D'!G$39 -> 959534.0509 | E37: ='GW Budgets - NSSI Aquifer U-D'!L$39 -> 549711.36 | F37: ='GW Budgets - NSSI Aquifer U-D'!M$39 -> 437645.2032 | G37: ='GW Budgets - NSSI Aquifer U-D'!N$39 -> 206891.3664 | H37: ='GW Budgets - NSSI Aquifer U-D'!O$39 -> 102246.313 | I37: ='GW Budgets - NSSI Aquifer U-D'!P$39 -> 69713.3952 | J37: ='GW Budgets - NSSI Aquifer U-D'!Q$39 -> 85455.1296 | K37: ='GW Budgets - NSSI Aquifer U-D'!B$39 -> 88999.98545 | L37: ='GW Budgets - NSSI Aquifer U-D'!C$39 -> 348112.6691 | M37: ='GW Budgets - NSSI Aquifer U-D'!D$39 -> 1233089.908 | N37: ='GW Budgets - NSSI Aquifer U-D'!H39+'GW Budgets - NSSI Aquifer U-D'!R39 -> 6964967.361
A38: NCSSI (User-Def) | B38: ='GW Budgets - NCSSI Aquifer U-D'!E$33 -> 1126494.864 | C38: ='GW Budgets - NCSSI Aquifer U-D'!F$33 -> 1045154.88 | D38: ='GW Budgets - NCSSI Aquifer U-D'!G$33 -> 722636.64 | E38: ='GW Budgets - NCSSI Aquifer U-D'!L$33 -> 413994.24 | F38: ='GW Budgets - NCSSI Aquifer U-D'!M$33 -> 329595.8688 | G38: ='GW Budgets - NCSSI Aquifer U-D'!N$33 -> 155812.3776 | H38: ='GW Budgets - NCSSI Aquifer U-D'!O$33 -> 77002.92864 | I38: ='GW Budgets - NCSSI Aquifer U-D'!P$33 -> 52501.9968 | J38: ='GW Budgets - NCSSI Aquifer U-D'!Q$33 -> 64357.2864 | K38: ='GW Budgets - NCSSI Aquifer U-D'!B$33 -> 67026.96 | L38: ='GW Budgets - NCSSI Aquifer U-D'!C$33 -> 262167.84 | M38: ='GW Budgets - NCSSI Aquifer U-D'!D$33 -> 928654.848 | N38: ='GW Budgets - NCSSI Aquifer U-D'!H$33+'GW Budgets - NCSSI Aquifer U-D'!R$33 -> 5245400.73
A39: SCSSI (User-Def) | B39: ='GW Budgets - SCSSI Aquifer U-D'!E$33 -> 1514406.319 | C39: ='GW Budgets - SCSSI Aquifer U-D'!F$33 -> 1405056.698 | D39: ='GW Budgets - SCSSI Aquifer U-D'!G$33 -> 971478.4582 | E39: ='GW Budgets - SCSSI Aquifer U-D'!L$33 -> 556554.24 | F39: ='GW Budgets - SCSSI Aquifer U-D'!M$33 -> 443093.0688 | G39: ='GW Budgets - SCSSI Aquifer U-D'!N$33 -> 209466.7776 | H39: ='GW Budgets - SCSSI Aquifer U-D'!O$33 -> 103519.0886 | I39: ='GW Budgets - SCSSI Aquifer U-D'!P$33 -> 70581.1968 | J39: ='GW Budgets - SCSSI Aquifer U-D'!Q$33 -> 86518.8864 | K39: ='GW Budgets - SCSSI Aquifer U-D'!B$33 -> 90107.86909 | L39: ='GW Budgets - SCSSI Aquifer U-D'!C$33 -> 352446.0218 | M39: ='GW Budgets - SCSSI Aquifer U-D'!D$33 -> 1248439.575 | N39: ='GW Budgets - SCSSI Aquifer U-D'!H$33+'GW Budgets - SCSSI Aquifer U-D'!R$33 -> 7051668.199
A40: SSSI (User-Def) | B40: ='GW Budgets - SSSI Aquifer U-D'!E$33 -> 1595091.901 | C40: ='GW Budgets - SSSI Aquifer U-D'!F$33 -> 1479916.276 | D40: ='GW Budgets - SSSI Aquifer U-D'!G$33 -> 1023237.556 | E40: ='GW Budgets - SSSI Aquifer U-D'!L$33 -> 586206.72 | F40: ='GW Budgets - SSSI Aquifer U-D'!M$33 -> 466700.4864 | G40: ='GW Budgets - SSSI Aquifer U-D'!N$33 -> 220626.8928 | H40: ='GW Budgets - SSSI Aquifer U-D'!O$33 -> 109034.4499 | I40: ='GW Budgets - SSSI Aquifer U-D'!P$33 -> 74341.6704 | J40: ='GW Budgets - SSSI Aquifer U-D'!Q$33 -> 91128.4992 | K40: ='GW Budgets - SSSI Aquifer U-D'!B$33 -> 94908.69818 | L40: ='GW Budgets - SSSI Aquifer U-D'!C$33 -> 371223.8836 | M40: ='GW Budgets - SSSI Aquifer U-D'!D$33 -> 1314954.799 | N40: ='GW Budgets - SSSI Aquifer U-D'!H$33+'GW Budgets - SSSI Aquifer U-D'!R$33 -> 7427371.833
A42: Groundwater Flow to Sea | B42: JAN | C42: FEB | D42: MAR | E42: APR | F42: MAY | G42: JUN | H42: JUL | I42: AUG | J42: SEP | K42: OCT | L42: NOV | M42: DEC | N42: ANNUAL
A43: NSSI (Standard) | B43: ='GW Budgets - NSSI Aquifer'!E$36 -> 32140.8 | C43: ='GW Budgets - NSSI Aquifer'!F$36 -> 29030.4 | D43: ='GW Budgets - NSSI Aquifer'!G$36 -> 32140.8 | E43: ='GW Budgets - NSSI Aquifer'!L$36 -> 31104 | F43: ='GW Budgets - NSSI Aquifer'!M$36 -> 32140.8 | G43: ='GW Budgets - NSSI Aquifer'!N$36 -> 31104 | H43: ='GW Budgets - NSSI Aquifer'!O$36 -> 32140.8 | I43: ='GW Budgets - NSSI Aquifer'!P$36 -> 32140.8 | J43: ='GW Budgets - NSSI Aquifer'!Q$36 -> 31104 | K43: ='GW Budgets - NSSI Aquifer'!B$36 -> 32140.8 | L43: ='GW Budgets - NSSI Aquifer'!C$36 -> 31104 | M43: ='GW Budgets - NSSI Aquifer'!D$36 -> 32140.8 | N43: ='GW Budgets - NSSI Aquifer'!H$36+'GW Budgets - NSSI Aquifer'!R$36 -> 378432
A44: NCSSI (Standard) | B44: ='GW Budgets - NCSSI Aquifer'!E$30 -> 80352 | C44: ='GW Budgets - NCSSI Aquifer'!F$30 -> 72576 | D44: ='GW Budgets - NCSSI Aquifer'!G$30 -> 80352 | E44: ='GW Budgets - NCSSI Aquifer'!L$30 -> 77760 | F44: ='GW Budgets - NCSSI Aquifer'!M$30 -> 80352 | G44: ='GW Budgets - NCSSI Aquifer'!N$30 -> 77760 | H44: ='GW Budgets - NCSSI Aquifer'!O$30 -> 80352 | I44: ='GW Budgets - NCSSI Aquifer'!P$30 -> 80352 | J44: ='GW Budgets - NCSSI Aquifer'!Q$30 -> 77760 | K44: ='GW Budgets - NCSSI Aquifer'!B$30 -> 80352 | L44: ='GW Budgets - NCSSI Aquifer'!C$30 -> 77760 | M44: ='GW Budgets - NCSSI Aquifer'!D$30 -> 80352 | N44: ='GW Budgets - NCSSI Aquifer'!H$30+'GW Budgets - NCSSI Aquifer'!R$30 -> 946080
A45: SCSSI (Standard) | B45: ='GW Budgets - SCSSI Aquifer'!E$30 -> 80352 | C45: ='GW Budgets - SCSSI Aquifer'!F$30 -> 72576 | D45: ='GW Budgets - SCSSI Aquifer'!G$30 -> 80352 | E45: ='GW Budgets - SCSSI Aquifer'!L$30 -> 77760 | F45: ='GW Budgets - SCSSI Aquifer'!M$30 -> 80352 | G45: ='GW Budgets - SCSSI Aquifer'!N$30 -> 77760 | H45: ='GW Budgets - SCSSI Aquifer'!O$30 -> 80352 | I45: ='GW Budgets - SCSSI Aquifer'!P$30 -> 80352 | J45: ='GW Budgets - SCSSI Aquifer'!Q$30 -> 77760 | K45: ='GW Budgets - SCSSI Aquifer'!B$30 -> 80352 | L45: ='GW Budgets - SCSSI Aquifer'!C$30 -> 77760 | M45: ='GW Budgets - SCSSI Aquifer'!D$30 -> 80352 | N45: ='GW Budgets - SCSSI Aquifer'!H$30+'GW Budgets - SCSSI Aquifer'!R$30 -> 946080
A46: SSSI (Standard) | B46: ='GW Budgets - SSSI Aquifer'!E$30 -> 60264 | C46: ='GW Budgets - SSSI Aquifer'!F$30 -> 54432 | D46: ='GW Budgets - SSSI Aquifer'!G$30 -> 60264 | E46: ='GW Budgets - SSSI Aquifer'!L$30 -> 58320 | F46: ='GW Budgets - SSSI Aquifer'!M$30 -> 60264 | G46: ='GW Budgets - SSSI Aquifer'!N$30 -> 58320 | H46: ='GW Budgets - SSSI Aquifer'!O$30 -> 60264 | I46: ='GW Budgets - SSSI Aquifer'!P$30 -> 60264 | J46: ='GW Budgets - SSSI Aquifer'!Q$30 -> 58320 | K46: ='GW Budgets - SSSI Aquifer'!B$30 -> 60264 | L46: ='GW Budgets - SSSI Aquifer'!C$30 -> 58320 | M46: ='GW Budgets - SSSI Aquifer'!D$30 -> 60264 | N46: ='GW Budgets - SSSI Aquifer'!H$30+'GW Budgets - SSSI Aquifer'!R$30 -> 709560
A47: NSSI (User-Def) | B47: ='GW Budgets - NSSI Aquifer U-D'!E$36 -> 16070.4 | C47: ='GW Budgets - NSSI Aquifer U-D'!F$36 -> 14515.2 | D47: ='GW Budgets - NSSI Aquifer U-D'!G$36 -> 16070.4 | E47: ='GW Budgets - NSSI Aquifer U-D'!L$36 -> 15552 | F47: ='GW Budgets - NSSI Aquifer U-D'!M$36 -> 16070.4 | G47: ='GW Budgets - NSSI Aquifer U-D'!N$36 -> 15552 | H47: ='GW Budgets - NSSI Aquifer U-D'!O$36 -> 16070.4 | I47: ='GW Budgets - NSSI Aquifer U-D'!P$36 -> 16070.4 | J47: ='GW Budgets - NSSI Aquifer U-D'!Q$36 -> 15552 | K47: ='GW Budgets - NSSI Aquifer U-D'!B$36 -> 16070.4 | L47: ='GW Budgets - NSSI Aquifer U-D'!C$36 -> 15552 | M47: ='GW Budgets - NSSI Aquifer U-D'!D$36 -> 16070.4 | N47: ='GW Budgets - NSSI Aquifer U-D'!H36+'GW Budgets - NSSI Aquifer U-D'!R36 -> 189216
A48: NCSSI (User-Def) | B48: ='GW Budgets - NCSSI Aquifer U-D'!E$30 -> 20088 | C48: ='GW Budgets - NCSSI Aquifer U-D'!F$30 -> 18144 | D48: ='GW Budgets - NCSSI Aquifer U-D'!G$30 -> 20088 | E48: ='GW Budgets - NCSSI Aquifer U-D'!L$30 -> 19440 | F48: ='GW Budgets - NCSSI Aquifer U-D'!M$30 -> 20088 | G48: ='GW Budgets - NCSSI Aquifer U-D'!N$30 -> 19440 | H48: ='GW Budgets - NCSSI Aquifer U-D'!O$30 -> 20088 | I48: ='GW Budgets - NCSSI Aquifer U-D'!P$30 -> 20088 | J48: ='GW Budgets - NCSSI Aquifer U-D'!Q$30 -> 19440 | K48: ='GW Budgets - NCSSI Aquifer U-D'!B$30 -> 20088 | L48: ='GW Budgets - NCSSI Aquifer U-D'!C$30 -> 19440 | M48: ='GW Budgets - NCSSI Aquifer U-D'!D$30 -> 20088 | N48: ='GW Budgets - NCSSI Aquifer U-D'!H$30+'GW Budgets - NCSSI Aquifer U-D'!R$30 -> 236520
A49: SCSSI (User-Def) | B49: ='GW Budgets - SCSSI Aquifer U-D'!E$30 -> 20088 | C49: ='GW Budgets - SCSSI Aquifer U-D'!F$30 -> 18144 | D49: ='GW Budgets - SCSSI Aquifer U-D'!G$30 -> 20088 | E49: ='GW Budgets - SCSSI Aquifer U-D'!L$30 -> 19440 | F49: ='GW Budgets - SCSSI Aquifer U-D'!M$30 -> 20088 | G49: ='GW Budgets - SCSSI Aquifer U-D'!N$30 -> 19440 | H49: ='GW Budgets - SCSSI Aquifer U-D'!O$30 -> 20088 | I49: ='GW Budgets - SCSSI Aquifer U-D'!P$30 -> 20088 | J49: ='GW Budgets - SCSSI Aquifer U-D'!Q$30 -> 19440 | K49: ='GW Budgets - SCSSI Aquifer U-D'!B$30 -> 20088 | L49: ='GW Budgets - SCSSI Aquifer U-D'!C$30 -> 19440 | M49: ='GW Budgets - SCSSI Aquifer U-D'!D$30 -> 20088 | N49: ='GW Budgets - SCSSI Aquifer U-D'!H$30+'GW Budgets - SCSSI Aquifer U-D'!R$30 -> 236520
A50: SSSI (User-Def) | B50: ='GW Budgets - SSSI Aquifer U-D'!E$30 -> 20088 | C50: ='GW Budgets - SSSI Aquifer U-D'!F$30 -> 18144 | D50: ='GW Budgets - SSSI Aquifer U-D'!G$30 -> 20088 | E50: ='GW Budgets - SSSI Aquifer U-D'!L$30 -> 19440 | F50: ='GW Budgets - SSSI Aquifer U-D'!M$30 -> 20088 | G50: ='GW Budgets - SSSI Aquifer U-D'!N$30 -> 19440 | H50: ='GW Budgets - SSSI Aquifer U-D'!O$30 -> 20088 | I50: ='GW Budgets - SSSI Aquifer U-D'!P$30 -> 20088 | J50: ='GW Budgets - SSSI Aquifer U-D'!Q$30 -> 19440 | K50: ='GW Budgets - SSSI Aquifer U-D'!B$30 -> 20088 | L50: ='GW Budgets - SSSI Aquifer U-D'!C$30 -> 19440 | M50: ='GW Budgets - SSSI Aquifer U-D'!D$30 -> 20088 | N50: ='GW Budgets - SSSI Aquifer U-D'!H$30+'GW Budgets - SSSI Aquifer U-D'!R$30 -> 236520
A52: Groundwater Use | B52: JAN | C52: FEB | D52: MAR | E52: APR | F52: MAY | G52: JUN | H52: JUL | I52: AUG | J52: SEP | K52: OCT | L52: NOV | M52: DEC | N52: ANNUAL
A53: NSSI (Standard) | B53: ='GW Budgets - NSSI Aquifer'!E$59 -> 9615.696315 | C53: ='GW Budgets - NSSI Aquifer'!F$59 -> 9374.497684 | D53: ='GW Budgets - NSSI Aquifer'!G$59 -> 10512.33122 | E53: ='GW Budgets - NSSI Aquifer'!L$59 -> 27362.12097 | F53: ='GW Budgets - NSSI Aquifer'!M$59 -> 40191.38972 | G53: ='GW Budgets - NSSI Aquifer'!N$59 -> 43741.41674 | H53: ='GW Budgets - NSSI Aquifer'!O$59 -> 50236.36863 | I53: ='GW Budgets - NSSI Aquifer'!P$59 -> 46114.34546 | J53: ='GW Budgets - NSSI Aquifer'!Q$59 -> 29263.01121 | K53: ='GW Budgets - NSSI Aquifer'!B$59 -> 11622.42663 | L53: ='GW Budgets - NSSI Aquifer'!C$59 -> 11645.16428 | M53: ='GW Budgets - NSSI Aquifer'!D$59 -> 11648.84051 | N53: ='GW Budgets - NSSI Aquifer'!H$59+'GW Budgets - NSSI Aquifer'!R$59 -> 301327.6094
A54: NCSSI (Standard) | B54: ='GW Budgets - NCSSI Aquifer'!E$47 -> 5068.670244 | C54: ='GW Budgets - NCSSI Aquifer'!F$47 -> 5356.191766 | D54: ='GW Budgets - NCSSI Aquifer'!G$47 -> 5686.787288 | E54: ='GW Budgets - NCSSI Aquifer'!L$47 -> 12791.79449 | F54: ='GW Budgets - NCSSI Aquifer'!M$47 -> 19245.62649 | G54: ='GW Budgets - NCSSI Aquifer'!N$47 -> 20452.51258 | H54: ='GW Budgets - NCSSI Aquifer'!O$47 -> 22810.40715 | I54: ='GW Budgets - NCSSI Aquifer'!P$47 -> 21492.29735 | J54: ='GW Budgets - NCSSI Aquifer'!Q$47 -> 13638.51228 | K54: ='GW Budgets - NCSSI Aquifer'!B$47 -> 6198.544059 | L54: ='GW Budgets - NCSSI Aquifer'!C$47 -> 6267.787747 | M54: ='GW Budgets - NCSSI Aquifer'!D$47 -> 6648.415514 | N54: ='GW Budgets - NCSSI Aquifer'!H$47+'GW Budgets - NCSSI Aquifer'!R$47 -> 145657.5469
A55: SCSSI (Standard) | B55: ='GW Budgets - SCSSI Aquifer'!E$47 -> 5074.488002 | C55: ='GW Budgets - SCSSI Aquifer'!F$47 -> 5019.450639 | D55: ='GW Budgets - SCSSI Aquifer'!G$47 -> 5615.941816 | E55: ='GW Budgets - SCSSI Aquifer'!L$47 -> 10645.41258 | F55: ='GW Budgets - SCSSI Aquifer'!M$47 -> 15860.76071 | G55: ='GW Budgets - SCSSI Aquifer'!N$47 -> 16927.21997 | H55: ='GW Budgets - SCSSI Aquifer'!O$47 -> 19286.11387 | I55: ='GW Budgets - SCSSI Aquifer'!P$47 -> 18033.429 | J55: ='GW Budgets - SCSSI Aquifer'!Q$47 -> 11307.25362 | K55: ='GW Budgets - SCSSI Aquifer'!B$47 -> 6141.684071 | L55: ='GW Budgets - SCSSI Aquifer'!C$47 -> 6484.425696 | M55: ='GW Budgets - SCSSI Aquifer'!D$47 -> 6456.410051 | N55: ='GW Budgets - SCSSI Aquifer'!H$47+'GW Budgets - SCSSI Aquifer'!R$47 -> 126852.59
A56: SSSI (Standard) | B56: ='GW Budgets - SSSI Aquifer'!E$47 -> 3274.247847 | C56: ='GW Budgets - SSSI Aquifer'!F$47 -> 3287.647847 | D56: ='GW Budgets - SSSI Aquifer'!G$47 -> 3631.281558 | E56: ='GW Budgets - SSSI Aquifer'!L$47 -> 12585.01821 | F56: ='GW Budgets - SSSI Aquifer'!M$47 -> 18533.28581 | G56: ='GW Budgets - SSSI Aquifer'!N$47 -> 20366.17631 | H56: ='GW Budgets - SSSI Aquifer'!O$47 -> 23070.84863 | I56: ='GW Budgets - SSSI Aquifer'!P$47 -> 20874.08975 | J56: ='GW Budgets - SSSI Aquifer'!Q$47 -> 13220.08444 | K56: ='GW Budgets - SSSI Aquifer'!B$47 -> 4063.820216 | L56: ='GW Budgets - SSSI Aquifer'!C$47 -> 4356.168438 | M56: ='GW Budgets - SSSI Aquifer'!D$47 -> 4435.468438 | N56: ='GW Budgets - SSSI Aquifer'!H$47+'GW Budgets - SSSI Aquifer'!R$47 -> 131698.1375
A57: NSSI (User-Def) | B57: ='GW Budgets - NSSI Aquifer U-D'!E$59 -> 10092.11343 | C57: ='GW Budgets - NSSI Aquifer U-D'!F$59 -> 9850.914794 | D57: ='GW Budgets - NSSI Aquifer U-D'!G$59 -> 11039.95015 | E57: ='GW Budgets - NSSI Aquifer U-D'!L$59 -> 17119.21647 | F57: ='GW Budgets - NSSI Aquifer U-D'!M$59 -> 25435.60475 | G57: ='GW Budgets - NSSI Aquifer U-D'!N$59 -> 26687.1081 | H57: ='GW Budgets - NSSI Aquifer U-D'!O$59 -> 31073.27619 | I57: ='GW Budgets - NSSI Aquifer U-D'!P$59 -> 29630.83396 | J57: ='GW Budgets - NSSI Aquifer U-D'!Q$59 -> 18727.95862 | K57: ='GW Budgets - NSSI Aquifer U-D'!B$59 -> 12202.41503 | L57: ='GW Budgets - NSSI Aquifer U-D'!C$59 -> 12255.18957 | M57: ='GW Budgets - NSSI Aquifer U-D'!D$59 -> 12258.8658 | N57: ='GW Budgets - NSSI Aquifer U-D'!H59+'GW Budgets - NSSI Aquifer U-D'!R59 -> 216373.4469
A58: NCSSI (User-Def) | B58: ='GW Budgets - NCSSI Aquifer U-D'!E$47 -> 5335.796195 | C58: ='GW Budgets - NCSSI Aquifer U-D'!F$47 -> 5623.317717 | D58: ='GW Budgets - NCSSI Aquifer U-D'!G$47 -> 5982.343898 | E58: ='GW Budgets - NCSSI Aquifer U-D'!L$47 -> 13087.3511 | F58: ='GW Budgets - NCSSI Aquifer U-D'!M$47 -> 19699.99235 | G58: ='GW Budgets - NCSSI Aquifer U-D'!N$47 -> 20906.87844 | H58: ='GW Budgets - NCSSI Aquifer U-D'!O$47 -> 23333.41524 | I58: ='GW Budgets - NCSSI Aquifer U-D'!P$47 -> 22015.30544 | J58: ='GW Budgets - NCSSI Aquifer U-D'!Q$47 -> 13963.1479 | K58: ='GW Budgets - NCSSI Aquifer U-D'!B$47 -> 6523.179686 | L58: ='GW Budgets - NCSSI Aquifer U-D'!C$47 -> 6609.101856 | M58: ='GW Budgets - NCSSI Aquifer U-D'!D$47 -> 6989.729622 | N58: ='GW Budgets - NCSSI Aquifer U-D'!H$47+'GW Budgets - NCSSI Aquifer U-D'!R$47 -> 150069.5594
A59: SCSSI (User-Def) | B59: ='GW Budgets - SCSSI Aquifer U-D'!E$47 -> 5378.711835 | C59: ='GW Budgets - SCSSI Aquifer U-D'!F$47 -> 5323.674472 | D59: ='GW Budgets - SCSSI Aquifer U-D'!G$47 -> 5951.79226 | E59: ='GW Budgets - SCSSI Aquifer U-D'!L$47 -> 10981.26302 | F59: ='GW Budgets - SCSSI Aquifer U-D'!M$47 -> 16373.2725 | G59: ='GW Budgets - SCSSI Aquifer U-D'!N$47 -> 17439.73176 | H59: ='GW Budgets - SCSSI Aquifer U-D'!O$47 -> 19874.98411 | I59: ='GW Budgets - SCSSI Aquifer U-D'!P$47 -> 18622.29924 | J59: ='GW Budgets - SCSSI Aquifer U-D'!Q$47 -> 11675.45192 | K59: ='GW Budgets - SCSSI Aquifer U-D'!B$47 -> 6509.882368 | L59: ='GW Budgets - SCSSI Aquifer U-D'!C$47 -> 6871.177339 | M59: ='GW Budgets - SCSSI Aquifer U-D'!D$47 -> 6843.161694 | N59: ='GW Budgets - SCSSI Aquifer U-D'!H$47+'GW Budgets - SCSSI Aquifer U-D'!R$47 -> 131845.4025
A60: SSSI (User-Def) | B60: ='GW Budgets - SSSI Aquifer U-D'!E$47 -> 3481.850102 | C60: ='GW Budgets - SSSI Aquifer U-D'!F$47 -> 3495.250102 | D60: ='GW Budgets - SSSI Aquifer U-D'!G$47 -> 3859.058262 | E60: ='GW Budgets - SSSI Aquifer U-D'!L$47 -> 12812.79492 | F60: ='GW Budgets - SSSI Aquifer U-D'!M$47 -> 18873.75386 | G60: ='GW Budgets - SSSI Aquifer U-D'!N$47 -> 20706.64436 | H60: ='GW Budgets - SSSI Aquifer U-D'!O$47 -> 23460.02533 | I60: ='GW Budgets - SSSI Aquifer U-D'!P$47 -> 21263.26645 | J60: ='GW Budgets - SSSI Aquifer U-D'!Q$47 -> 13468.49567 | K60: ='GW Budgets - SSSI Aquifer U-D'!B$47 -> 4312.231446 | L60: ='GW Budgets - SSSI Aquifer U-D'!C$47 -> 4616.414749 | M60: ='GW Budgets - SSSI Aquifer U-D'!D$47 -> 4695.714749 | N60: ='GW Budgets - SSSI Aquifer U-D'!H$47+'GW Budgets - SSSI Aquifer U-D'!R$47 -> 135045.5
A62: Breakdowns | B62: NSSI (Standard) | C62: NCSSI (Standard) | D62: SCSSI (Standard) | E62: SSSI (Standard) | F62: NSSI (User-Def) | G62: NCSSI (User-Def) | H62: SCSSI (User-Def) | I62: SSSI (User-Def)
A63: Direct Runoff | B63: ='GW Budgets - NSSI Aquifer'!$B84 -> 53.61759148 | C63: ='GW Budgets - NCSSI Aquifer'!$B$72 -> 53.64904168 | D63: ='GW Budgets - SCSSI Aquifer'!$B$72 -> 53.67759916 | E63: ='GW Budgets - SSSI Aquifer'!$B$72 -> 53.64623674 | F63: ='GW Budgets - NSSI Aquifer U-D'!$B84 -> 47.91944323 | G63: ='GW Budgets - NCSSI Aquifer U-D'!$B$72 -> 47.9475511 | H63: ='GW Budgets - SCSSI Aquifer U-D'!$B$72 -> 47.97307366 | I63: ='GW Budgets - SSSI Aquifer U-D'!$B$72 -> 47.94504425
A64: Evapotranspiration | B64: ='GW Budgets - NSSI Aquifer'!$B85 -> 36.07679069 | C64: ='GW Budgets - NCSSI Aquifer'!$B$73 -> 34.42250955 | D64: ='GW Budgets - SCSSI Aquifer'!$B$73 -> 35.24592807 | E64: ='GW Budgets - SSSI Aquifer'!$B$73 -> 35.78882838 | F64: ='GW Budgets - NSSI Aquifer U-D'!$B85 -> 36.65281374 | G64: ='GW Budgets - NCSSI Aquifer U-D'!$B$73 -> 36.39082645 | H64: ='GW Budgets - SCSSI Aquifer U-D'!$B$73 -> 36.70963821 | I64: ='GW Budgets - SSSI Aquifer U-D'!$B$73 -> 36.71469687
A65: Recharge | B65: ='GW Budgets - NSSI Aquifer'!$B83 -> 10.30561783 | C65: ='GW Budgets - NCSSI Aquifer'!$B$71 -> 11.92844877 | D65: ='GW Budgets - SCSSI Aquifer'!$B$71 -> 11.07647277 | E65: ='GW Budgets - SSSI Aquifer'!$B$71 -> 10.56493488 | F65: ='GW Budgets - NSSI Aquifer U-D'!$B83 -> 15.42774303 | G65: ='GW Budgets - NCSSI Aquifer U-D'!$B$71 -> 15.66162245 | H65: ='GW Budgets - SCSSI Aquifer U-D'!$B$71 -> 15.31728813 | I65: ='GW Budgets - SSSI Aquifer U-D'!$B$71 -> 15.34025888
A66: GW Baseflow to Creeks | B66: ='GW Budgets - NSSI Aquifer'!$B89 -> 8.877463874 | C66: ='GW Budgets - NCSSI Aquifer'!$B$77 -> 8.881023973 | D66: ='GW Budgets - SCSSI Aquifer'!$B$77 -> 8.84749825 | E66: ='GW Budgets - SSSI Aquifer'!$B$77 -> 8.906628281 | F66: ='GW Budgets - NSSI Aquifer U-D'!$B89 -> 14.57561212 | G66: ='GW Budgets - NCSSI Aquifer U-D'!$B$77 -> 14.58251456 | H66: ='GW Budgets - SCSSI Aquifer U-D'!$B$77 -> 14.55202375 | I66: ='GW Budgets - SSSI Aquifer U-D'!$B$77 -> 14.60782077
A67: GW to Sea | B67: ='GW Budgets - NSSI Aquifer'!$B88 -> 0.7950739473 | C67: ='GW Budgets - NCSSI Aquifer'!$B$76 -> 2.640843177 | D67: ='GW Budgets - SCSSI Aquifer'!$B$76 -> 1.965443344 | E67: ='GW Budgets - SSSI Aquifer'!$B$76 -> 1.398700321 | F67: ='GW Budgets - NSSI Aquifer U-D'!$B88 -> 0.3975369737 | G67: ='GW Budgets - NCSSI Aquifer U-D'!$B$76 -> 0.6602107943 | H67: ='GW Budgets - SCSSI Aquifer U-D'!$B$76 -> 0.4913608359 | I67: ='GW Budgets - SSSI Aquifer U-D'!$B$76 -> 0.4662334404
A68: GW Use | B68: ='GW Budgets - NSSI Aquifer'!$B87 -> 0.6330800033 | C68: ='GW Budgets - NCSSI Aquifer'!$B$75 -> 0.40658162 | D68: ='GW Budgets - SCSSI Aquifer'!$B$75 -> 0.2635311799 | E68: ='GW Budgets - SSSI Aquifer'!$B$75 -> 0.2596062732 | F68: ='GW Budgets - NSSI Aquifer U-D'!$B87 -> 0.454593931 | G68: ='GW Budgets - NCSSI Aquifer U-D'!$B$75 -> 0.418897104 | H68: ='GW Budgets - SCSSI Aquifer U-D'!$B$75 -> 0.2739035481 | I68: ='GW Budgets - SSSI Aquifer U-D'!$B$75 -> 0.266204668
A69: Recharge During Wet Year (2009) | B69: ='GW Budgets - NSSI Aquifer'!$B92 -> 11.99905355 | C69: ='GW Budgets - NCSSI Aquifer'!$B$80 -> 13.92098784 | D69: ='GW Budgets - SCSSI Aquifer'!$B$80 -> 12.86892954 | E69: ='GW Budgets - SSSI Aquifer'!$B$80 -> 12.18633159 | F69: ='GW Budgets - NSSI Aquifer U-D'!$B92 -> 17.43551474 | G69: ='GW Budgets - NCSSI Aquifer U-D'!$B$80 -> 17.58244204 | H69: ='GW Budgets - SCSSI Aquifer U-D'!$B$80 -> 17.17270627 | I69: ='GW Budgets - SSSI Aquifer U-D'!$B$80 -> 17.16772283
A70: Recharge During Dry Year (2010) | B70: ='GW Budgets - NSSI Aquifer'!$B91 -> 7.098593459 | C70: ='GW Budgets - NCSSI Aquifer'!$B$79 -> 8.144102465 | D70: ='GW Budgets - SCSSI Aquifer'!$B$79 -> 7.524560464 | E70: ='GW Budgets - SSSI Aquifer'!$B$79 -> 7.134505787 | F70: ='GW Budgets - NSSI Aquifer U-D'!$B91 -> 10.06444866 | G70: ='GW Budgets - NCSSI Aquifer U-D'!$B$79 -> 10.08055859 | H70: ='GW Budgets - SCSSI Aquifer U-D'!$B$79 -> 9.835332926 | I70: ='GW Budgets - SSSI Aquifer U-D'!$B$79 -> 9.840380222
A71: Recharge - Climate Change Assumptions | B71: ='GW Budgets - NSSI Aquifer'!$B93 -> 8.922228149 | C71: ='GW Budgets - NCSSI Aquifer'!$B$81 -> 10.32721601 | D71: ='GW Budgets - SCSSI Aquifer'!$B$81 -> 9.589606256 | E71: ='GW Budgets - SSSI Aquifer'!$B$81 -> 9.146735396 | F71: ='GW Budgets - NSSI Aquifer U-D'!$B93 -> 13.35677739 | G71: ='GW Budgets - NCSSI Aquifer U-D'!$B$81 -> 13.55926167 | H71: ='GW Budgets - SCSSI Aquifer U-D'!$B$81 -> 13.26114956 | I71: ='GW Budgets - SSSI Aquifer U-D'!$B$81 -> 13.2810368
